Workbook

Sheet Haftung

Sheet Kontakt

Sheet Einleitung (hidden)

Sheet Hilti Richtdetails
A1: Kappenverankerung mit HPA unter statischen Einwirkungen | K1: Kappenverankerung mit HIT-Z-R-D unter statischen und ermüdugsrelevanten Einwirkungen

Sheet Einwirkungen (hidden)
B2: =Eingabe!B2 -> HILTI Design-Tool Kappenverankerung 10.2 | H2: =Eingabe!I2 -> Version gültig bis 31.12.2023
A4: Direkte Einwirkungen Anprall
B5: Die Einwirkungen aus dieser Tabelle werden nicht automatisch in Blatt "Eingabe" übernommen.
B7: Anprall Fahrzeug-Rückhaltesystem FRS:
B11: Quellen: DIN EN 1991-2, 4.7.3.3 Absatz (2), Technische Übersichtsliste BASt und Gütegemeinschaft für Stahlschutzplaanken Stand 02/2021
B13: Indirekte Einwirkungen

Sheet Produkte
A1: Übersicht der Standard-Produkte. Projektspezifische Längen lieferbar.
A3: Neubau und Instandsetzung Kappenverankerung mit HPA, Sechskantmutter und Stauscheibe
A4: Bereich | B4: Dimension | C4: Set HPA Kappenverankerung inkl. Mutter u. Stauscheibe | D4: Injektionsmörtel
A5: Straßen- / Schienenverkehr (statische Einwirkungen) | B5: 16 | C5: Set HPA A4 M16x200 inkl. Mutter u. Stauscheibe (2329936) | D5: HIT-RE 500 V4
C6: Set HPA A4 M16x220 inkl. Mutter u. Stauscheibe (2329937)
C7: Set HPA A4 M16x240 inkl. Mutter u. Stauscheibe (2329938)
C8: Set HPA A4 M16x260 inkl. Mutter u. Stauscheibe (2329939)
C9: Set HPA A4 M16x300 inkl. Mutter u. Stauscheibe (2330220)
C10: Set HPA A4 M16x350 inkl. Mutter u. Stauscheibe (2344761)
B11: 20 | C11: Set HPA A4 M20x180 inkl. Mutter u. Stauscheibe (2330221)
C12: Set HPA A4 M20x200 inkl. Mutter u. Stauscheibe (2340256)
C13: Set HPA A4 M20x220 inkl. Mutter u. Stauscheibe (2330222)
C14: Set HPA A4 M20x240 inkl. Mutter u. Stauscheibe (2330223)
C15: Set HPA A4 M20x260 inkl. Mutter u. Stauscheibe (2330224)
C16: Set HPA A4 M20x300 inkl. Mutter u. Stauscheibe (2330225)
C17: Set HPA A4 M20x330 inkl. Mutter u. Stauscheibe (2330226)
C18: Set HPA A4 M20x350 inkl. Mutter u. Stauscheibe (2330227)
C19: Set HPA A4 M20x380 inkl. Mutter u. Stauscheibe (2330228)
B20: 24 | C20: Set HPA A4 M24x220 inkl. Mutter u. Stauscheibe (2340257)
C21: Set HPA A4 M24x240 inkl. Mutter u. Stauscheibe (2330229)
C22: Set HPA A4 M24x260 inkl. Mutter u. Stauscheibe (2330230)
C23: Set HPA A4 M24x300 inkl. Mutter u. Stauscheibe (2330231)
C24: Set HPA A4 M24x350 inkl. Mutter u. Stauscheibe (2330232)
C25: Set HPA A4 M24x450 inkl. Mutter u. Stauscheibe (2345552)
A26: Schienenverkehr (statische und/oder ermüdungsrelevante Einwirkungen) | B26: 16 | C26: HIT-Z-R-D Dynamik M16 x 240 inkl. Mutter zzgl. Stauscheibe HIW-FC M16 (2094852 + 385236) | D26: HIT-HY 200-A
A28: Neubau und Instandsetzung Kappenverankerung mit HPA, Kopfplatte und Stauscheibe
A29: Bereich | B29: Dimension | C29: Set HPA Kappenverankerung inkl. Kopfplatte HPA-K u. Stauscheibe | D29: Injektionsmörtel
A30: Straßen- / Schienenverkehr (statische Einwirkungen) | B30: 20 | C30: Set HPA A4 M20x180 inkl. Kopfplatte u. Stauscheibe (2348275) | D30: HIT-RE 500 V4
C31: Set HPA A4 M20x200 inkl. Kopfplatte u. Stauscheibe (2348276)
C32: Set HPA A4 M20x220 inkl. Kopfplatte u. Stauscheibe (2348277)
C33: Set HPA A4 M20x240 inkl. Kopfplatte u. Stauscheibe (2348278)
C34: Set HPA A4 M20x260 inkl. Kopfplatte u. Stauscheibe (2348279)
C35: Set HPA A4 M20x300 inkl. Kopfplatte u. Stauscheibe (2348590)
C36: Set HPA A4 M20x330 inkl. Kopfplatte u. Stauscheibe (2348591)
C37: Set HPA A4 M20x350 inkl. Kopfplatte u. Stauscheibe (2348592)
C38: Set HPA A4 M20x380 inkl. Kopfplatte u. Stauscheibe (2348593)
B39: 24 | C39: Set HPA A4 M24x220 inkl. Kopfplatte u. Stauscheibe (2348594)
C40: Set HPA A4 M24x240 inkl. Kopfplatte u. Stauscheibe (2348595)
C41: Set HPA A4 M24x260 inkl. Kopfplatte u. Stauscheibe (2348596)
C42: Set HPA A4 M24x300 inkl. Kopfplatte u. Stauscheibe (2348597)
C43: Set HPA A4 M24x350 inkl. Kopfplatte u. Stauscheibe (2348598)
A45: Nachträgliche Kappenverankerung mit HPA und Sechskantmutter
A46: Bereich | B46: Dimension | C46: Set HPA Kappenverankerung inkl. Mutter | D46: Injektionsmörtel
A47: Straßen- / Schienenverkehr (statische Einwirkungen) | B47: 16 | C47: Set HPA A4 M16x200 inkl. Mutter (2331899) | D47: HIT-RE 500 V4
C48: Set HPA A4 M16x220 inkl. Mutter (2332040)
C49: Set HPA A4 M16x240 inkl. Mutter (2332041)
C50: Set HPA A4 M16x260 inkl. Mutter (2332042)
C51: Set HPA A4 M16x300 inkl. Mutter (2332043)
B52: 20 | C52: Set HPA A4 M20x180 inkl. Mutter (2332044)
C53: Set HPA A4 M20x200 inkl. Mutter (2340493)
C54: Set HPA A4 M20x220 inkl. Mutter (2332045)
C55: Set HPA A4 M20x240 inkl. Mutter (2332046)
C56: Set HPA A4 M20x260 inkl. Mutter (2332047)
C57: Set HPA A4 M20x300 inkl. Mutter (2332048)
C58: Set HPA A4 M20x330 inkl. Mutter (2332049)
C59: Set HPA A4 M20x350 inkl. Mutter (2332050)
C60: Set HPA A4 M20x380 inkl. Mutter (2332051)
B61: 24 | C61: Set HPA A4 M24x220 inkl. Mutter (2340494)
C62: Set HPA A4 M24x240 inkl. Mutter (2332052)
C63: Set HPA A4 M24x260 inkl. Mutter (2332053)
C64: Set HPA A4 M24x300 inkl. Mutter (2332054)
C65: Set HPA A4 M24x350 inkl. Mutter (2332055)
A66: Schienenverkehr (statische und/oder ermüdungsrelevante Einwirkungen) | B66: 16 | C66: HIT-Z-R-D Dynamik M16 x 240 inkl. Mutter zzgl. Stauscheibe HIW-FC M16 (2094852 + 385236) | D66: HIT-HY 200-A
A68: Nachträgliche Kappenverankerung mit HPA und Kopfplatte
A69: Bereich | B69: Dimension | C69: Set HPA Kappenverankerung inkl. Kopfplatte HPA-K | D69: Injektionsmörtel
A70: Straßen- / Schienenverkehr (statische Einwirkungen) | B70: 20 | C70: Set HPA A4 M20x180 inkl. Kopfplatte (2348600) | D70: HIT-RE 500 V4
C71: Set HPA A4 M20x200 inkl. Kopfplatte (2348601)
C72: Set HPA A4 M20x220 inkl. Kopfplatte (2348602)
C73: Set HPA A4 M20x240 inkl. Kopfplatte (2348603)
C74: Set HPA A4 M20x260 inkl. Kopfplatte (2348604)
C75: Set HPA A4 M20x300 inkl. Kopfplatte (2348605)
C76: Set HPA A4 M20x330 inkl. Kopfplatte (2348606)
C77: Set HPA A4 M20x350 inkl. Kopfplatte (2348607)
C78: Set HPA A4 M20x380 inkl. Kopfplatte (2348608)
B79: 24 | C79: Set HPA A4 M24x220 inkl. Kopfplatte (2348609)
C80: Set HPA A4 M24x240 inkl. Kopfplatte (2348610)
C81: Set HPA A4 M24x260 inkl. Kopfplatte (2348611)
C82: Set HPA A4 M24x300 inkl. Kopfplatte (2348612)
C83: Set HPA A4 M24x350 inkl. Kopfplatte (2348613)

Sheet Eingabe (hidden)
M1: C 20/25 (LP); gerissen | N1: Abminderung Leichtbeton ψred,LWC | P1: ≤
B2: HILTI Design-Tool Kappenverankerung 10.2 | I2: Version gültig bis 31.12.2023 | M2: C 25/30 (LP); gerissen | N2: =IF(MID(C13,1,1)="L",1,0) -> 0 | P2: ≥ | V2: C 20/25 (gerissen) | W2: =IF(G5="Einreihige Ankeranordnung",C7,C7-C17) -> 930
B3: Bauvorhaben | C3: Instandsetzung Kappe | M3: C 30/37 (LP); gerissen | N3: =IF(N2=1,MIN(1,C14/1200-(5/6)),1) -> 1 | P3: Einreihige Ankeranordnung | V3: C 25/30; gerissen
B4: Kappenverankerung | C4: Kappenanker HPA M24 | F4: Bitumen-Schweißbahn einlagig + Schutzlage, Dicke 8 mm | M4: C 35/45 (LP); gerissen | P4: Zweireihige Ankeranordnung | S4: Dübelanzahl in der Lasteinleitungslänge | V4: C 30/37; gerissen
B5: Tragwerk (Überbau) | F5: =MID(C6,3,2) -> 35 | G5: Zweireihige Ankeranordnung | M5: C 40/50 (LP); gerissen | V5: C 35/45; gerissen
B6: Betongüte | C6: C 35/45; gerissen | F6: Randabstand cT bzw. Reihenabstand s1 prüfen. | M6: C 45/55 (LP); gerissen | S6: Abstand Mitte sx | T6: =J28 -> 900 | U6: [mm] | V6: C 40/50; gerissen
B7: Randabstand cT | C7: 1250 | D7: [mm] | F7: Verankerungslänge hef,gewählt für Bauteildicke Tragwerk hT zu groß. | M7: C 50/60 (LP); gerissen | P7: hTef | Q7: cnom | S7: Abstand Rand sx | T7: =J32 -> 450 | U7: [mm] | V7: C 45/55; gerissen
B8: Bauteildicke Tragwerk hT | C8: 240 | D8: [mm] | F8: Option für maximalen Kopfbolzen-Widerstand: Verringerung cnom | M8: LC25/28; gerissen | N8: Verb.-sp. RE500 V4 | O8: =IF(AE50=16,11,IF(AE50=20,10,IF(AE50=24,9.5,))) -> 9.5 | P8: 100 | Q8: =C20-(2*C20) -> -19 | V8: C 50/60; gerissen
B9: Drehpunktabstand d | C9: 10 | D9: [mm] | F9: Siehe Kommentar zur Betondeckung der Kopfbolzen. | M9: LC30/33; gerissen | P9: 120 | Q9: 30
B10: Verankerungslänge hef,gewählt | C10: 150 | D10: [mm] | F10: Dimension Kopfbolzen prüfen. | M10: LC35/38; gerissen | P10: 140 | Q10: 40
B11: Kappe | F11: Option prüfen: Verankerungslänge hef,gewählt erhöhen. | M11: LC40/44; gerissen | P11: 160 | Q11: 50
B12: Kappenbreite b | C12: ≤ 1,70 m | F12: Option für maximalen Widerstand: Kopfplatte HPA-K wählen | M12: LC45/50; gerissen | P12: 180 | Q12: 60
B13: Betongüte | C13: C 25/30 (LP); gerissen | F13: =MID(C13,3,2) -> 25 | M13: LC50/55; gerissen | P13: 200
B14: Rohdichte ρ | C14: 1700 | D14: [kg/m3] | M14: LC55/60; gerissen
B15: Kopfbolzen | C15: Sechskantmutter A4 M24 | M15: einreihige Anordnung | R15: Hebel Dübel 2 | S15: =C7-C17-C9 -> 920 | T15: [mm]
B16: Randabstand cK | C16: 200 | D16: [mm] | M16: zweireihige Anordnung | R16: Hebel Dübel 1 | S16: =C7-C9 -> 1240 | T16: [mm]
B17: Reihenabstand s1 | C17: 320 | D17: [mm] | M17: Reibungskraft FR | O17: =(((C7+C16+350)*C18)+101500)*(IF(N2=0,2500,C14)/100000000*0.63) -> 5.709375 | P17: kN/m | Q17: =MAX(C26-O17,0.001) -> 58.290625 | R17: kN/m
B18: Kappenhöhe hK | C18: 145 | D18: [mm] | O18: V auf HPA | Q18: V wirkt auf Anschlussbewehrung: nur N aus M + indirekte V
B19: Betondeckung Kopfbolzen cnom | C19: 30 | D19: [mm] | M19: Einwirkungen Mittelbereich | O19: Reihe 1 | P19: Reihe 2 | Q19: Reihe 1 | R19: Reihe 2
B20: Höhe Kopfbolzen hK1 / hK3 | C20: =W44 -> 19 | D20: [mm] | M20: direkte Einw. N aus M | N20: NSd [kN/A] | O20: =IF(G5="Zweireihige Ankeranordnung",(C25*1000/(S16+S15^2/S16)),(C25*1000/(C7-C9)))*J28/1000 -> 13.10738255 | P20: =IF(G5="Zweireihige Ankeranordnung",(C25*1000/(S15+S16^2/S15)),0)*J28/1000 -> 9.724832215 | Q20: =IF(G5="Zweireihige Ankeranordnung",(C25*1000/(S16+S15^2/S16)),(C25*1000/(C7-C9)))*J28/1000 -> 13.10738255 | R20: =IF(G5="Zweireihige Ankeranordnung",(C25*1000/(S15+S16^2/S15)),0)*J28/1000 -> 9.724832215
B21: Verankerungslänge hef,neu | C21: =T58 -> 96 | D21: [mm] | M21: dir.+indir. Einw. Stahl TW/Kappe | N21: VSd,y [kN/A] | O21: =IF(G5="Einreihige Ankeranordnung",(Q17/1000*J28)+C29,(((Q17/2)/1000*J28)+(C29/2))) -> 32.23078125 | P21: =IF(G5="Einreihige Ankeranordnung",0,(((Q17)/2)/1000*J28)+(C29/2)) -> 32.23078125 | Q21: =IF(G5="Einreihige Ankeranordnung",C29,C29/2) -> 6 | R21: =IF(G5="Einreihige Ankeranordnung",0,C29/2) -> 6
B22: gewählte Gesamtänge HPA | C22: =C10+C21+C20+H80 -> 273 | D22: [mm] | M22: dir.+indir. Einw. Beton TW | N22: VSd,y [kN/A] | O22: =(Q17/1000*J28)+C29 -> 64.4615625 | P22: =IF(G5="Einreihige Ankeranordnung",0,(((Q17)/2)/1000*J28)+(C29/2)) -> 32.23078125 | Q22: =C29 -> 12 | R22: =IF(G5="Einreihige Ankeranordnung",0,C29/2) -> 6
B23: direkte Einwirkungen | M23: dir.+indir. Einw. Beton Kappe | N23: VSd,y [kN/A] | O23: =IF(G5="Einreihige Ankeranordnung",(Q17/1000*J28)+C29,((Q17)/2/1000*J28)+(C29/2)) -> 32.23078125 | P23: =IF(G5="Einreihige Ankeranordnung",0,((Q17)/1000*J28)+C29) -> 64.4615625 | Q23: =IF(G5="Einreihige Ankeranordnung",C29,C29/2) -> 6 | R23: =IF(G5="Einreihige Ankeranordnung",0,C29) -> 12 | V23: =Q37 -> Kappenanker HPA M16 | W23: =Q38 -> Kappenanker HPA M20 | X23: =Q39 -> Kappenanker HPA M24 | Y23: =Q40 -> 0 | Z23: =Q41 -> 0
B24: direkte Einwirkung | C24: Anprall Schrammbord | M24: Einwirkungen Randbereich | O24: Reihe 1 | P24: Reihe 2 | Q24: Reihe 1 | R24: Reihe 2 | U24: =Tragwerk!A16 -> cmin gerissener Beton | V24: =Tragwerk!B16 -> 50 | W24: =Tragwerk!C16 -> 55 | X24: =Tragwerk!D16 -> 60 | Y24: =Tragwerk!D16 -> 60 | Z24: =Tragwerk!D16 -> 60 | AA24: =INDEX($V$24:$X$28,1,MATCH($C$4,$V$23:$X$23)) -> 60 | AB24: c | AC24: =AA24 -> 60
B25: Moment MEd,y,direkt / m | C25: 28 | D25: [kNm/m] | F25: optimierter Betonverbinder HPA mit hef,Tragwerk = | J25: =AD83&" mm :" -> 137 mm : | M25: direkte Einw. N aus M | N25: NSd | O25: =IF(G5="Zweireihige Ankeranordnung",(C25*1000/(S16+S15^2/S16))-N16,(C25*1000/(C7-C9))-N15)*J32/1000 -> 6.553691275 | P25: =IF(G5="Zweireihige Ankeranordnung",(C25*1000/(S15+S16^2/S15))-N16,0)*J32/1000 -> 4.862416107 | Q25: =IF(G5="Zweireihige Ankeranordnung",(C25*1000/(S16+S15^2/S16))-N16,(C25*1000/(C7-C9))-N15)*J32/1000 -> 6.553691275 | R25: =IF(G5="Zweireihige Ankeranordnung",(C25*1000/(S15+S16^2/S15))-N16,0)*J32/1000 -> 4.862416107 | U25: =Tragwerk!A17 -> smin gerissener Beton | V25: =Tragwerk!B17 -> 75 | W25: =Tragwerk!C17 -> 90 | X25: =Tragwerk!D17 -> 115 | Y25: =Tragwerk!D17 -> 115 | Z25: =Tragwerk!D17 -> 115 | AA25: =INDEX($V$24:$X$28,2,MATCH($C$4,$V$23:$X$23)) -> 115 | AB25: s | AC25: =AA25 -> 115
B26: Querkraft VEd,y,direkt / m | C26: 64 | D26: [kN/m] | F26: =Z110 -> Set HPA A4 M24x260 inkl. Mutter u. Stauscheibe (2330230) | M26: dir.+indir. Einw. Stahl TW/Kappe | N26: VSd,y/x [kN/A] | O26: =(IF(G5="Einreihige Ankeranordnung",SQRT((POWER((Q17/1000*J32)+C30,2))+(POWER(C29,2))),SQRT((POWER(((Q17/2)/1000*J32)+(C30/2),2))+(POWER((C29/2),2))))) -> 20.03492348 | P26: =(IF(G5="Einreihige Ankeranordnung",0,SQRT((POWER((((Q17)/2)/1000*J32)+(C30/2),2))+(POWER((C29/2),2))))) -> 20.03492348 | Q26: =(IF(G5="Einreihige Ankeranordnung",SQRT((POWER(C30,2))+(POWER(C29,2))),SQRT((POWER((C30/2),2))+(POWER((C29/2),2))))) -> 8.485281374 | R26: =(IF(G5="Einreihige Ankeranordnung",0,SQRT((POWER((C30/2),2))+(POWER((C29/2),2))))) -> 8.485281374 | AB26: h | AC26: =AA28 -> 193
B28: indirekte Einwirkungen | F28: Abstand Mittelbereich sx,Mitte | J28: 900 | K28: [mm] | M28: dir.+indir. Einw. Beton TW | N28: VSd,y/x [kN/A] | O28: =SQRT((POWER((Q17/1000*J32)+C30,2))+(POWER(C30,2))) -> 40.06984695 | P28: =IF(G5="Einreihige Ankeranordnung",0,SQRT((POWER((((Q17)/2)/1000*J32)+(C30/2),2))+(POWER(C30/2,2)))) -> 20.03492348 | Q28: =SQRT((POWER(C30,2))+(POWER(C30,2))) -> 16.97056275 | R28: =IF(G5="Einreihige Ankeranordnung",0,SQRT((POWER((C30/2),2)+(POWER(C30/2,2))))) -> 8.485281374 | U28: =Tragwerk!A20 -> hT,ef + 2 do | V28: =Tragwerk!B20 -> 173 | W28: =Tragwerk!C20 -> 181 | X28: =Tragwerk!D20 -> 193 | Y28: 176 | Z28: 176 | AA28: =INDEX($V$24:$X$28,5,MATCH($C$4,$V$23:$X$23)) -> 193 | AB28: HT/hTef | AC28: =IF(AND(C4="Kappenanker HPA M16",(C8-C10)<36),1,0) -> 0 | AD28: =IF(AND(C4="Kappenanker HPA M16",(C8-AD73)<36),1,0) -> 0 | AE28: =IF(AND(C4="Kappenanker HPA M16",(C8-AG73)<36),1,0) -> 0
B29: Mitte: VEd,y,indirekt | C29: =E111 -> 12 | D29: [kN/HPA] | F29: =IF(Q56=0,"Verankerung Mittelbereich zulässig","Verankerung Mittelbereich nicht zulässig") -> Verankerung Mittelbereich zulässig | M29: dir.+indir. Einw. Beton Kappe | N29: VSd,y/x [kN/A] | O29: =IF(G5="Einreihige Ankeranordnung",SQRT((POWER((Q17/1000*J32)+C30,2))+(POWER(C30,2))),SQRT((POWER(((Q17/2)/1000*J32)+(C30/2),2))+(POWER(C30/2,2)))) -> 20.03492348 | P29: =IF(G5="Einreihige Ankeranordnung",0,SQRT((POWER((((Q17))/1000*J32)+(C30),2))+(POWER(C30,2)))) -> 40.06984695 | Q29: =IF(G5="Einreihige Ankeranordnung",SQRT((POWER(C30,2))+(POWER(C30,2))),SQRT((POWER((C30/2),2)+(POWER(C30/2,2))))) -> 8.485281374 | R29: =IF(G5="Einreihige Ankeranordnung",0,SQRT((POWER(C30,2))+(POWER(C30,2)))) -> 16.97056275 | U29: 2 do | V29: 36 | W29: 44 | X29: 56 | Y29: 0 | Z29: 0 | AA29: =INDEX($V$24:$X$29,6,MATCH($C$4,$V$23:$X$23)) -> 56 | AC29: =IF(AND(C4="Kappenanker HPA M20",(C8-C10)<44),1,0) -> 0 | AD29: =IF(AND(C4="Kappenanker HPA M20",(C8-AD73)<44),1,0) -> 0 | AE29: =IF(AND(C4="Kappenanker HPA M20",(C8-AG73)<44),1,0) -> 0
B30: Rand: VEd,x/y,indirekt | C30: =E111 -> 12 | D30: [kN/HPA] | N30: Winkel TW VSd,y/x [°] | O30: =DEGREES(ATAN(C30/(C30+(Q17/1000*J32)))) -> 17.42619691 | P30: =IF(G5="Einreihige Ankeranordnung",DEGREES(ATAN(C30/(C30+(Q17)/1000*J32))),DEGREES(ATAN((C30/2)/((C30/2)+(((Q17)/2)/1000*J32))))) -> 17.42619691 | Q30: =IF(C3="Sonderfall ohne indirekte Einw.",0,45) -> 45 | R30: =IF(C3="Sonderfall ohne indirekte Einw.",0,45) -> 45 | AC30: =IF(AND(C4="Kappenanker HPA M24",(C8-C10)<56),1,0) -> 0 | AD30: =IF(AND(C4="Kappenanker HPA M24",(C8-AD73)<56),1,0) -> 0 | AE30: =IF(AND(C4="Kappenanker HPA M24",(C8-AG73)<56),1,0) -> 0
N31: VSd,y/x [kN/A]
B32: Übertragung direkte / indirekte Querkraft-Einwirkungen | F32: Abstand Randbereich (6 m vor ÜKO) sx,Rand | J32: 450 | K32: [mm] | N32: Winkel Kappe VSd,y/x [°] | O32: =IF(G5="Einreihige Ankeranordnung",DEGREES(ATAN(C30/(C30+(Q17)/1000*J32))),DEGREES(ATAN((C30/2)/((C30/2)+(((Q17)/2)/1000*J32))))) -> 17.42619691 | P32: =DEGREES(ATAN(C30/(C30+((Q17)/1000*J32)))) -> 17.42619691 | Q32: =IF(C3="Sonderfall ohne indirekte Einw.",0,45) -> 45 | R32: =IF(C3="Sonderfall ohne indirekte Einw.",0,45) -> 45 | S32: 45° wird nicht benötigt, weil in Kappe kein Betonkantenbruch berechnet wird | Y32: hT,eff,min gewählt | AB32: Summe | AC32: =SUM(AC28:AC31) -> 0 | AD32: =SUM(AD28:AD30) -> 0 | AE32: =SUM(AE28:AE30) -> 0
B33: Querkraft Kappe → Tragwerk | C33: Kappenverankerung HPA | F33: =IF(Q71=0,"Verankerung Randbereich zulässig","Verankerung Randbereich nicht zulässig") -> Verankerung Randbereich zulässig | Q33: Dübelwahl C4 | R33: hT,eff,min | S33: do | T33: hk,eff | U33: hTeff | V33: hk gewählt | W33: Bohrdurchmesser für Betondeckung unter Bohrloch | AC33: 2xdo mit htef gewählt | AD33: 2xdo mit hTef mit längerem HPA | AE33: 2xdo mit hTef mit küzerem HPA
B37: Ergebnisse | M37: Anprall Fahrzeugrückhaltesystem | Q37: Kappenanker HPA M16 | R37: 100 | S37: 18 | W37: =VLOOKUP(C4,Q37:U42,3) -> 28 | Y37: =VLOOKUP(C4,Q37:U42,2) -> 100
B38: Mittelbereich | M38: Anprall Schrammbord | Q38: Kappenanker HPA M20 | R38: 100 | S38: 22 | X38: Mindesttragwerkhöhe
D39: Tragwerk | F39: Kappe | H39: Tragwerk | J39: Kappe | M39: Wind auf Lärmschutzwand | Q39: Kappenanker HPA M24 | R39: 100 | S39: 28 | X39: =MAX(C10+2*W37,C10) -> 206
D40: Einwirkungen HPA-Reihe 1 | H40: Einwirkungen HPA-Reihe 2
B41: Zugkraft | C41: NEd | D41: =O20 -> 13.10738255 | E41: [kN] | F41: =O20 -> 13.10738255 | G41: [kN] | H41: =IF(Eingabe!$G$5="Einreihige Ankeranordnung","",P20) -> 9.724832215 | I41: =IF($G$5="Zweireihige Ankeranordnung","[kN]","") -> [kN] | J41: =IF(Eingabe!$G$5="Einreihige Ankeranordnung","",P20) -> 9.724832215 | K41: =IF($G$5="Zweireihige Ankeranordnung","[kN]","") -> [kN] | N41: Anschlussbewehrung
B42: Querkraft auf Stahl | C42: VEd,y,Stahl | D42: =Tragwerk!B70 -> 32.23078125 | E42: [kN] | F42: =Kappe!B61 -> 32.23078125 | G42: [kN] | H42: =IF(Eingabe!$G$5="Einreihige Ankeranordnung","",Tragwerk!G70) -> 32.23078125 | I42: =IF((Eingabe!$G$5="Zweireihige Ankeranordnung"),"[kN]","") -> [kN] | J42: =IF(Eingabe!$G$5="Einreihige Ankeranordnung","",Kappe!G61) -> 32.23078125 | K42: =IF(AND(Eingabe!$G$5="Zweireihige Ankeranordnung"),"[kN]","") -> [kN] | N42: Kappenverankerung HPA | Q42: Mitte
B43: Querkraft auf Beton | C43: VEd,y,Beton | D43: =Tragwerk!B93 -> 64.4615625 | E43: [kN] | F43: =Kappe!B84 -> 32.23078125 | G43: [kN] | H43: =IF(Eingabe!$G$5="Einreihige Ankeranordnung","",Tragwerk!G93) -> 32.23078125 | I43: =IF((Eingabe!$G$5="Zweireihige Ankeranordnung"),"[kN]","") -> [kN] | J43: =IF($G$5="Zweireihige Ankeranordnung",Kappe!G84,"") -> 64.4615625 | K43: =IF(AND(Eingabe!$G$5="Zweireihige Ankeranordnung"),"[kN]","") -> [kN] | N43: Schubschwelle | Q43: Dübelreihe 1 | R43: Dübelreihe 2 | T43: Dübelauswahl | V43: Höhe Kopfbolzen HK1 | W43: gewählt | X43: max. mögl. Verank.-länge Kopf hkeff = Hk - cnom - HK1 | Z43: dp Mutter | AA43: An,Mutter | AB43: dp Kopfplatte | AD43: An,Kopfplatte | AE43: Dübel-Durchm.
D44: Widerstände HPA-Reihe 1 | H44: Widerstände HPA-Reihe 2 | P44: Ausnutz Tragw. | Q44: =IF(D41>D45,1,0) -> 0 | R44: =IF(H41>H45,1,0) -> 0 | T44: Kappenanker HPA M16 | V44: 13 | W44: =VLOOKUP(C4,T44:V46,3) -> 19 | X44: =C18-C19-V44 -> 102 | Z44: 24 | AA44: 251 | AB44: 24 | AD44: =PI()*(POWER(AB44,2)-POWER(16,2))/4 -> 251.3274123 | AE44: 16
B45: Zug, Betonausbruch | C45: NRd,c | D45: =HLOOKUP(LEFT($C$4,21),Tragwerk!A14:E52,39) -> 54.13397418 | E45: [kN] | F45: =HLOOKUP(LEFT($C$4,21),Kappe!A12:E60,25) -> 34.88073394 | G45: [kN] | H45: =IF(Eingabe!$G$5="Einreihige Ankeranordnung","",HLOOKUP(LEFT($C$4,21),Tragwerk!F14:J52,39)) -> 54.13397418 | I45: =IF($G$5="Zweireihige Ankeranordnung","[kN]","") -> [kN] | J45: =IF(Eingabe!$G$5="Einreihige Ankeranordnung","",HLOOKUP(LEFT($C$4,21),Kappe!F12:J36,25)) -> 34.88073394 | K45: =IF($G$5="Zweireihige Ankeranordnung","[kN]","") -> [kN] | N45: Zustand I | Q45: =IF(D41>D46,1,0) -> 0 | R45: =IF(H41>H46,1,0) -> 0 | T45: Kappenanker HPA M20 | V45: 16 | X45: =C18-C19-V45 -> 99 | Z45: 30 | AA45: 393 | AB45: 50 | AD45: =PI()*(POWER(AB45,2)-POWER(20,2))/4 -> 1649.336143 | AE45: 20
B46: Zug, Herausziehen | C46: NRd,p | D46: =HLOOKUP(LEFT($C$4,21),Tragwerk!A14:E52,28) -> 76.72237881 | E46: [kN] | F46: =HLOOKUP(LEFT($C$4,21),Kappe!A12:E60,13) -> 88.28125 | G46: [kN] | H46: =IF(Eingabe!$G$5="Einreihige Ankeranordnung","",HLOOKUP(LEFT($C$4,21),Tragwerk!F14:J52,28)) -> 76.72237881 | I46: =IF($G$5="Zweireihige Ankeranordnung","[kN]","") -> [kN] | J46: =IF(Eingabe!$G$5="Einreihige Ankeranordnung","",HLOOKUP(LEFT($C$4,21),Kappe!F12:J36,13)) -> 88.28125 | K46: =IF($G$5="Zweireihige Ankeranordnung","[kN]","") -> [kN] | N46: Zustand II | Q46: =IF(D42>D47,1,0) -> 0 | R46: =IF(H42>H47,1,0) -> 0 | T46: Kappenanker HPA M24 | V46: 19 | X46: =C18-C19-V46 -> 96 | Z46: 36 | AA46: 565 | AB46: 70 | AD46: =PI()*((POWER(AB46,2)-POWER(24,2))/4) -> 3396.061659 | AE46: 24
B47: Querkraft, Stahlversagen | C47: VRd,s | D47: =HLOOKUP(LEFT($C$4,21),Tragwerk!A14:E69,56) -> 79.23 | E47: [kN] | F47: =HLOOKUP(LEFT($C$4,21),Kappe!A12:E60,49) -> 79.23 | G47: [kN] | H47: =IF((Eingabe!$G$5="Zweireihige Ankeranordnung"),HLOOKUP(LEFT($C$4,21),Tragwerk!F14:J69,56),"") -> 79.23 | I47: =IF($G$5="Zweireihige Ankeranordnung","[kN]","") -> [kN] | J47: =IF(Eingabe!$G$5="Zweireihige Ankeranordnung",HLOOKUP(LEFT($C$4,21),Kappe!F12:J60,49),"") -> 79.23 | K47: =IF($G$5="Zweireihige Ankeranordnung","[kN]","") -> [kN] | Q47: =IF(D43>D48,1,0) -> 0 | R47: =IF(H43>H48,1,0) -> 0
B48: Querkraft, Betonversagen | C48: VRd,c/cp | D48: =HLOOKUP(LEFT($C$4,21),Tragwerk!A14:E92,79) -> 108.2679484 | E48: [kN] | F48: =HLOOKUP(LEFT($C$4,21),Kappe!A12:E67,56) -> 69.76146787 | G48: [kN] | H48: =IF((Eingabe!$G$5="Zweireihige Ankeranordnung"),HLOOKUP(LEFT($C$4,21),Tragwerk!F14:J92,79),"") -> 108.2679484 | I48: =IF($G$5="Zweireihige Ankeranordnung","[kN]","") -> [kN] | J48: =IF(Eingabe!$G$5="Zweireihige Ankeranordnung",HLOOKUP(LEFT($C$4,21),Kappe!F12:J67,56),"") -> 69.76146787 | K48: =IF($G$5="Zweireihige Ankeranordnung","[kN]","") -> [kN] | N48: berücksichtigen | Q48: =IF(D49>100.9,1,0) -> 0 | R48: =IF(H49>100.9,1,0) -> 0
B49: Ausnutzung Stahl / Beton ≤ 100 [%] | D49: =MAX(Tragwerk!$B$105*100,Tragwerk!$B$106*100) -> 57.85541463 | E49: [%] | F49: =MAX(Kappe!$B$96*100,Kappe!$B$97*100) -> 54.43923409 | G49: [%] | H49: =IF($G$5="Zweireihige Ankeranordnung",MAX(Tragwerk!$G$105*100,Tragwerk!$G$106*100),"") -> 40.68002177 | I49: =IF($G$5="Zweireihige Ankeranordnung","[%]","") -> [%] | J49: =IF($G$5="Zweireihige Ankeranordnung",MAX(Kappe!G96*100,Kappe!G97*100),"") -> 100.2358817 | K49: =IF($G$5="Zweireihige Ankeranordnung","[%]","") -> [%] | N49: nicht berücksichtigen | P49: Ausnutz Kappe | Q49: =IF(F41>F45,1,0) -> 0 | R49: =IF(J41<=J45,0,1) -> 0 | S49: Kopfbolzenart | T49: An | U49: d kopf | V49: An gewählt | W49: An maßgeb. | X49: dp maßgeb | Y49: Dimension Kopf | Z49: dp gew. | AA49: An gewählt | AB49: dp gewählt | AD49: An gewählt | AE49: D gewählt
B50: Randbereich (je 6 m vor ÜKO) | Q50: =IF(F41>F46,1,0) -> 0 | R50: =IF(J41<=J46,0,1) -> 0 | S50: Kopfplatte HPA-K M20x50x16 | T50: =AD45 -> 1649.336143 | U50: 50 | V50: =VLOOKUP(C15,S50:T54,2) -> 565 | W50: =V50 -> 565 | X50: =VLOOKUP(C15,S50:U54,3) -> 36 | Y50: 20 | Z50: =VLOOKUP(C4,T44:Z46,7) -> 36 | AA50: =VLOOKUP(C4,T44:AA46,8) -> 565 | AB50: =VLOOKUP(C4,T44:AB46,9) -> 70 | AD50: =VLOOKUP(C4,T44:AD46,11) -> 3396.061659 | AE50: =VLOOKUP(C4,T44:AE46,12) -> 24
D51: Tragwerk | F51: Kappe | H51: Tragwerk | J51: Kappe | Q51: =IF(F42>F47,1,0) -> 0 | R51: =IF(J42<=J47,0,1) -> 0 | S51: Kopfplatte HPA-K M24x70x19 | T51: =AD46 -> 3396.061659 | U51: 70 | X51: 50 | Y51: 24
D52: Einwirkungen HPA-Reihe 1 | H52: Einwirkungen HPA-Reihe 2 | Q52: =IF(F43>F48,1,0) -> 0 | R52: =IF(J43<=J48,0,1) -> 0 | S52: Sechskantmutter A4 M16 | T52: =AA44 -> 251 | U52: 24 | Y52: 16
B53: Zugkraft | C53: NEd | D53: =O25 -> 6.553691275 | E53: [kN] | F53: =O25 -> 6.553691275 | G53: [kN] | H53: =IF(Eingabe!$G$5="Einreihige Ankeranordnung","",P25) -> 4.862416107 | I53: =IF($G$5="Zweireihige Ankeranordnung","[kN]","") -> [kN] | J53: =IF(Eingabe!$G$5="Einreihige Ankeranordnung","",P25) -> 4.862416107 | K53: =IF($G$5="Zweireihige Ankeranordnung","[kN]","") -> [kN] | Q53: =IF(F49>100.9,1,0) -> 0 | R53: =IF(J49>100.9,1,0) -> 0 | S53: Sechskantmutter A4 M20 | T53: =AA45 -> 393 | U53: 30 | Y53: 20
B54: Querkraft auf Stahl | C54: VEd,x/y,Stahl | D54: =Tragwerk!M70 -> 20.03492348 | E54: [kN] | F54: =Kappe!L61 -> 20.03492348 | G54: [kN] | H54: =IF(Eingabe!$G$5="Einreihige Ankeranordnung","",Tragwerk!R70) -> 20.03492348 | I54: =IF((Eingabe!$G$5="Zweireihige Ankeranordnung"),"[kN]","") -> [kN] | J54: =IF(Eingabe!$G$5="Einreihige Ankeranordnung","",Kappe!Q61) -> 20.03492348 | K54: =IF(AND(Eingabe!$G$5="Zweireihige Ankeranordnung"),"[kN]","") -> [kN] | P54: einreihig | Q54: =IF(SUM(Q44:Q53)=0,0,1) -> 0 | S54: Sechskantmutter A4 M24 | T54: =AA46 -> 565 | U54: 36 | Y54: 24
B55: Querkraft auf Beton | C55: VEd,x/y,Beton | D55: =Tragwerk!M93 -> 40.06984695 | E55: [kN] | F55: =Kappe!L84 -> 20.03492348 | G55: [kN] | H55: =IF(Eingabe!$G$5="Einreihige Ankeranordnung","",Tragwerk!R93) -> 20.03492348 | I55: =IF((Eingabe!$G$5="Zweireihige Ankeranordnung"),"[kN]","") -> [kN] | J55: =IF($G$5="Zweireihige Ankeranordnung",Kappe!Q84,"") -> 40.06984695 | K55: =IF(AND(Eingabe!$G$5="Zweireihige Ankeranordnung"),"[kN]","") -> [kN] | P55: zweireihig | Q55: =IF(SUM(Q44:R53)=0,0,1) -> 0 | Y55: gewählt
D56: Widerstände HPA-Reihe 1 | H56: Widerstände HPA-Reihe 2 | P56: relevant | Q56: =IF(G5="Einreihige Ankeranordnung",Q54,Q55) -> 0 | Y56: =VLOOKUP(C15,S50:Y54,7) -> 24
B57: Zug, Betonausbruch | C57: NRd,c | D57: =HLOOKUP(LEFT($C$4,21),Tragwerk!M14:O52,39) -> 54.13397418 | E57: [kN] | F57: =HLOOKUP(LEFT($C$4,21),Kappe!L12:N60,25) -> 34.88073394 | G57: [kN] | H57: =IF(Eingabe!$G$5="Einreihige Ankeranordnung","",HLOOKUP(LEFT($C$4,21),Tragwerk!R14:T52,39)) -> 54.13397418 | I57: =IF($G$5="Zweireihige Ankeranordnung","[kN]","") -> [kN] | J57: =IF(Eingabe!$G$5="Einreihige Ankeranordnung","",HLOOKUP(LEFT($C$4,21),Kappe!Q12:S36,25)) -> 34.88073394 | K57: =IF($G$5="Zweireihige Ankeranordnung","[kN]","") -> [kN] | Q57: Rand | T57: max. mögl. Kopfbolzenhöhe hkeff = Hk - cnom - HK1
B58: Zug, Herausziehen | C58: NRd,p | D58: =HLOOKUP(LEFT($C$4,21),Tragwerk!M14:O52,28) -> 76.72237881 | E58: [kN] | F58: =HLOOKUP(LEFT($C$4,21),Kappe!L12:N60,13) -> 88.28125 | G58: [kN] | H58: =IF(Eingabe!$G$5="Einreihige Ankeranordnung","",HLOOKUP(LEFT($C$4,21),Tragwerk!R14:T52,28)) -> 76.72237881 | I58: =IF($G$5="Zweireihige Ankeranordnung","[kN]","") -> [kN] | J58: =IF(Eingabe!$G$5="Einreihige Ankeranordnung","",HLOOKUP(LEFT($C$4,21),Kappe!Q12:S36,13)) -> 88.28125 | K58: =IF($G$5="Zweireihige Ankeranordnung","[kN]","") -> [kN] | Q58: Dübelreihe 1 | R58: Dübelreihe 2 | T58: =C18-C19-W44 -> 96
B59: Querkraft, Stahlversagen | C59: VRd,s | D59: =HLOOKUP(LEFT($C$4,21),Tragwerk!M14:O69,56) -> 79.23 | E59: [kN] | F59: =HLOOKUP(LEFT($C$4,21),Kappe!L12:N60,49) -> 79.23 | G59: [kN] | H59: =IF((Eingabe!$G$5="Zweireihige Ankeranordnung"),HLOOKUP(LEFT($C$4,21),Tragwerk!R14:T69,56),"") -> 79.23 | I59: =IF($G$5="Zweireihige Ankeranordnung","[kN]","") -> [kN] | J59: =IF(Eingabe!$G$5="Zweireihige Ankeranordnung",HLOOKUP(LEFT($C$4,21),Kappe!Q12:S60,49),"") -> 79.23 | K59: =IF($G$5="Zweireihige Ankeranordnung","[kN]","") -> [kN] | P59: Ausnutz Tragw. | Q59: =IF(D53>D57,1,0) -> 0 | R59: =IF(H53>H57,1,0) -> 0
B60: Querkraft, Betonversagen | C60: VRd,c/cp | D60: =HLOOKUP(LEFT($C$4,21),Tragwerk!M14:O92,79) -> 108.2679484 | E60: [kN] | F60: =HLOOKUP(LEFT($C$4,21),Kappe!L12:N67,56) -> 69.76146787 | G60: [kN] | H60: =IF((Eingabe!$G$5="Zweireihige Ankeranordnung"),HLOOKUP(LEFT($C$4,21),Tragwerk!R14:T92,79),"") -> 108.2679484 | I60: =IF($G$5="Zweireihige Ankeranordnung","[kN]","") -> [kN] | J60: =IF(Eingabe!$G$5="Zweireihige Ankeranordnung",HLOOKUP(LEFT($C$4,21),Kappe!Q12:S67,56),"") -> 69.76146787 | K60: =IF($G$5="Zweireihige Ankeranordnung","[kN]","") -> [kN] | Q60: =IF(D53>D58,1,0) -> 0 | R60: =IF(H53>H58,1,0) -> 0
B61: Ausnutzung Stahl / Beton ≤ 100 [%] | D61: =MAX(Tragwerk!$M$105*100,Tragwerk!$M$106*100) -> 26.72759099 | E61: [%] | F61: =MAX(Kappe!L96*100,Kappe!L97*100) -> 25.28704213 | G61: [%] | H61: =IF($G$5="Zweireihige Ankeranordnung",MAX(Tragwerk!$R$105*100,Tragwerk!$R$106*100),"") -> 25.28704213 | I61: =IF($G$5="Zweireihige Ankeranordnung","[%]","") -> [%] | J61: =IF($G$5="Zweireihige Ankeranordnung",MAX(Kappe!Q96*100,Kappe!Q97*100),"") -> 48.73619632 | K61: =IF($G$5="Zweireihige Ankeranordnung","[%]","") -> [%] | Q61: =IF(D54>D59,1,0) -> 0 | R61: =IF(H54>H59,1,0) -> 0
Q62: =IF(D55>D60,1,0) -> 0 | R62: =IF(H55>H60,1,0) -> 0
Q63: =IF(D61>100.9,1,0) -> 0 | R63: =IF(H61>100.9,1,0) -> 0
P64: Ausnutz Kappe | Q64: =IF(F53>F57,1,0) -> 0 | R64: =IF(J53>J57,1,0) -> 0
Q65: =IF(F53>F58,1,0) -> 0 | R65: =IF(J53>J58,1,0) -> 0
Q66: =IF(F54>F59,1,0) -> 0 | R66: =IF(J54>J59,1,0) -> 0
Q67: =IF(F55>F60,1,0) -> 0 | R67: =IF(J55>J60,1,0) -> 0
Q68: =IF(F61>100.9,1,0) -> 0 | R68: =IF(J61>100.9,1,0) -> 0
P69: einreihig | Q69: =IF(SUM(Q59:Q68)=0,0,1) -> 0
P70: zweireihig | Q70: =IF(SUM(Q59:R68)=0,0,1) -> 0 | S70: gewählter Dübel-Ø | T70: Dübel-Durchm. | U70: Dübellänge l vorh | V70: Art. ohne Art.-Nr. sind Sopo | X70: Auswahl kurz/lang lt. Artikel | AA70: kürzerer HPA gewählt nach Art.-Nr: | AD70: längerer HPA ohne Check hT mit 2xdo | AG70: kürzerer HPA ohne Check hT mit 2xdo
P71: relevant | Q71: =IF(G5="Einreihige Ankeranordnung",Q69,Q70) -> 0 | S71: =AE50 -> 24 | T71: 16 | U71: =IF(S75<200,S75,) -> 0 | V71: ="Set HPA A4 M16x"&(U71) &" inkl. Mutter u. Stauscheibe" -> Set HPA A4 M16x0 inkl. Mutter u. Stauscheibe | Z71: =IF(S71=16,VLOOKUP(X72,U71:V78,2),IF(S71=20,VLOOKUP(X80,U79:V89,2),IF(S71=24,VLOOKUP(X91,U90:V97,2)))) -> Set HPA A4 M24x260 inkl. Mutter u. Stauscheibe (2330230) | AD71: =IF(S71=16,VLOOKUP(X73,U71:U78,1),IF(S71=20,VLOOKUP(X81,U79:U89,1),IF(S71=24,VLOOKUP(X92,U90:U97,1)))) -> 300 | AG71: =IF(S71=16,VLOOKUP(X72,U71:U78,1),IF(S71=20,VLOOKUP(X80,U79:U89,1),IF(S71=24,VLOOKUP(X91,U90:U97,1)))) -> 260
S72: exakte Mindestlänge mit hT,ef gewählt aus C22: | T72: 16 | U72: 200 | V72: Set HPA A4 M16x200 inkl. Mutter u. Stauscheibe (2329936) | X72: =LOOKUP(S75,U71:U78) -> 260 | AA72: längerer HPA gewählt nach Art.-Nr: | AD72: hT,vorh mit längerem HPA | AG72: hT,vorh mit kürzerem HPA
S73: =C22 -> 273 | T73: 16 | U73: 220 | V73: Set HPA A4 M16x220 inkl. Mutter u. Stauscheibe (2329937) | X73: =IF(S75<350,INDEX(U71:U78,MATCH(S75,U71:U78,1)+1),ROUNDUP(S75,-1)) -> 300 | Z73: =IF(S71=16,VLOOKUP(X73,U71:V78,2),IF(S71=20,VLOOKUP(X81,U79:V89,2),IF(S71=24,VLOOKUP(X92,U90:V97,2)))) -> Set HPA A4 M24x300 inkl. Mutter u. Stauscheibe (2330231) | AD73: =AD71-C20-C21-H80 -> 177 | AG73: =AG71-C20-C21-H80 -> 137
S74: auf 0 und 5 gerundete Mindestlänge mit hT,ef gewählt aus C22: | T74: 16 | U74: 240 | V74: Set HPA A4 M16x240 inkl. Mutter u. Stauscheibe (2329938) | AA74: Check mit HT + 2 x do: HPA im Nachweis | AD74: hT,max. möglich mit HPA Durchmesser
S75: =ROUND(C22/5,0)*5 -> 275 | T75: 16 | U75: 260 | V75: Set HPA A4 M16x260 inkl. Mutter u. Stauscheibe (2329939) | Z75: =IF(AE32=0,Z71,Z73) -> Set HPA A4 M24x260 inkl. Mutter u. Stauscheibe (2330230) | AD75: =C8-2*W37 -> 184
T76: 16 | U76: 300 | V76: Set HPA A4 M16x300 inkl. Mutter u. Stauscheibe (2330220) | AD76: längerer HPA mit Check hT mit 2xdo | AG76: kürzerer HPA mit Check hT mit 2xdo
T77: 16 | U77: 350 | V77: Set HPA A4 M16x350 inkl. Mutter u. Stauscheibe (2344761) | AD77: =IF(AD32=1,"längerer HPA nicht ok","längerer HPA ist ok") -> längerer HPA ist ok | AG77: =IF(AE32=1,"kürzerer HPA nicht ok","kürzerer HPA ist ok") -> kürzerer HPA ist ok
T78: 16 | U78: =IF(S75>U77,S75,) -> 0 | V78: ="Set HPA A4 M16x"&(U78)&" inkl. Mutter u. Stauscheibe" -> Set HPA A4 M16x0 inkl. Mutter u. Stauscheibe | AA78: projektspez. Art.-Set wenn 2 x do nicht ok | AD78: Auslastung in TW ok?
C79: Dicke für Nachweis | D79: maßg. Dicke für Nachweis | E79: ohne V mit Hebel | F79: Dicke für D-Länge | H79: Dicke für D-Länge | T79: 20 | U79: =IF(S75<180,S75,) -> 0 | V79: ="Set HPA A4 M20x"&(U79)&" inkl. Mutter u. Stauscheibe" -> Set HPA A4 M20x0 inkl. Mutter u. Stauscheibe | Z79: ="HPA A4 spez. M"&S71&"x"&S75 -> HPA A4 spez. M24x275 | AD79: =IF(AND(D49<100.9,D61<100.9,H49<100.9,H61<100.9),"ok","nicht ok") -> ok
B80: Bitumen-Schweißbahn einlagig + Schutzlage, Dicke 8 mm | C80: 0 | D80: =VLOOKUP(F4,B80:C85,2,0) -> 0 | E80: =IF(F4="Bitumen-Schweißbahn zweilagig + Schutzlage, Dicke 13 mm",1,0) -> 0 | F80: 8 | H80: =VLOOKUP(F4,B80:F85,5,0) -> 8 | T80: 20 | U80: 180 | V80: Set HPA A4 M20x180 inkl. Mutter u. Stauscheibe (2330221) | X80: =LOOKUP(S75,U79:U89) -> 260 | AA80: (wird nicht mehr benötigt weil in Z71 drin) | AD80: Länge HPA für Nachweis und Ausdruck
B81: Bitumen-Schweißbahn einlagig, Dicke 5 mm | C81: 0 | F81: 5 | T81: 20 | U81: 200 | V81: Set HPA A4 M20x200 inkl. Mutter u. Stauscheibe (2340256) | X81: =IF(S75<380,INDEX(U79:U89,MATCH(S75,U79:U89,1)+1),ROUNDUP(S75,-1)) -> 300 | AD81: =IF(AE32=0,AG71,IF(AD32=0,AD71,S75)) -> 260
B82: Bitumen-Schweißbahn zweilagig + Schutzlage, Dicke 13 mm | C82: 13 | F82: 13 | T82: 20 | U82: 220 | V82: Set HPA A4 M20x220 inkl. Mutter u. Stauscheibe (2330222) | AD82: tatsächliche hT,ef für Ausdruck, Menge HIT und Nachweise!
B83: Bitumen-Schweißbahn zweilagig, Dicke 10 mm | C83: 0 | F83: 10 | T83: 20 | U83: 240 | V83: Set HPA A4 M20x240 inkl. Mutter u. Stauscheibe (2330223) | AD83: =AD81-C20-C21-H80 -> 137
B84: Flüssigkunststoff-Abdichtung, Dicke 3 mm | C84: 0 | F84: 3 | T84: 20 | U84: 260 | V84: Set HPA A4 M20x260 inkl. Mutter u. Stauscheibe (2330224)
B85: keine Dichtung vorhanden, Dicke 0 mm | C85: 0 | F85: 0 | T85: 20 | U85: 300 | V85: Set HPA A4 M20x300 inkl. Mutter u. Stauscheibe (2330225) | AD85: HIT-Menge für Stauscheibe
T86: 20 | U86: 330 | V86: Set HPA A4 M20x330 inkl. Mutter u. Stauscheibe (2330226) | AD86: =IF(S71=16,30,IF(S71=20,25,IF(S71=24,20,))) -> 20 | AE86: ml/HPA
T87: 20 | U87: 350 | V87: Set HPA A4 M20x350 inkl. Mutter u. Stauscheibe (2330227) | AD87: HIT-Menge erforderlich je HPA (Neubau, Instandsetzung)
B88: Betrachtung für benötigte Längen bei: | D88: 145/150 | E88: 230 | T88: 20 | U88: 380 | V88: Set HPA A4 M20x380 inkl. Mutter u. Stauscheibe (2330228) | AD88: =(AD83*PI()*((W37+2)*(W37+2)-(S71-2)*(S71-2))/4000)+AD86 -> 64.76141213 | AE88: ml/HPA
B89: hT,ef = 120 mm | C89: cnom = 0 | D89: 280 | E89: - | T89: 20 | U89: =IF(S75>U88,S75,) -> 0 | V89: ="Set HPA A4 M20x"&(U89)&" inkl. Mutter u. Stauscheibe" -> Set HPA A4 M20x0 inkl. Mutter u. Stauscheibe | AD89: HIT-Menge erforderlich je HPA (nachträgl. Kappenverankerung)
B90: HK = 145/150 und 230 mm | C90: cnom = 30 | D90: 250 | E90: 330 | T90: 24 | U90: =IF(S75<220,S75,) -> 0 | V90: ="Set HPA A4 M24x"&(U90)&" inkl. Mutter u. Stauscheibe" -> Set HPA A4 M24x0 inkl. Mutter u. Stauscheibe | AD90: =(((T58+H80+AD83)*PI()*((W37+2)*(W37+2)-(S71-2)*(S71-2)))/4000)+20 -> 98.74087827 | AE90: ml/HPA
B91: einlag.+V13/zweilagig +V13 | C91: cnom = 50 | D91: 230 | E91: - | T91: 24 | U91: 220 | V91: Set HPA A4 M24x220 inkl. Mutter u. Stauscheibe (2340257) | X91: =LOOKUP(S75,U90:U97) -> 260 | AD91: HIT maßgebend nach BV
C92: cnom = 60 | D92: 220 | E92: 300 | T92: 24 | U92: 240 | V92: Set HPA A4 M24x240 inkl. Mutter u. Stauscheibe (2330229) | X92: =IF(S75<450,INDEX(U90:U97,MATCH(S75,U90:U97,1)+1),ROUNDUP(S75,-1)) -> 300 | AD92: =IF(C3="Nachträgliche Kappenverankerung",AD90,AD88) -> 64.76141213 | AE92: ml/HPA
T93: 24 | U93: 260 | V93: Set HPA A4 M24x260 inkl. Mutter u. Stauscheibe (2330230) | AD93: =ROUNDUP(AD92,0) -> 65 | AE93: ml/HPA aufgerundet
B94: Betrachtung für benötigte Längen bei: | D94: 145/150 | E94: 230 | T94: 24 | U94: 300 | V94: Set HPA A4 M24x300 inkl. Mutter u. Stauscheibe (2330231)
B95: hT,ef = 140 mm | C95: cnom = 0 | D95: 300 | E95: - | T95: 24 | U95: 350 | V95: Set HPA A4 M24x350 inkl. Mutter u. Stauscheibe (2330232)
B96: HK = 145/150 und 230 mm | C96: cnom = 30 | D96: 270 | E96: 350 | T96: 24 | U96: 450 | V96: Set HPA A4 M24x450 inkl. Mutter u. Stauscheibe (2345552)
B97: einlag.+V13/zweilagig +V13 | C97: cnom = 50 | D97: 250 | E97: - | T97: 24 | U97: =IF(S75>U96,S75,) -> 0 | V97: ="Set HPA A4 M24x"&(U97)&" inkl. Mutter u. Stauscheibe" -> Set HPA A4 M24x0 inkl. Mutter u. Stauscheibe | AA97: kürzerer HPA gewählt nach Art.-Nr:
C98: cnom = 60 | D98: 240 | E98: 320 | U98: Art.-Nr. nachträgl. Kappenverank. ohne HIW | Z98: =IF(S71=16,VLOOKUP(X99,U99:V105,2),IF(S71=20,VLOOKUP(X107,U106:V116,2),IF(S71=24,VLOOKUP(X118,U117:V123,2)))) -> Set HPA A4 M24x260 inkl. Mutter (2332053)
T99: 16 | U99: =IF(S75<200,S75,) -> 0 | V99: ="Set HPA A4 M16x"&(U99)&" inkl. Mutter" -> Set HPA A4 M16x0 inkl. Mutter | X99: =LOOKUP(S75,U99:U105) -> 260 | AA99: längerer HPA gewählt nach Art.-Nr:
B100: Vorschlag: | T100: 16 | U100: 200 | V100: Set HPA A4 M16x200 inkl. Mutter (2331899) | X100: =IF(S75<300,INDEX(U99:U105,MATCH(S75,U99:U105,1)+1),ROUNDUP(S75,-1)) -> 300 | Z100: =IF(S71=16,VLOOKUP(X100,U99:V105,2),IF(S71=20,VLOOKUP(X108,U106:V116,2),IF(S71=24,VLOOKUP(X119,U117:V123,2)))) -> Set HPA A4 M24x300 inkl. Mutter (2332054)
B101: M16: 240 und 300 | T101: 16 | U101: 220 | V101: Set HPA A4 M16x220 inkl. Mutter (2332040) | AA101: Check mit HT + 2 x do: HPA im Nachweis
B102: M20/24: 240 und 250 wird 260, 270 kann auch auf 300 mit hT=170 gebracht werden: ergibt je 4 Größen: 260 / 300 / 330 / 350 | T102: 16 | U102: 240 | V102: Set HPA A4 M16x240 inkl. Mutter (2332041) | Z102: =IF(AE32=0,Z98,Z100) -> Set HPA A4 M24x260 inkl. Mutter (2332053)
T103: 16 | U103: 260 | V103: Set HPA A4 M16x260 inkl. Mutter (2332042)
T104: 16 | U104: 300 | V104: Set HPA A4 M16x300 inkl. Mutter (2332043)
B105: Vsd,x/y aus Zwang ensprechend Parameterstudie: | T105: 16 | U105: =IF(S75>U104,S75,) -> 0 | V105: ="Set HPA A4 M16x"&(U105)&" inkl. Mutter" -> Set HPA A4 M16x0 inkl. Mutter | Z105: Zwischenprüfung:
E106: ≤ 1,70 m | F106: 1,70 < b ≤ 2,35 m | G106: 2,35 < b ≤ 2,85 m | H106: 2,85 < b ≤ 3,35 m | T106: 20 | U106: =IF(S75<180,S75,) -> 0 | V106: ="Set HPA A4 M20x"&(U106)&" inkl. Mutter" -> Set HPA A4 M20x0 inkl. Mutter | Z106: =IF(C3="Nachträgliche Kappenverankerung",Z102,Z75) -> Set HPA A4 M24x260 inkl. Mutter u. Stauscheibe (2330230)
B107: Instandsetzung Kappe | E107: =IF(AND(C3="Instandsetzung Kappe",C12="≤ 1,70 m"),12,0) -> 12 | F107: =IF(AND(C3="Instandsetzung Kappe",C12="1,70 < b ≤ 2,35 m"),15,0) -> 0 | G107: =IF(AND(C3="Instandsetzung Kappe",C12="2,35 < b ≤ 2,85 m"),18,0) -> 0 | H107: =IF(AND(C3="Instandsetzung Kappe",C12="2,85 < b ≤ 3,35 m"),22,0) -> 0 | T107: 20 | U107: 180 | V107: Set HPA A4 M20x180 inkl. Mutter (2332044) | X107: =LOOKUP(S75,U106:U116) -> 260 | Z107: =IF(C3="Nachträgliche Kappenverankerung",Z150,Z131) -> Set HPA A4 M24x260 inkl. Kopfplatte u. Stauscheibe (2348596)
B108: Neubau Kappe und Überbau | E108: =IF(AND(C3="Neubau Kappe und Überbau",C12="≤ 1,70 m"),8,0) -> 0 | F108: =IF(AND(C3="Neubau Kappe und Überbau",C12="1,70 < b ≤ 2,35 m"),13,0) -> 0 | G108: =IF(AND(C3="Neubau Kappe und Überbau",C12="2,35 < b ≤ 2,85 m"),13,0) -> 0 | H108: =IF(AND(C3="Neubau Kappe und Überbau",C12="2,85 < b ≤ 3,35 m"),13,0) -> 0 | T108: 20 | U108: 200 | V108: Set HPA A4 M20x200 inkl. Mutter (2340493) | X108: =IF(S75<380,INDEX(U106:U116,MATCH(S75,U106:U116,1)+1),ROUNDUP(S75,-1)) -> 300 | Z108: =IF(OR(C15="Sechskantmutter A4 M16",C15="Sechskantmutter A4 M20",C15="Sechskantmutter A4 M24"),"mit Mutter","mit Kopfplatte") -> mit Mutter
B109: Nachträgliche Kappenverankerung | E109: =IF(AND(C3="Nachträgliche Kappenverankerung",C12="≤ 1,70 m"),8,0) -> 0 | F109: =IF(AND(C3="Nachträgliche Kappenverankerung",C12="1,70 < b ≤ 2,35 m"),13,0) -> 0 | G109: =IF(AND(C3="Nachträgliche Kappenverankerung",C12="2,35 < b ≤ 2,85 m"),13,0) -> 0 | H109: =IF(AND(C3="Nachträgliche Kappenverankerung",C12="2,85 < b ≤ 3,35 m"),13,0) -> 0 | T109: 20 | U109: 220 | V109: Set HPA A4 M20x220 inkl. Mutter (2332045)
B110: Sonderfall ohne indirekte Einw. | E110: 0 | F110: 0 | G110: 0 | H110: 0 | T110: 20 | U110: 240 | V110: Set HPA A4 M20x240 inkl. Mutter (2332046) | Z110: =IF(Z108="mit Kopfplatte",Z107,Z106) -> Set HPA A4 M24x260 inkl. Mutter u. Stauscheibe (2330230)
B111: maßgebender Zwang Vsdxy | E111: =MAX(E107:H110) -> 12 | T111: 20 | U111: 260 | V111: Set HPA A4 M20x260 inkl. Mutter (2332047) | Z111: (Das wird in Ausdruck übernommen)
T112: 20 | U112: 300 | V112: Set HPA A4 M20x300 inkl. Mutter (2332048)
T113: 20 | U113: 330 | V113: Set HPA A4 M20x330 inkl. Mutter (2332049)
T114: 20 | U114: 350 | V114: Set HPA A4 M20x350 inkl. Mutter (2332050)
T115: 20 | U115: 380 | V115: Set HPA A4 M20x380 inkl. Mutter (2332051)
T116: 20 | U116: =IF(S75>U115,S75,) -> 0 | V116: ="Set HPA A4 M20x"&(U116)&" inkl. Mutter" -> Set HPA A4 M20x0 inkl. Mutter
T117: 24 | U117: =IF(S75<220,S75,) -> 0 | V117: ="Set HPA A4 M24x"&(U117)&" inkl. Mutter" -> Set HPA A4 M24x0 inkl. Mutter
T118: 24 | U118: 220 | V118: Set HPA A4 M24x220 inkl. Mutter (2340494) | X118: =LOOKUP(S75,U117:U123) -> 260
T119: 24 | U119: 240 | V119: Set HPA A4 M24x240 inkl. Mutter (2332052) | X119: =IF(S75<350,INDEX(U117:U123,MATCH(S75,U117:U123,1)+1),ROUNDUP(S75,-1)) -> 300
T120: 24 | U120: 260 | V120: Set HPA A4 M24x260 inkl. Mutter (2332053)
T121: 24 | U121: 300 | V121: Set HPA A4 M24x300 inkl. Mutter (2332054)
T122: 24 | U122: 350 | V122: Set HPA A4 M24x350 inkl. Mutter (2332055)
T123: 24 | U123: =IF(S75>U122,S75,) -> 0 | V123: ="Set HPA A4 M24x"&(U123)&" inkl. Mutter" -> Set HPA A4 M24x0 inkl. Mutter
U124: Art.-Nr. Kappenverank. mit HPA-K und mit HIW
T125: 20 | U125: =IF(S75<180,S75,) -> 0 | V125: ="Set HPA A4 M20x"&(U125)&" inkl. Kopfplatte u. Stauscheibe" -> Set HPA A4 M20x0 inkl. Kopfplatte u. Stauscheibe
T126: 20 | U126: 180 | V126: Set HPA A4 M20x180 inkl. Kopfplatte u. Stauscheibe (2348275) | X126: =LOOKUP(S75,U125:U135) -> 260 | AA126: kürzerer HPA gewählt nach Art.-Nr:
T127: 20 | U127: 200 | V127: Set HPA A4 M20x200 inkl. Kopfplatte u. Stauscheibe (2348276) | X127: =IF(S75<380,INDEX(U125:U135,MATCH(S75,U125:U135,1)+1),ROUNDUP(S75,-1)) -> 300 | Z127: =IF(S71=16," ",IF(S71=20,VLOOKUP(X126,U125:V135,2),IF(S71=24,VLOOKUP(X137,U136:V142,2)))) -> Set HPA A4 M24x260 inkl. Kopfplatte u. Stauscheibe (2348596)
T128: 20 | U128: 220 | V128: Set HPA A4 M20x220 inkl. Kopfplatte u. Stauscheibe (2348277) | AA128: längerer HPA gewählt nach Art.-Nr:
T129: 20 | U129: 240 | V129: Set HPA A4 M20x240 inkl. Kopfplatte u. Stauscheibe (2348278) | Z129: =IF(S71=16," ",IF(S71=20,VLOOKUP(X127,U125:V135,2),IF(S71=24,VLOOKUP(X138,U136:V142,2)))) -> Set HPA A4 M24x300 inkl. Kopfplatte u. Stauscheibe (2348597)
T130: 20 | U130: 260 | V130: Set HPA A4 M20x260 inkl. Kopfplatte u. Stauscheibe (2348279) | AA130: Check mit HT + 2 x do: HPA im Nachweis
T131: 20 | U131: 300 | V131: Set HPA A4 M20x300 inkl. Kopfplatte u. Stauscheibe (2348590) | Z131: =IF(AE32=0,Z127,Z129) -> Set HPA A4 M24x260 inkl. Kopfplatte u. Stauscheibe (2348596) | BQ131: i
T132: 20 | U132: 330 | V132: Set HPA A4 M20x330 inkl. Kopfplatte u. Stauscheibe (2348591)
T133: 20 | U133: 350 | V133: Set HPA A4 M20x350 inkl. Kopfplatte u. Stauscheibe (2348592)
T134: 20 | U134: 380 | V134: Set HPA A4 M20x380 inkl. Kopfplatte u. Stauscheibe (2348593)
T135: 20 | U135: =IF(S75>U134,S75,) -> 0 | V135: ="Set HPA A4 M20x"&(U135)&" inkl. Kopfplatte u. Stauscheibe" -> Set HPA A4 M20x0 inkl. Kopfplatte u. Stauscheibe
T136: 24 | U136: =IF(S75<220,S75,) -> 0 | V136: ="Set HPA A4 M24x"&(U136)&" inkl. Kopfplatte u. Stauscheibe" -> Set HPA A4 M24x0 inkl. Kopfplatte u. Stauscheibe
T137: 24 | U137: 220 | V137: Set HPA A4 M24x220 inkl. Kopfplatte u. Stauscheibe (2348594) | X137: =LOOKUP(S75,U136:U142) -> 260
T138: 24 | U138: 240 | V138: Set HPA A4 M24x240 inkl. Kopfplatte u. Stauscheibe (2348595) | X138: =IF(S75<350,INDEX(U136:U142,MATCH(S75,U136:U142,1)+1),ROUNDUP(S75,-1)) -> 300
T139: 24 | U139: 260 | V139: Set HPA A4 M24x260 inkl. Kopfplatte u. Stauscheibe (2348596)
T140: 24 | U140: 300 | V140: Set HPA A4 M24x300 inkl. Kopfplatte u. Stauscheibe (2348597)
T141: 24 | U141: 350 | V141: Set HPA A4 M24x350 inkl. Kopfplatte u. Stauscheibe (2348598)
T142: 24 | U142: =IF(S75>U141,S75,) -> 0 | V142: ="Set HPA A4 M24x"&(U142)&" inkl. Kopfplatte u. Stauscheibe" -> Set HPA A4 M24x0 inkl. Kopfplatte u. Stauscheibe
U143: Art.-Nr. Kappenverank. mit HPA-K und ohne HIW
T144: 20 | U144: =IF(S75<180,S75,) -> 0 | V144: ="Set HPA A4 M20x"&(U144)&" inkl. Kopfplatte" -> Set HPA A4 M20x0 inkl. Kopfplatte
T145: 20 | U145: 180 | V145: Set HPA A4 M20x180 inkl. Kopfplatte (2348600) | X145: =LOOKUP(S75,U144:U154) -> 260 | AA145: kürzerer HPA gewählt nach Art.-Nr:
T146: 20 | U146: 200 | V146: Set HPA A4 M20x200 inkl. Kopfplatte (2348601) | X146: =IF(S75<380,INDEX(U144:U154,MATCH(S75,U144:U154,1)+1),ROUNDUP(S75,-1)) -> 300 | Z146: =IF(S71=16," ",IF(S71=20,VLOOKUP(X145,U144:V154,2),IF(S71=24,VLOOKUP(X156,U155:V161,2)))) -> Set HPA A4 M24x260 inkl. Kopfplatte (2348611)
T147: 20 | U147: 220 | V147: Set HPA A4 M20x220 inkl. Kopfplatte (2348602) | AA147: längerer HPA gewählt nach Art.-Nr:
T148: 20 | U148: 240 | V148: Set HPA A4 M20x240 inkl. Kopfplatte (2348603) | Z148: =IF(S71=16," ",IF(S71=20,VLOOKUP(X146,U144:V154,2),IF(S71=24,VLOOKUP(X157,U155:V161,2)))) -> Set HPA A4 M24x300 inkl. Kopfplatte (2348612)
T149: 20 | U149: 260 | V149: Set HPA A4 M20x260 inkl. Kopfplatte (2348604) | AA149: Check mit HT + 2 x do: HPA im Nachweis
T150: 20 | U150: 300 | V150: Set HPA A4 M20x300 inkl. Kopfplatte (2348605) | Z150: =IF(AE32=0,Z146,Z148) -> Set HPA A4 M24x260 inkl. Kopfplatte (2348611)
T151: 20 | U151: 330 | V151: Set HPA A4 M20x330 inkl. Kopfplatte (2348606)
T152: 20 | U152: 350 | V152: Set HPA A4 M20x350 inkl. Kopfplatte (2348607)
T153: 20 | U153: 380 | V153: Set HPA A4 M20x380 inkl. Kopfplatte (2348608)
T154: 20 | U154: =IF(S75>U153,S75,) -> 0 | V154: ="Set HPA A4 M20x"&(U154)&" inkl. Kopfplatte" -> Set HPA A4 M20x0 inkl. Kopfplatte
T155: 24 | U155: =IF(S75<220,S75,) -> 0 | V155: ="Set HPA A4 M24x"&(U155)&" inkl. Kopfplatte" -> Set HPA A4 M24x0 inkl. Kopfplatte
T156: 24 | U156: 220 | V156: Set HPA A4 M24x220 inkl. Kopfplatte (2348609) | X156: =LOOKUP(S75,U155:U161) -> 260
T157: 24 | U157: 240 | V157: Set HPA A4 M24x240 inkl. Kopfplatte (2348610) | X157: =IF(S75<350,INDEX(U155:U161,MATCH(S75,U155:U161,1)+1),ROUNDUP(S75,-1)) -> 300
T158: 24 | U158: 260 | V158: Set HPA A4 M24x260 inkl. Kopfplatte (2348611)
T159: 24 | U159: 300 | V159: Set HPA A4 M24x300 inkl. Kopfplatte (2348612)
T160: 24 | U160: 350 | V160: Set HPA A4 M24x350 inkl. Kopfplatte (2348613)
T161: 24 | U161: =IF(S75>U160,S75,) -> 0 | V161: ="Set HPA A4 M24x"&(U161)&" inkl. Kopfplatte" -> Set HPA A4 M24x0 inkl. Kopfplatte
N198: 2

Sheet Exceptionslist (hidden)
D2: Computer_Name
D3: DEFE1057 | E3: =IFERROR(MATCH(D3,D11:D1300,0),0) -> 0 | F3: Formel bei 1299 Usern anpassen!
D4: Domain
D5: hilti.com | E5: =IFERROR(MATCH(D5,F11:F500,0),0) -> 0
D7: User Credentials | E7: =E3+E5 -> 0
D10: Computer Name | F10: Domain | J10: E-Mail | K10: Warning
C11: 1 | D11: DESKTOP-KBJI55T | E11: (PC Lützow privat) | F11: max-boegl.biz | H11: Region | I11: DE | J11: =VLOOKUP(I11,H15:I19,2,) -> planer-support@hilti.com | K11: =VLOOKUP(I11,H15:J19,3,) -> Achtung, die erforderliche Autorisierung fehlt. Wenn Sie das Tool verwenden möchten, dann kontaktieren sie Hilti unter :
C12: 2 | D12: pc2 | F12: ssiftgn.local
C13: 3 | D13: STATIK-PC | F13: kuk.de
C14: 4 | D14: KAFFINE10 | F14: ls.mswv.ad.lvnbb.de
C15: 5 | D15: PC-Markoten-2 | F15: strassen.nrw.de | H15: DE | I15: planer-support@hilti.com | J15: Achtung, die erforderliche Autorisierung fehlt. Wenn Sie das Tool verwenden möchten, dann kontaktieren sie Hilti unter :
C16: 6 | D16: LT-12 | F16: wtm-hh.local | H16: AT | I16: atteamengineering@hilti.com | J16: Achtung, die erforderliche Autorisierung fehlt. Wenn Sie das Tool verwenden möchten, dann kontaktieren sie Hilti unter :
C17: 7 | D17: DESKTOP-PJ1I98R | F17: nblindschulte | H17: CH | I17: CHTeamInhaustechnik@hilti.com | J17: Achtung, die erforderliche Autorisierung fehlt. Wenn Sie das Tool verwenden möchten, dann kontaktieren sie Hilti unter :
C18: 8 | D18: WFS050 | F18: suh-ing.local | H18: NL | I18: NLTeamTechnischAdvies@hilti.com
C19: 9 | D19: IBW-PC-05 | F19: SRV-NET1.bin.site | H19: PL | I19: PROFISpomoc.pl@hilti.com
C20: 10 | D20: PC-SMARTIN | F20: inros-lackner.de; ilag.ilc.intern
C21: 11 | D21: PC-TKUSCHKE | F21: h-f.local
C22: 12 | D22: PC-KLIPSTEIN | F22: gehlen-ing.local
C23: 13 | D23: PC-NLICH | F23: kmp.local
C24: 14 | D24: Voelkel-PC | F24: S.LAP-CONSULT.COM
C25: 15 | D25: SMECHSNER | F25: trebes.local
C26: 16 | D26: PC-GOEPFERT-14 | F26: kmp.local
C27: 17 | D27: A-BohlanderJ | F27: grassl.local
C28: 18 | D28: Win7-18 | F28: IFW-INGENIEURE.DE
C29: 19 | D29: PC01 | F29: domain
C30: 20 | D30: SBU-CL-W1010
C31: 21 | D31: EDT-62
C32: 22 | D32: PC-001
C33: 23 | D33: PCFLESCH101
C34: 24 | D34: PCFLESCH102
C35: 25 | D35: PCFLESCH103
C36: 26 | D36: PC-W10-HHM
C37: 27 | D37: PCMD105
C38: 28 | D38: PCMD004
C39: 29 | D39: Igl-PC
C40: 30 | D40: DBRESSLER
C41: 31 | D41: NILGES-PC
C42: 32 | D42: OLI-16000
C43: 33 | D43: Oli-Ryzen_5
C44: 34 | D44: STATIK2
C45: 35 | D45: KUPFERSC-DC8100
C46: 36 | D46: MULTIMONITOR-W7
C47: 37 | D47: pc129
C48: 38 | D48: ws128
C49: 39 | D49: ws129
C50: 40 | D50: RVOGLER-PC
C51: 41 | D51: LC-PC01
C52: 42 | D52: LSHOP381
C53: 43 | D53: SRP-KC-181
C54: 44 | D54: PC-Loebbert
C55: 45 | D55: PC-JENNY
C56: 46 | D56: PC-LUEDERS
C57: 47 | D57: KAULE-PC
C58: 48 | D58: NBSchellenbauer
C59: 49 | D59: WKS799
C60: 50 | D60: WVW7PC13
C61: 51 | D61: WVW7WS02
C62: 52 | D62: WVW7PC04
C63: 53 | D63: WVW7PC19
C64: 54 | D64: WVW7PC14
C65: 55 | D65: PC-GAERTNER2
C66: 56 | D66: PC-Engler
C67: 57 | D67: CLN-A-34
C68: 58 | D68: PCDH
C69: 59 | D69: USER-PC
C70: 60 | D70: BERND-PC
C71: 61 | D71: BER-N1617000
C72: 62 | D72: BDC-C521C-B
C73: 63 | D73: BDC-C404C-B
C74: 64 | D74: SBU-CL-W1014
C75: 65 | D75: DEKOE-WS-VAM33
C76: 66 | D76: DESKTOP-KHNL9OO
C77: 67 | D77: PCBA-2018-10
C78: 68 | D78: ALFONS-2018
C79: 69 | D79: PC-MS
C80: 70 | D80: JEN-H17-WD
C81: 71 | D81: SBU-01
C82: 72 | D82: RT
C83: 73 | D83: PC-Noack
C84: 74 | D84: FOSNB562
C85: 75 | D85: EROS
C86: 76 | D86: W10-42
C87: 77 | D87: W10-11
C88: 78 | D88: NLStBV-ZN-P0494
C89: 79 | D89: UGUR2019
C90: 80 | D90: JAHN2014
C91: 81 | D91: KNEPPERGES
C92: 82 | D92: PC-PEULERS
C93: 83 | D93: PC-01519
C94: 84 | D94: PC-01344
C95: 85 | D95: PC-01754
C96: 86 | D96: iMac
C97: 87 | D97: PAB1501
C98: 88 | D98: PC-KRAFFT
C99: 89 | D99: DESKTOP
C100: 90 | D100: 5CG6274TGF
C101: 91 | D101: PC-SEITEL
C102: 92 | D102: COREL
C103: 93 | D103: PC-Reisacher
C104: 94 | D104: MA-LAPTOP-WIN10
C105: 95 | D105: LT-RAUSCH
C106: 96 | D106: PD1322
C107: 97 | D107: MAG-NB20180423
C108: 98 | D108: C13
C109: 99 | D109: PC02-PUH-0216
C110: 100 | D110: PC05
C111: 101 | D111: BERTRAM-HP
C112: 102 | D112: WS-IFW-09
C113: 103 | D113: WS-IFW-08
C114: 104 | D114: WS-IFW-02
C115: 105 | D115: WS-IFW-07
C116: 106 | D116: SP-20140202
C117: 107 | D117: PC-01626
C118: 108 | D118: PC-LORENZ-14
C119: 109 | D119: NB-BECKMANN
C120: 110 | D120: Kleffel-PC
C121: 111 | D121: LAPTOP-M0LIVF7O
C122: 112 | D122: PC-Pfann
C123: 113 | D123: BEPWS73
C124: 114 | D124: BEPWS41
C125: 115 | D125: PC-SCHMIDLE
C126: 116 | D126: PC-STRASSER
C127: 117 | D127: PDA1531
C128: 118 | D128: LAPTOP-P73
C129: 119 | D129: PC-SCHLENGER
C130: 120 | D130: PC-SGABLER
C131: 121 | D131: SCALEO
C132: 122 | D132: FJNEU2014-PC
C133: 123 | D133: M6600-01
C134: 124 | D134: NBKOEPPLJ
C135: 125 | D135: WIN7-03
C136: 126 | D136: CRISTIAN-NEU
C137: 127 | D137: PC112
C138: 128 | D138: Antje-10
C139: 129 | D139: WS-14
C140: 130 | D140: PC128
C141: 131 | D141: CAD-PET
C142: 132 | D142: SCHNEIDER1
C143: 133 | D143: SCHOBER-CARSTEN
C144: 134 | D144: HANS-CHRISTIAN
C145: 135 | D145: SCHORR-TONI
C146: 136 | D146: WE-NB-DOMHARDT2
C147: 137 | D147: WE-NB-ROST
C148: 138 | D148: WE-PC-ALJOMAAA
C149: 139 | D149: PL-PC-SPINDLER
C150: 140 | D150: PL-NB-FREITAG
C151: 141 | D151: WE-PC-MOOR
C152: 142 | D152: PC-KF
C153: 143 | D153: PL-PC-SEIFERT
C154: 144 | D154: WE-NB-WEISS2
C155: 145 | D155: WE-PC-PILLE
C156: 146 | D156: WE-NB-SETZ2
C157: 147 | D157: LAPP21
C158: 148 | D158: PC03
C159: 149 | D159: THESING-NEU
C160: 150 | D160: PC-JGRIMMINGER
C161: 151 | D161: PCH.ibvs.local
C162: 152 | D162: KHP-LAPTOP-SI
C163: 153 | D163: NBFI20
C164: 154 | D164: SOMMERHAEUSER
C165: 155 | D165: WTBOE68
C166: 156 | D166: WTBOE99
C167: 157 | D167: PC056
C168: 158 | D168: KIEL-NEU
C169: 159 | D169: PC-STATIK-WIN7
C170: 160 | D170: 20101215PC1
C171: 161 | D171: AN-B-PC-WEBER
C172: 162 | D172: PONT-DE-NORMAND
C173: 163 | D173: PC-KK
C174: 164 | D174: BJHU23_2013
C175: 165 | D175: GARSKENB04
C176: 166 | D176: CLN-A-41
C177: 167 | D177: WIN7-13-1-PC
C178: 168 | D178: JUNG-WIN64
C179: 169 | D179: KOPPEWIN7
C180: 170 | D180: VOCKRODT-WIN10
C181: 171 | D181: RPW-12-2019
C182: 172 | D182: BPR-897B032
C183: 173 | D183: KGB-PC
C184: 174 | D184: MLIEBLPC
C185: 175 | D185: LEISTNER29
C186: 176 | D186: STATIK-04
C187: 177 | D187: Statik-01
C188: 178 | D188: Mueller-PC
C189: 179 | D189: TUNGER10-PC
C190: 180 | D190: Vogelsang10-PC
C191: 181 | D191: Bernhardt-PC
C192: 182 | D192: KB-KELLERMANN
C193: 183 | D193: L630C0001
C194: 184 | D194: L630C0103
C195: 185 | D195: L630C0104
C196: 186 | D196: L630C0102
C197: 187 | D197: KB-MAMBRETTI
C198: 188 | D198: KB-HOHM
C199: 189 | D199: WS-036
C200: 190 | D200: W7BEYER
C201: 191 | D201: EDV-111172
C202: 192 | D202: EDV-700087
C203: 193 | D203: NBBOE05
C204: 194 | D204: Felletschin
... 889 more rows

Sheet Ausdruck_2-reihig (hidden)
A1: Baumaßnahme | D1: Brücke über die | I1: Bauwerksnummer (ASB)
A2: Straßenbauverwaltung | D2: XY | I2: 4948579
A3: Aufsteller | D3: Ingenieurbüro | I3: Datum | J3: 2022-12-02
B4: Projekt- und Montage-Übersicht
B6: Geometrie
B26: Randbereich in Kappenlängsrichtung jeweils 6 m vor Übergangskonstruktion (ÜKO)
A29: Bauvorhaben | G29: Kappenverankerung
B31: =Eingabe!C3 -> Instandsetzung Kappe
A32: Tragwerk (Überbau)
B34: Betongüte | D34: =Eingabe!C6 -> C 35/45; gerissen
B35: Randabstand cT | D35: =Eingabe!C7 -> 1250 | E35: [mm]
B36: Drehpunktabstand d | D36: =Eingabe!C9 -> 10 | E36: =Eingabe!D17 -> [mm]
B37: Abstand längs sx,Mittelbereich | D37: =Eingabe!J28 -> 900 | E37: =Eingabe!D10 -> [mm]
B38: Abstand längs sx,Randbereich | D38: =Eingabe!J32 -> 450 | E38: [mm]
B39: Reihenabstand s1 | D39: =Eingabe!C17 -> 320 | E39: [mm]
B40: Bauteildicke Tragwerk hT | D40: =Eingabe!C8 -> 240 | E40: [mm]
B41: Verankerungslänge hef | D41: =Eingabe!AD83 -> 137 | E41: [mm]
B42: Bohrloch-Ø do | D42: =Eingabe!W37 -> 28 | E42: [mm]
A44: Kappe
B46: Betongüte | D46: =Eingabe!C13 -> C 25/30 (LP); gerissen
B47: Rohdichte ρ | D47: =Eingabe!C14&" [kg/m3]" -> 1700 [kg/m3]
B48: Kappenbreite b | D48: =LEFT(Eingabe!C12,FIND("m",Eingabe!C12)-1) -> ≤ 1,70 | E48: [m]
B49: Randabstand cK | D49: =Eingabe!C16 -> 200 | E49: [mm]
B50: Kopfbolzenart | C50: =Eingabe!C15 -> Sechskantmutter A4 M24
B51: Betondeckung Kopfb. cnom | D51: =IF(Eingabe!C19=0,"0",Eingabe!C19) -> 30 | E51: [mm]
B52: Kappenhöhe hK | D52: =Eingabe!C18 -> 145 | E52: [mm]
B53: Verankerungslänge hef,neu | D53: =Eingabe!C21 -> 96 | E53: [mm] | G53: =Eingabe!Z110 -> Set HPA A4 M24x260 inkl. Mutter u. Stauscheibe (2330230)
B54: Gewindehöhe hK,Gew | D54: =SUM(Eingabe!C20,Eingabe!C21) -> 115 | E54: [mm]
A55: Dichtungsschicht
B56: =LEFT(Eingabe!F4,FIND(",",Eingabe!F4)-1) -> Bitumen-Schweißbahn einlagig + Schutzlage | G56: zzgl. Injektionsmörtel HIT-RE 500 V4
B57: Dicke | D57: =IF(Eingabe!H80<1,"0",Eingabe!H80) -> 8 | E57: [mm] | G57: HIT-Menge: | H57: ="≈ "&Eingabe!AD93 -> ≈ 65 | I57: ml/HPA
B58: =Eingabe!B2 -> HILTI Design-Tool Kappenverankerung 10.2 | G58: =Eingabe!I2 -> Version gültig bis 31.12.2023
A59: Bauteil | D59: Mittelkappe Nord | I59: Seite | J59: 7
A60: Kapitel / Vorgang | D60: Kappenverankerung | I60: Archiv-Nr. | J60: 1234
A61: Baumaßnahme | D61: =D1 -> Brücke über die | I61: Bauwerksnummer (ASB)
A62: Straßenbauverwaltung | D62: =D2 -> XY | I62: =I2 -> 4948579
A63: Aufsteller | D63: =D3 -> Ingenieurbüro | I63: Datum | J63: =J3 -> 2022-12-02
A65: Einwirkungen
B67: Direkte Einwirkungen:
B68: =Eingabe!C24 -> Anprall Schrammbord
B69: Moment MEd,y,direkt : | G69: =IF(Eingabe!C25=0,"0,0",Eingabe!C25) -> 28 | H69: [kNm/m]
B70: Querkraft VEd,y, direkt : | G70: =Eingabe!C26 -> 64 | H70: [kN/m]
B71: Indirekte Einwirkungen: (Aus numerischen Berechnungen auf Basis Änderung konstanter Temperaturanteil aus Klima, konstantem Temperatur- unterschied zwischen verschiedenen Bauteilen sowie Kriechen und Schwinden in Abhängigkeit von Kappenlänge, -querschnitt, Kappenausführung, Dübelanzahl und -steifigkeit; Prof. Dr. U. Freundt, Gutachten zur Befestigung von Brückenkappen mittels Hilti Kappenverankerung HPA (ehem. HCC), Weimar 30.7.2015)
B72: Mitte: VEd,y,indirekt : | G72: =IF(Eingabe!C29>0,Eingabe!C29,"0,0") -> 12 | H72: [kN/HPA]
B73: Rand: VEd,x/y,indirekt : | G73: =IF(Eingabe!C30>0,Eingabe!C30,"0,0") -> 12 | H73: [kN/HPA]
A75: Resultierende Einwirkungen / HPA
C77: Mittelbereich
C78: Tragwerk | D78: Kappe | G78: Tragwerk | H78: Kappe
C79: HPA-Reihe 1 | G79: HPA-Reihe 2
B80: NEd | C80: =Eingabe!D41 -> 13.10738255 | D80: =Eingabe!F41 -> 13.10738255 | G80: =Eingabe!H41 -> 9.724832215 | H80: =Eingabe!J41 -> 9.724832215
B81: VEd,y,Stahl | C81: =Eingabe!D42 -> 32.23078125 | D81: =Eingabe!F42 -> 32.23078125 | G81: =Eingabe!H42 -> 32.23078125 | H81: =Eingabe!J42 -> 32.23078125
B82: VEd,y,Beton | C82: =Eingabe!D43 -> 64.4615625 | D82: =Eingabe!F43 -> 32.23078125 | G82: =Eingabe!H43 -> 32.23078125 | H82: =Eingabe!J43 -> 64.4615625
C84: Randbereich (6m vor ÜKO)
C85: Tragwerk | D85: Kappe | G85: Tragwerk | H85: Kappe
C86: HPA-Reihe 1 [kN] | G86: HPA-Reihe 2 [kN]
B87: NEd | C87: =Eingabe!D53 -> 6.553691275 | D87: =Eingabe!F53 -> 6.553691275 | G87: =Eingabe!H53 -> 4.862416107 | H87: =Eingabe!J53 -> 4.862416107
B88: VEd,x/y,Stahl | C88: =Eingabe!D54 -> 20.03492348 | D88: =Eingabe!F54 -> 20.03492348 | G88: =Eingabe!H54 -> 20.03492348 | H88: =Eingabe!J54 -> 20.03492348
B89: VEd,x/y,Beton | C89: =Eingabe!D55 -> 40.06984695 | D89: =Eingabe!F55 -> 20.03492348 | G89: =Eingabe!H55 -> 20.03492348 | H89: =Eingabe!J55 -> 40.06984695
A91: Widerstände / HPA
C93: Mittelbereich
C94: Tragwerk | D94: Kappe | G94: Tragwerk | H94: Kappe
C95: HPA-Reihe 1 | G95: HPA-Reihe 2
B96: NRd,s | C96: =D135 -> 132.1390374 | D96: =D213 -> 132.1390374 | G96: =D275 -> 132.1390374 | H96: =D357 -> 132.1390374
B97: NRd,c | C97: =Eingabe!D45 -> 54.13397418 | D97: =Eingabe!F45 -> 34.88073394 | G97: =Eingabe!H45 -> 54.13397418 | H97: =Eingabe!J45 -> 34.88073394
B98: NRd,p | C98: =Eingabe!D46 -> 76.72237881 | D98: =Eingabe!F46 -> 88.28125 | G98: =Eingabe!H46 -> 76.72237881 | H98: =Eingabe!J46 -> 88.28125
B99: VRd,s | C99: =Eingabe!D47 -> 79.23 | D99: =Eingabe!F47 -> 79.23 | G99: =Eingabe!H47 -> 79.23 | H99: =Eingabe!J47 -> 79.23
B100: VRd,c/cp | C100: =Eingabe!D48 -> 108.2679484 | D100: =Eingabe!F48 -> 69.76146787 | G100: =Eingabe!H48 -> 108.2679484 | H100: =Eingabe!J48 -> 69.76146787
B101: Ausnutzung | C101: =Eingabe!D49 -> 57.85541463 | D101: =Eingabe!F49 -> 54.43923409 | G101: =Eingabe!H49 -> 40.68002177 | H101: =Eingabe!J49 -> 100.2358817
C102: =Eingabe!F29 -> Verankerung Mittelbereich zulässig
C104: Randbereich (6m vor ÜKO)
C105: Tragwerk | D105: Kappe | G105: Tragwerk | H105: Kappe
C106: HPA-Reihe 1 | G106: HPA-Reihe 2
B107: NRd,s | C107: =D420 -> 132.1390374 | D107: =D504 -> 132.1390374 | G107: =D570 -> 132.1390374 | H107: =D649 -> 132.1390374
B108: NRd,c | C108: =Eingabe!D57 -> 54.13397418 | D108: =Eingabe!F57 -> 34.88073394 | G108: =Eingabe!H57 -> 54.13397418 | H108: =Eingabe!J57 -> 34.88073394
B109: NRd,p | C109: =Eingabe!D58 -> 76.72237881 | D109: =Eingabe!F58 -> 88.28125 | G109: =Eingabe!H58 -> 76.72237881 | H109: =Eingabe!J58 -> 88.28125
B110: VRd,s | C110: =Eingabe!D59 -> 79.23 | D110: =Eingabe!F59 -> 79.23 | G110: =Eingabe!H59 -> 79.23 | H110: =Eingabe!J59 -> 79.23
B111: VRd,c/cp | C111: =Eingabe!D60 -> 108.2679484 | D111: =Eingabe!F60 -> 69.76146787 | G111: =Eingabe!H60 -> 108.2679484 | H111: =Eingabe!J60 -> 69.76146787
B112: Aunutzung | C112: =Eingabe!D61 -> 26.72759099 | D112: =Eingabe!F61 -> 25.28704213 | G112: =Eingabe!H61 -> 25.28704213 | H112: =Eingabe!J61 -> 48.73619632
C113: =Eingabe!F33 -> Verankerung Randbereich zulässig
A115: Zugkraftübertragung Kappe → Tragwerk (Überbau): Kappenverankerung HPA
A116: =" Querkraftübertragung Kappe → Tragwerk (Überbau): "&(Eingabe!C33) -> Querkraftübertragung Kappe → Tragwerk (Überbau): Kappenverankerung HPA
A117: Bauteil | D117: =D59 -> Mittelkappe Nord | I117: Seite | J117: =J59+1 -> 8
A118: Kapitel / Vorgang | D118: =D60 -> Kappenverankerung | I118: Archiv-Nr. | J118: =J60 -> 1234
A119: Baumaßnahme | D119: =D1 -> Brücke über die | I119: Bauwerksnummer (ASB)
A120: Straßenbauverwaltung | D120: =D2 -> XY | I120: =I2 -> 4948579
A121: Aufsteller | D121: =D3 -> Ingenieurbüro | I121: Datum | J121: =J3 -> 2022-12-02
A123: Verwendbarkeits- und Anwendbarkeitsnachweise / Prüfungen / Gutachten
B124: 1. Dübelsystem HIT-RE 500 V4 nach ETA-20/0541 2. Hilti Betonverbinder HPA nach Z-21.8-2118 3. Dichtheitsprüfungen mit Berichten der Bautechnischen Versuchsanstalt an der HTL Rankweil 4. Dichtheitsprüfung unter dynamischer Querkraft-Einwirkung; Bericht der Bautechnischen Versuchsanstalt an der HTL Rankweil 5. Gutachten 20-083/1.1.1, Nachträgliche Verankerung von Brückenkappen und Lärmschutzwänden auf Brückenkappen mit Injektionssystem HIT RE 500 V4; Ingenieurbüro Schiessl Gehlen Sodeikat GmbH
A129: Mittelbereich Tragwerk (Überbau) HPA-Reihe 1
A131: Zugkraft-Einwirkung
B132: Stahlversagen
C133: NRk,s | D133: =INDEX(Tragwerk!$B$23:$D$23,1,MATCH(Eingabe!$C$4,Tragwerk!$B$14:$D$14)) -> 247.1 | E133: [kN] | G133: Charakt. Zugtragfähigkeit lt. ETA
C134: γMs | D134: =Tragwerk!$B$24 -> 1.87 | E134: [-] | G134: Teilsicherheitsbeiwert lt. ETA
C135: NRd,s | D135: =INDEX(Tragwerk!B25:D25,1,MATCH(Eingabe!C4,Tragwerk!B14:D14)) -> 132.1390374 | E135: [kN] | G135: Bemessungswert des Widerstandes
C136: NEd,Mitte | D136: =Tragwerk!$B$62 -> 13.10738255 | E136: [kN] | G136: Bemessungswert der Einwirkung
C137: bN,s | D137: =D136/D135 -> 0.09919387037 | E137: [-] | G137: Ausnutzungsgrad
B139: Kombiniertes Versagen Herausziehen / Betonausbruch
C140: N0Rk,p | D140: =INDEX(Tragwerk!$B$27:$D$27,1,MATCH(Eingabe!$C$4,Tragwerk!$B$14:$D$14)) -> 98.13078813 | E140: [kN] | G140: DIN EN 1992-4
C141: scr,Np | D141: =INDEX(Tragwerk!$B$28:$D$28,1,MATCH(Eingabe!$C$4,Tragwerk!$B$14:$D$14)) -> 411 | E141: [mm] | G141: DIN EN 1992-4
C142: A0p,N | D142: =INDEX(Tragwerk!$B$29:$D$29,1,MATCH(Eingabe!$C$4,Tragwerk!$B$14:$D$14)) -> 168921 | E142: [mm²] | G142: DIN EN 1992-4
C143: Ap,N | D143: =INDEX(Tragwerk!$B$30:$D$30,1,MATCH(Eingabe!$C$4,Tragwerk!$B$14:$D$14)) -> 150220.5 | E143: [mm²] | G143: DIN EN 1992-4
C144: ψs,Np | D144: =INDEX(Tragwerk!$B$31:$D$31,1,MATCH(Eingabe!$C$4,Tragwerk!$B$14:$D$14)) -> 1 | E144: [-] | G144: DIN EN 1992-4
C145: ψre,N | D145: =INDEX(Tragwerk!$B$32:$D$32,1,MATCH(Eingabe!$C$4,Tragwerk!$B$14:$D$14)) -> 1 | E145: [-] | G145: DIN EN 1992-4
C146: ψc | D146: =INDEX(Tragwerk!$B$38:$D$38,1,MATCH(Eingabe!$C$4,Tragwerk!$B$14:$D$14)) -> 1.055 | E146: [-] | G146: Erhöhungsfaktor lt. ETA
C147: γMp | D147: =Tragwerk!$B$40 -> 1.2 | E147: [-] | G147: DIN EN 1992-4
C148: NRd,p | D148: =INDEX(Tragwerk!B41:D41,1,MATCH(Eingabe!C4,Tragwerk!B14:D14)) -> 76.72237881 | E148: [kN] | G148: Bemessungswert des Widerstandes
C149: NEd,Mitte | D149: =Tragwerk!$B$62 -> 13.10738255 | E149: [kN] | G149: Bemessungswert der Einwirkung
C150: bN,p | D150: =D149/D148 -> 0.1708417121 | E150: [-] | G150: Ausnutzungsgrad
B152: Betonausbruch
C153: N0Rk,c | D153: =INDEX(Tragwerk!B43:D43,1,MATCH(Eingabe!$C$4,Tragwerk!$B$14:$D$14)) -> 73.04754053 | E153: [kN] | G153: DIN EN 1992-4
C154: A0c,N | D154: =INDEX(Tragwerk!B44:D44,1,MATCH(Eingabe!$C$4,Tragwerk!$B$14:$D$14)) -> 168921 | E154: [mm²] | G154: DIN EN 1992-4
C155: Ac,N | D155: =INDEX(Tragwerk!B45:D45,1,MATCH(Eingabe!$C$4,Tragwerk!$B$14:$D$14)) -> 150220.5 | E155: [mm²] | G155: DIN EN 1992-4
C156: ys,N | D156: =INDEX(Tragwerk!B46:D46,1,MATCH(Eingabe!$C$4,Tragwerk!$B$14:$D$14)) -> 1 | E156: [-] | G156: DIN EN 1992-4
C157: yre,N | D157: =INDEX(Tragwerk!B47:D47,1,MATCH(Eingabe!$C$4,Tragwerk!$B$14:$D$14)) -> 1 | E157: [-] | G157: DIN EN 1992-4
C158: yec,N | D158: =INDEX(Tragwerk!B48:D48,1,MATCH(Eingabe!$C$4,Tragwerk!$B$14:$D$14)) -> 1 | E158: [-] | G158: DIN EN 1992-4
C159: NRk,c | D159: =INDEX(Tragwerk!B50:D50,1,MATCH(Eingabe!$C$4,Tragwerk!$B$14:$D$14)) -> 64.96076901 | E159: [kN] | G159: DIN EN 1992-4
C160: γMc | D160: =Tragwerk!$B$51 -> 1.2 | E160: [-] | G160: DIN EN 1992-4
C161: NRd,c | D161: =Eingabe!D45 -> 54.13397418 | E161: [kN] | G161: Bemessungswert des Widerstandes
C162: NEd,Mitte | D162: =Tragwerk!$B$62 -> 13.10738255 | E162: [kN] | G162: Bemessungswert der Einwirkung
C163: bN,c | D163: =D162/D161 -> 0.2421285847 | E163: [-] | G163: Ausnutzungsgrad
A165: Querkraft-Einwirkung
B166: Stahlversagen mit/ohne Hebelarm
C167: MRk,s | D167: =IF(Eingabe!E80=0,"-",INDEX(Tragwerk!B67:D67,1,MATCH(Eingabe!$C$4,Tragwerk!$B$14:$D$14))) -> - | E167: [Nm] | G167: Charakt. Quertragfähigkeit lt. ETA
C168: γMs | D168: =Tragwerk!$B$68 -> 1.56 | E168: [-] | G168: Teilsicherheitsbeiwert lt. ETA
C169: VRd,s | D169: =INDEX(Tragwerk!B69:D69,1,MATCH(Eingabe!$C$4,Tragwerk!$B$14:$D$14)) -> 79.23 | E169: [kN] | G169: Bemessungswert Stahlwiderstand
C170: VEd,Mitte | D170: =Tragwerk!$B$70 -> 32.23078125 | E170: [kN] | G170: Bemessungswert der Einwirkung
C171: bV,s | D171: =D170/D169 -> 0.4068002177 | E171: [-] | G171: Ausnutzungsgrad
A172: Bauteil | D172: =D59 -> Mittelkappe Nord | I172: Seite | J172: =J59+2 -> 9
A173: Kapitel / Vorgang | D173: =D60 -> Kappenverankerung | I173: Archiv-Nr. | J173: =J60 -> 1234
A174: Baumaßnahme | D174: =D1 -> Brücke über die | I174: Bauwerksnummer (ASB)
A175: Straßenbauverwaltung | D175: =D2 -> XY | I175: =I2 -> 4948579
A176: Aufsteller | D176: =D3 -> Ingenieurbüro | I176: Datum | J176: =J3 -> 2022-12-02
B178: Betonausbruch auf der lastabgewandten Seite
C179: k8 | D179: =Tragwerk!$B$73 -> 2 | E179: [-] | G179: Faktor lt. ETA
C180: VRk,cp | D180: =INDEX(Tragwerk!B74:D74,1,MATCH(Eingabe!$C$4,Tragwerk!$B$14:$D$14)) -> 129.921538 | E180: [kN] | G180: DIN EN 1992-4
C181: γMc | D181: =Tragwerk!$B$75 -> 1.2 | E181: [-] | G181: DIN EN 1992-4
C182: VRd,cp | D182: =INDEX(Tragwerk!B76:D76,1,MATCH(Eingabe!$C$4,Tragwerk!$B$14:$D$14)) -> 108.2679484 | E182: [kN] | G182: Bemessungswert des Widerstandes
C183: VEd,Mitte | D183: =Tragwerk!$B$93 -> 64.4615625 | E183: [kN] | G183: Bemessungswert der Einwirkung
C184: bV,cp | D184: =D183/D182 -> 0.595389157 | E184: [-] | G184: Ausnutzungsgrad
B186: Betonkantenbruch
C187: α | D187: =INDEX(Tragwerk!B78:D78,1,MATCH(Eingabe!$C$4,Tragwerk!$B$14:$D$14)) -> 0.03310589071 | E187: [-] | G187: DIN EN 1992-4
C188: β | D188: =INDEX(Tragwerk!B79:D79,1,MATCH(Eingabe!$C$4,Tragwerk!$B$14:$D$14)) -> 0.04535866311 | E188: [-] | G188: DIN EN 1992-4
C189: V0Rk,c | D189: =INDEX(Tragwerk!B80:D80,1,MATCH(Eingabe!$C$4,Tragwerk!$B$14:$D$14)) -> 617.2482594 | E189: [kN] | G189: DIN EN 1992-4
C190: A0c,V | D190: =INDEX(Tragwerk!B81:D81,1,MATCH(Eingabe!$C$4,Tragwerk!$B$14:$D$14)) -> 7031250 | E190: [mm²] | G190: DIN EN 1992-4
C191: Ac,V | D191: =INDEX(Tragwerk!B82:D82,1,MATCH(Eingabe!$C$4,Tragwerk!$B$14:$D$14)) -> 900000 | E191: [mm²] | G191: DIN EN 1992-4
C192: ψh,V | D192: =INDEX(Tragwerk!B84:D84,1,MATCH(Eingabe!$C$4,Tragwerk!$B$14:$D$14)) -> 2.795084972 | E192: [-] | G192: DIN EN 1992-4
C193: ψre,V | D193: =Tragwerk!B87 -> 1.2 | E193: [-] | G193: DIN EN 1992-4
C194: VRk,c | D194: =INDEX(Tragwerk!B88:D88,1,MATCH(Eingabe!$C$4,Tragwerk!$B$14:$D$14)) -> 265.0001409 | E194: [kN] | G194: DIN EN 1992-4
C195: γMc | D195: =Tragwerk!B89 -> 1.2 | E195: [-] | G195: DIN EN 1992-4
C196: VRd,c | D196: =INDEX(Tragwerk!B90:D90,1,MATCH(Eingabe!$C$4,Tragwerk!$B$14:$D$14)) -> 220.8334507 | E196: [kN] | G196: Bemessungswert des Widerstandes
C197: VEd,Mitte | D197: =Tragwerk!B93 -> 64.4615625 | E197: [kN] | G197: Bemessungswert der Einwirkung
C198: bV,c | D198: =D197/D196 -> 0.2919012599 | E198: [-] | G198: Ausnutzungsgrad
A200: Kombinierter Ausnutzungsgrad Zugkraft- und Querkraft-Einwirkung
C202: bN+V,Stahl | D202: =INDEX(Tragwerk!B98:D98,1,MATCH(Eingabe!$C$4,Tragwerk!$B$14:$D$14)) -> 0.4068002177 | E202: [-] | G202: Ausnutzung Zug-/Querkraft-Einwirkung: Stahl
C203: bN+V,Beton | D203: =INDEX(Tragwerk!B99:D99,1,MATCH(Eingabe!$C$4,Tragwerk!$B$14:$D$14)) -> 0.5785541463 | E203: [-] | G203: Ausnutzung Zug-/Querkraft-Einwirkung: Beton
A207: Mittelbereich Kappe HPA-Reihe 1
A209: Zugkraft-Einwirkung
B210: Stahlversagen
C211: NRk,s | D211: =INDEX(Kappe!B17:D17,1,MATCH(Eingabe!$C$4,Kappe!$B$12:$D$12)) -> 247.1 | E211: [kN] | G211: Charakt. Zugtragfähigkeit lt. ETA
C212: γMs | D212: =Kappe!$B$18 -> 1.87 | E212: [-] | G212: Teilsicherheitsbeiwert lt. ETA
C213: NRd,s | D213: =INDEX(Kappe!B19:D19,1,MATCH(Eingabe!$C$4,Kappe!$B$12:$D$12)) -> 132.1390374 | E213: [kN] | G213: Bemessungswert des Widerstandes
C214: NEd,Mitte | D214: =Kappe!$B$53 -> 13.10738255 | E214: [kN] | G214: Bemessungswert der Einwirkung
C215: bN,s | D215: =D214/D213 -> 0.09919387037 | E215: [-] | G215: Ausnutzungsgrad
B217: Herausziehen
C218: AMutter | D218: =INDEX(Kappe!B21:D21,1,MATCH(Eingabe!$C$4,Kappe!$B$12:$D$12)) -> 565 | E218: [mm²] | G218: Kopfbolzenfläche
C219: yred,LWC | D219: =Eingabe!N3 -> 1 | E219: [-] | G219: Abminderung Leichtbeton
C220: NRk,p | D220: =INDEX(Kappe!B22:D22,1,MATCH(Eingabe!$C$4,Kappe!$B$12:$D$12)) -> 105.9375 | E220: [kN] | G220: DIN EN 1992-4
C221: γMp | D221: =Kappe!B23 -> 1.2 | E221: [-] | G221: DIN EN 1992-4
C222: NRd,p | D222: =INDEX(Kappe!B24:D24,1,MATCH(Eingabe!$C$4,Kappe!$B$12:$D$12)) -> 88.28125 | E222: [kN] | G222: Bemessungswert des Widerstandes
C223: NEd,Mitte | D223: =Kappe!$B$53 -> 13.10738255 | E223: [kN] | G223: Bemessungswert der Einwirkung
C224: bN,p | D224: =D223/D222 -> 0.1484730059 | E224: [-] | G224: Ausnutzungsgrad
A225: Bauteil | D225: =D59 -> Mittelkappe Nord | I225: Seite | J225: =J59+3 -> 10
A226: Kapitel / Vorgang | D226: =D60 -> Kappenverankerung | I226: Archiv-Nr. | J226: =J60 -> 1234
A227: Baumaßnahme | D227: =D1 -> Brücke über die | I227: Bauwerksnummer (ASB)
A228: Straßenbauverwaltung | D228: =D2 -> XY | I228: =I2 -> 4948579
A229: Aufsteller | D229: =D3 -> Ingenieurbüro | I229: Datum | J229: =J3 -> 2022-12-02
B230: Betonausbruch
C231: N0Rk,c | D231: =INDEX(Kappe!B27:D27,1,MATCH(Eingabe!$C$4,Kappe!$B$12:$D$12)) -> 41.85688072 | E231: [kN] | G231: DIN EN 1992-4
C232: A0c,N | D232: =INDEX(Kappe!B28:D28,1,MATCH(Eingabe!$C$4,Kappe!$B$12:$D$12)) -> 82944 | E232: [mm²] | G232: DIN EN 1992-4
C233: Ac,N | D233: =INDEX(Kappe!B29:D29,1,MATCH(Eingabe!$C$4,Kappe!$B$12:$D$12)) -> 82944 | E233: [mm²] | G233: DIN EN 1992-4 bzw. DAfStb Heft 615
C234: k | D234: =INDEX(Kappe!B26:D26,1,MATCH(Eingabe!$C$4,Kappe!$B$12:$D$12)) -> 8.9 | E234: [-] | G234: DIN EN 1992-4 bzw. DAfStb Heft 615
C235: ys,N | D235: =INDEX(Kappe!B30:D30,1,MATCH(Eingabe!$C$4,Kappe!$B$12:$D$12)) -> 1 | E235: [-] | G235: DIN EN 1992-4
C236: yre,N | D236: =INDEX(Kappe!B31:D31,1,MATCH(Eingabe!$C$4,Kappe!$B$12:$D$12)) -> 1 | E236: [-] | G236: DIN EN 1992-4
C237: yec,N | D237: =INDEX(Kappe!B32:D32,1,MATCH(Eingabe!$C$4,Kappe!$B$12:$D$12)) -> 1 | E237: [-] | G237: DIN EN 1992-4
C238: yucr,N | D238: =INDEX(Kappe!B33:D33,1,MATCH(Eingabe!$C$4,Kappe!$B$12:$D$12)) -> 1 | E238: [-] | G238: DIN EN 1992-4
C239: yred,LWC | D239: =Eingabe!N3 -> 1 | E239: [-] | G239: Abminderung Leichtbeton
C240: NRk,c | D240: =INDEX(Kappe!B34:D34,1,MATCH(Eingabe!$C$4,Kappe!$B$12:$D$12)) -> 41.85688072 | E240: [kN] | G240: DIN EN 1992-4
C241: γMc | D241: =Kappe!$B$35 -> 1.2 | E241: [-] | G241: DIN EN 1992-4
C242: NRd,c | D242: =INDEX(Kappe!B36:D36,1,MATCH(Eingabe!$C$4,Kappe!$B$12:$D$12)) -> 34.88073394 | E242: [kN] | G242: Bemessungswert des Widerstandes
C243: NEd,Mitte | D243: =Kappe!$B$53 -> 13.10738255 | E243: [kN] | G243: Bemessungswert der Einwirkung
C244: bN,c | D244: =D243/D242 -> 0.3757771432 | E244: [-] | G244: Ausnutzungsgrad
A246: Querkraft-Einwirkung
B247: Stahlversagen mit/ohne Hebelarm
C248: MRk,s | D248: =IF(Eingabe!E80=0,"-",INDEX(Kappe!B58:D58,1,MATCH(Eingabe!$C$4,Kappe!$B$12:$D$12))) -> - | E248: [Nm] | G248: Charakt. Quertragfähigkeit lt. ETA
C249: γMs | D249: =Kappe!$B$59 -> 1.56 | E249: [-] | G249: Teilsicherheitsbeiwert lt. ETA
C250: VRd,s | D250: =INDEX(Kappe!B60:D60,1,MATCH(Eingabe!$C$4,Kappe!$B$12:$D$12)) -> 79.23 | E250: [kN] | G250: Bemessungswert Stahlwiderstand
C251: VEd,Mitte | D251: =Kappe!$B$61 -> 32.23078125 | E251: [kN] | G251: Bemessungswert der Einwirkung
C252: bV,s | D252: =D251/D250 -> 0.4068002177 | E252: [-] | G252: Ausnutzungsgrad
B254: Betonausbruch auf der lastabgewandten Seite
C255: k8 | D255: =Kappe!$B$64 -> 2 | E255: [-] | G255: Z-21.8-2118
... 382 more rows

Sheet Ausdruck_1-reihig (hidden)
A1: Baumaßnahme | D1: Brücke über die | I1: Bauwerksnummer (ASB)
A2: Straßenbauverwaltung | D2: XY | I2: 5678
A3: Aufsteller | D3: Ingenieurbüro | I3: Datum | J3: 2022-12-02
B4: Projekt- und Montage-Übersicht
B6: Geometrie
B24: Randbereich in Kappenlängsrichtung jeweils 6 m vor Übergangskonstruktion (ÜKO)
A29: Bauvorhaben | G29: Kappenverankerung
B31: =Eingabe!C3 -> Instandsetzung Kappe
A32: Tragwerk (Überbau)
B34: Betongüte | D34: =Eingabe!C6 -> C 35/45; gerissen
B35: Randabstand cT | D35: =Eingabe!C7 -> 1250 | E35: [mm]
B36: Drehpunktabstand d | D36: =Eingabe!C9 -> 10 | E36: [mm]
B37: Abstand längs sx,Mitte | D37: =Eingabe!J28 -> 900 | E37: [mm]
B38: Abstand längs sx,Randbereich | D38: =Eingabe!J32 -> 450 | E38: [mm]
B39: Bauteildicke Tragwerk hT | D39: =Eingabe!C8 -> 240 | E39: [mm]
B40: Verankerungslänge hef | D40: =Eingabe!AD83 -> 137 | E40: [mm]
B41: Bohrloch-Ø do | D41: =Eingabe!W37 -> 28 | E41: [mm]
A43: Kappe
B45: Betongüte | D45: =Eingabe!C13 -> C 25/30 (LP); gerissen
B46: Rohdichte ρ | D46: =Eingabe!C14&" [kg/m3]" -> 1700 [kg/m3]
B47: Kappenbreite b | D47: =LEFT(Eingabe!C12,FIND("m",Eingabe!C12)-1) -> ≤ 1,70 | E47: [m]
B48: Randabstand cK | D48: =Eingabe!C16 -> 200 | E48: [mm]
B49: Kopfbolzenart | C49: =Eingabe!C15 -> Sechskantmutter A4 M24
B50: Betondeckung Kopfb. cnom | D50: =IF(Eingabe!C19=0,"0",Eingabe!C19) -> 30 | E50: [mm]
B51: Kappenhöhe hK | D51: =Eingabe!C18 -> 145 | E51: [mm]
B52: Verankerungslänge hef,neu | D52: =Eingabe!C21 -> 96 | E52: [mm] | G52: =Eingabe!Z110 -> Set HPA A4 M24x260 inkl. Mutter u. Stauscheibe (2330230)
B53: Gewindehöhe hK,Gew | D53: =SUM(Eingabe!C20,Eingabe!C21) -> 115 | E53: [mm]
A54: Dichtungsschicht
B55: =LEFT(Eingabe!F4,FIND(",",Eingabe!F4)-1) -> Bitumen-Schweißbahn einlagig + Schutzlage | G55: zzgl. Injektionsmörtel HIT-RE 500 V4
B56: Dicke | D56: =IF(Eingabe!H80<1,"0",Eingabe!H80) -> 8 | E56: [mm] | G56: HIT-Menge: | H56: ="≈ "&Eingabe!AD93 -> ≈ 65 | I56: ml/HPA
B57: =Eingabe!B2 -> HILTI Design-Tool Kappenverankerung 10.2 | G57: =Eingabe!I2 -> Version gültig bis 31.12.2023
A58: Bauteil | D58: Mittelkappe Nord | I58: Seite | J58: 1
A59: Kapitel / Vorgang | D59: Kappenverankerung | I59: Archiv-Nr. | J59: 1234
A60: Baumaßnahme | D60: =D1 -> Brücke über die | I60: Bauwerksnummer (ASB)
A61: Straßenbauverwaltung | D61: =D2 -> XY | I61: =I2 -> 5678
A62: Aufsteller | D62: =D3 -> Ingenieurbüro | I62: Datum | J62: 2022-12-02
A63: Einwirkungen
B65: Direkte Einwirkungen:
B66: =Eingabe!C24 -> Anprall Schrammbord
B67: Moment MEd,y,direkt : | G67: =IF(Eingabe!C25=0,"0,0",Eingabe!C25) -> 28 | H67: [kNm/m]
B68: Querkraft VEd,y, direkt : | G68: =Eingabe!C26 -> 64 | H68: [kN/m]
B69: Indirekte Einwirkungen: (Aus numerischen Berechnungen auf Basis Änderung konstanter Temperaturanteil aus Klima, konstantem Temperaturunterschied zwischen verschiedenen Bauteilen sowie Kriechen und Schwinden in Abhängigkeit von Kappenlänge, -querschnitt, Kappenausführung, Dübelanzahl und -steifigkeit; Prof. Dr. U. Freundt, Gutachten zur Befestigung von Brückenkappen mittels Hilti Kappenverankerung HPA (ehem. HCC), Weimar 30.7.2015)
B70: Mitte: VEd,y,indirekt : | G70: =IF(Eingabe!C29>0,Eingabe!C29,"0,0") -> 12 | H70: [kN/HPA]
B71: Rand: VEd,x/y,indirekt : | G71: =IF(Eingabe!C30>0,Eingabe!C30,"0,0") -> 12 | H71: [kN/HPA]
A73: Resultierende Einwirkungen / HPA
B75: Mittelbereich
C76: Tragwerk | D76: Kappe
C77: HPA-Reihe 1
B78: NEd | C78: =Eingabe!D41 -> 13.10738255 | D78: =Eingabe!F41 -> 13.10738255
B79: VEd,y,Stahl | C79: =Eingabe!D42 -> 32.23078125 | D79: =Eingabe!F42 -> 32.23078125
B80: VEd,y,Beton | C80: =Eingabe!D43 -> 64.4615625 | D80: =Eingabe!F43 -> 32.23078125
B82: Randbereich (6m vor ÜKO)
C83: Tragwerk | D83: Kappe
C84: HPA-Reihe 1 [kN]
B85: NEd | C85: =Eingabe!D53 -> 6.553691275 | D85: =Eingabe!F53 -> 6.553691275
B86: VEd,x/y,Stahl | C86: =Eingabe!D54 -> 20.03492348 | D86: =Eingabe!F54 -> 20.03492348
B87: VEd,x/y,Beton | C87: =Eingabe!D55 -> 40.06984695 | D87: =Eingabe!F55 -> 20.03492348
A89: Widerstände / HPA
B91: Mittelbereich
C92: Tragwerk | D92: Kappe
C93: HPA-Reihe 1
B94: NRd,s | C94: =D129 -> 132.1390374 | D94: =D207 -> 132.1390374
B95: NRd,c | C95: =Eingabe!D45 -> 54.13397418 | D95: =Eingabe!F45 -> 34.88073394
B96: NRd,p | C96: =Eingabe!D46 -> 76.72237881 | D96: =Eingabe!F46 -> 88.28125
B97: VRd,s | C97: =Eingabe!D47 -> 79.23 | D97: =Eingabe!F47 -> 79.23
B98: VRd,c/cp | C98: =Eingabe!D48 -> 108.2679484 | D98: =Eingabe!F48 -> 69.76146787
B99: Ausnutzung | C99: =Eingabe!D49 -> 57.85541463 | D99: =Eingabe!F49 -> 54.43923409
B100: =Eingabe!F29 -> Verankerung Mittelbereich zulässig
B102: Randbereich (6m vor ÜKO)
C103: Tragwerk | D103: Kappe
C104: HPA-Reihe 1
B105: NRd,s | C105: =D270 -> 132.1390374 | D105: =D354 -> 132.1390374
B106: NRd,c | C106: =Eingabe!D57 -> 54.13397418 | D106: =Eingabe!F57 -> 34.88073394
B107: NRd,p | C107: =Eingabe!D58 -> 76.72237881 | D107: =Eingabe!F58 -> 88.28125
B108: VRd,s | C108: =Eingabe!D59 -> 79.23 | D108: =Eingabe!F59 -> 79.23
B109: VRd,c/cp | C109: =Eingabe!D60 -> 108.2679484 | D109: =Eingabe!F60 -> 69.76146787
B110: Ausnutzung | C110: =Eingabe!D61 -> 26.72759099 | D110: =Eingabe!F61 -> 25.28704213
B111: =Eingabe!F33 -> Verankerung Randbereich zulässig
A113: Zugkraftübertragung Kappe → Tragwerk (Überbau): Kappenverankerung HPA
A114: Querkraftübertragung Kappe → Tragwerk (Überbau): Kappenverankerung HPA
A115: Bauteil | D115: =D59 -> Kappenverankerung | I115: Seite | J115: =J58+1 -> 2
A116: Kapitel / Vorgang | D116: =D60 -> Brücke über die | I116: Archiv-Nr. | J116: =J59 -> 1234
A117: Baumaßnahme | D117: =D1 -> Brücke über die | I117: Bauwerksnummer (ASB)
A118: Straßenbauverwaltung | D118: =D2 -> XY | I118: =I2 -> 5678
A119: Aufsteller | D119: =D3 -> Ingenieurbüro | I119: Datum | J119: =J3 -> 2022-12-02
A121: Verwendbarkeits- und Anwendbarkeitsnachweise / Prüfungen / Gutachten
B122: 1. Dübelsystem HIT-RE 500 V4 nach ETA-20/0541 2. Hilti Betonverbinder HPA nach Z-21.8-2118 3. Dichtheitsprüfungen mit Berichten der Bautechnischen Versuchsanstalt an der HTL Rankweil 4. Dichtheitsprüfung unter dynamischer Querkraft-Einwirkung; Bericht der Bautechnischen Versuchsanstalt an der HTL Rankweil 5. Gutachten 20-083/1.1.1, Nachträgliche Verankerung von Brückenkappen und Lärmschutzwänden auf Brückenkappen mit Injektionssystem HIT RE 500 V4; Ingenieurbüro Schiessl Gehlen Sodeikat GmbH
A123: Mittelbereich Tragwerk (Überbau)
A125: Zugkraft-Einwirkung
B126: Stahlversagen
C127: NRk,s | D127: =INDEX(Tragwerk!$B$23:$D$23,1,MATCH(Eingabe!$C$4,Tragwerk!$B$14:$D$14)) -> 247.1 | E127: [kN] | G127: Charakt. Zugtragfähigkeit lt. ETA
C128: γMs | D128: =Tragwerk!$B$24 -> 1.87 | E128: [-] | G128: Teilsicherheitsbeiwert lt. ETA
C129: NRd,s | D129: =INDEX(Tragwerk!B25:D25,1,MATCH(Eingabe!C4,Tragwerk!B14:D14)) -> 132.1390374 | E129: [kN] | G129: Bemessungswert des Widerstandes
C130: NEd,Mitte | D130: =Tragwerk!$B$62 -> 13.10738255 | E130: [kN] | G130: Bemessungswert der Einwirkung
C131: bN,s | D131: =D130/D129 -> 0.09919387037 | E131: [-] | G131: Ausnutzungsgrad
B133: Kombiniertes Versagen Herausziehen / Betonausbruch
C134: N0Rk,p | D134: =INDEX(Tragwerk!$B$27:$D$27,1,MATCH(Eingabe!$C$4,Tragwerk!$B$14:$D$14)) -> 98.13078813 | E134: [kN] | G134: DIN EN 1992-4
C135: scr,Np | D135: =INDEX(Tragwerk!$B$28:$D$28,1,MATCH(Eingabe!$C$4,Tragwerk!$B$14:$D$14)) -> 411 | E135: [mm] | G135: DIN EN 1992-4
C136: A0p,N | D136: =INDEX(Tragwerk!$B$29:$D$29,1,MATCH(Eingabe!$C$4,Tragwerk!$B$14:$D$14)) -> 168921 | E136: [mm²] | G136: DIN EN 1992-4
C137: Ap,N | D137: =INDEX(Tragwerk!$B$30:$D$30,1,MATCH(Eingabe!$C$4,Tragwerk!$B$14:$D$14)) -> 150220.5 | E137: [mm²] | G137: DIN EN 1992-4
C138: ψs,Np | D138: =INDEX(Tragwerk!$B$31:$D$31,1,MATCH(Eingabe!$C$4,Tragwerk!$B$14:$D$14)) -> 1 | E138: [-] | G138: DIN EN 1992-4
C139: ψre,N | D139: =INDEX(Tragwerk!$B$32:$D$32,1,MATCH(Eingabe!$C$4,Tragwerk!$B$14:$D$14)) -> 1 | E139: [-] | G139: DIN EN 1992-4
C140: ψc | D140: =INDEX(Tragwerk!$B$38:$D$38,1,MATCH(Eingabe!$C$4,Tragwerk!$B$14:$D$14)) -> 1.055 | E140: [-] | G140: Erhöhungsfaktor lt. ETA
C141: γMp | D141: =Tragwerk!$B$40 -> 1.2 | E141: [-] | G141: DIN EN 1992-4
C142: NRd,p | D142: =INDEX(Tragwerk!B41:D41,1,MATCH(Eingabe!C4,Tragwerk!B14:D14)) -> 76.72237881 | E142: [kN] | G142: Bemessungswert des Widerstandes
C143: NEd,Mitte | D143: =Tragwerk!$B$62 -> 13.10738255 | E143: [kN] | G143: Bemessungswert der Einwirkung
C144: bN,p | D144: =D143/D142 -> 0.1708417121 | E144: [-] | G144: Ausnutzungsgrad
B146: Betonausbruch
C147: N0Rk,c | D147: =INDEX(Tragwerk!B43:D43,1,MATCH(Eingabe!$C$4,Tragwerk!$B$14:$D$14)) -> 73.04754053 | E147: [kN] | G147: DIN EN 1992-4
C148: A0c,N | D148: =INDEX(Tragwerk!B44:D44,1,MATCH(Eingabe!$C$4,Tragwerk!$B$14:$D$14)) -> 168921 | E148: [mm²] | G148: DIN EN 1992-4
C149: Ac,N | D149: =INDEX(Tragwerk!B45:D45,1,MATCH(Eingabe!$C$4,Tragwerk!$B$14:$D$14)) -> 150220.5 | E149: [mm²] | G149: DIN EN 1992-4
C150: ys,N | D150: =INDEX(Tragwerk!B46:D46,1,MATCH(Eingabe!$C$4,Tragwerk!$B$14:$D$14)) -> 1 | E150: [-] | G150: DIN EN 1992-4
C151: yre,N | D151: =INDEX(Tragwerk!B47:D47,1,MATCH(Eingabe!$C$4,Tragwerk!$B$14:$D$14)) -> 1 | E151: [-] | G151: DIN EN 1992-4
C152: yec,N | D152: =INDEX(Tragwerk!B48:D48,1,MATCH(Eingabe!$C$4,Tragwerk!$B$14:$D$14)) -> 1 | E152: [-] | G152: DIN EN 1992-4
C153: NRk,c | D153: =INDEX(Tragwerk!B50:D50,1,MATCH(Eingabe!$C$4,Tragwerk!$B$14:$D$14)) -> 64.96076901 | E153: [kN] | G153: DIN EN 1992-4
C154: γMc | D154: =Tragwerk!$B$51 -> 1.2 | E154: [-] | G154: DIN EN 1992-4
C155: NRd,c | D155: =INDEX(Tragwerk!B52:D52,1,MATCH(Eingabe!$C$4,Tragwerk!$B$14:$D$14)) -> 54.13397418 | E155: [kN] | G155: Bemessungswert des Widerstandes
C156: NEd,Mitte | D156: =Tragwerk!$B$62 -> 13.10738255 | E156: [kN] | G156: Bemessungswert der Einwirkung
C157: bN,c | D157: =D156/D155 -> 0.2421285847 | E157: [-] | G157: Ausnutzungsgrad
A159: Querkraft-Einwirkung
B160: Stahlversagen mit/ohne Hebelarm
C161: MRk,s | D161: =IF(Eingabe!E80=0,"-",INDEX(Tragwerk!B67:D67,1,MATCH(Eingabe!$C$4,Tragwerk!$B$14:$D$14))) -> - | E161: [Nm] | G161: Charakt. Quertragfähigkeit lt. ETA
C162: γMs | D162: =Tragwerk!$B$68 -> 1.56 | E162: [-] | G162: Teilsicherheitsbeiwert lt. ETA
C163: VRd,s | D163: =INDEX(Tragwerk!B69:D69,1,MATCH(Eingabe!$C$4,Tragwerk!$B$14:$D$14)) -> 79.23 | E163: [kN] | G163: Bemessungswert Stahlwiderstand
C164: VEd,Mitte | D164: =Tragwerk!$B$70 -> 32.23078125 | E164: [kN] | G164: Bemessungswert der Einwirkung
C165: bV,s | D165: =D164/D163 -> 0.4068002177 | E165: [-] | G165: Ausnutzungsgrad
A166: Bauteil | D166: =D58 -> Mittelkappe Nord | I166: Seite | J166: =J58+2 -> 3
A167: Kapitel / Vorgang | D167: =D59 -> Kappenverankerung | I167: Archiv-Nr. | J167: =J59 -> 1234
A168: Baumaßnahme | D168: =D1 -> Brücke über die | I168: Bauwerksnummer (ASB)
A169: Straßenbauverwaltung | D169: =D2 -> XY | I169: =I2 -> 5678
A170: Aufsteller | D170: =D3 -> Ingenieurbüro | I170: Datum | J170: =J3 -> 2022-12-02
B172: Betonausbruch auf der lastabgewandten Seite
C173: k8 | D173: =Tragwerk!$B$73 -> 2 | E173: [-] | G173: Faktor lt. ETA
C174: VRk,cp | D174: =INDEX(Tragwerk!B74:D74,1,MATCH(Eingabe!$C$4,Tragwerk!$B$14:$D$14)) -> 129.921538 | E174: [kN] | G174: DIN EN 1992-4
C175: γMc | D175: =Tragwerk!$B$75 -> 1.2 | E175: [-] | G175: DIN EN 1992-4
C176: VRd,cp | D176: =INDEX(Tragwerk!B76:D76,1,MATCH(Eingabe!$C$4,Tragwerk!$B$14:$D$14)) -> 108.2679484 | E176: [kN] | G176: Bemessungswert des Widerstandes
C177: VEd,Mitte | D177: =Tragwerk!$B$93 -> 64.4615625 | E177: [kN] | G177: Bemessungswert der Einwirkung
C178: bV,cp | D178: =D177/D176 -> 0.595389157 | E178: [-] | G178: Ausnutzungsgrad
B180: Betonkantenbruch
C181: α | D181: =INDEX(Tragwerk!B78:D78,1,MATCH(Eingabe!$C$4,Tragwerk!$B$14:$D$14)) -> 0.03310589071 | E181: [-] | G181: DIN EN 1992-4
C182: β | D182: =INDEX(Tragwerk!B79:D79,1,MATCH(Eingabe!$C$4,Tragwerk!$B$14:$D$14)) -> 0.04535866311 | E182: [-] | G182: DIN EN 1992-4
C183: V0Rk,c | D183: =INDEX(Tragwerk!B80:D80,1,MATCH(Eingabe!$C$4,Tragwerk!$B$14:$D$14)) -> 617.2482594 | E183: [kN] | G183: DIN EN 1992-4
C184: A0c,V | D184: =INDEX(Tragwerk!B81:D81,1,MATCH(Eingabe!$C$4,Tragwerk!$B$14:$D$14)) -> 7031250 | E184: [mm²] | G184: DIN EN 1992-4
C185: Ac,V | D185: =INDEX(Tragwerk!B82:D82,1,MATCH(Eingabe!$C$4,Tragwerk!$B$14:$D$14)) -> 900000 | E185: [mm²] | G185: DIN EN 1992-4
C186: ψh,V | D186: =INDEX(Tragwerk!B84:D84,1,MATCH(Eingabe!$C$4,Tragwerk!$B$14:$D$14)) -> 2.795084972 | E186: [-] | G186: DIN EN 1992-4
C187: ψre,V | D187: =Tragwerk!B87 -> 1.2 | E187: [-] | G187: DIN EN 1992-4
C188: VRk,c | D188: =INDEX(Tragwerk!B88:D88,1,MATCH(Eingabe!$C$4,Tragwerk!$B$14:$D$14)) -> 265.0001409 | E188: [kN] | G188: DIN EN 1992-4
C189: γMc | D189: =Tragwerk!B89 -> 1.2 | E189: [-] | G189: DIN EN 1992-4
C190: VRd,c | D190: =INDEX(Tragwerk!B90:D90,1,MATCH(Eingabe!$C$4,Tragwerk!$B$14:$D$14)) -> 220.8334507 | E190: [kN] | G190: Bemessungswert des Widerstandes
C191: VEd,Mitte | D191: =Tragwerk!B93 -> 64.4615625 | E191: [kN] | G191: Bemessungswert der Einwirkung
C192: bV,c | D192: =D191/D190 -> 0.2919012599 | E192: [-] | G192: Ausnutzungsgrad
A194: Kombinierter Ausnutzungsgrad Zugkraft- und Querkraft-Einwirkung Mittelbereich
C196: bN+V,Stahl | D196: =INDEX(Tragwerk!B98:D98,1,MATCH(Eingabe!$C$4,Tragwerk!$B$14:$D$14)) -> 0.4068002177 | E196: [-] | G196: Ausnutzung Zug-/Querkraft-Einwirkung: Stahl
C197: bN+V,Beton | D197: =INDEX(Tragwerk!B99:D99,1,MATCH(Eingabe!$C$4,Tragwerk!$B$14:$D$14)) -> 0.5785541463 | E197: [-] | G197: Ausnutzung Zug-/Querkraft-Einwirkung: Beton
A201: Mittelbereich Kappe
A203: Zugkraft-Einwirkung
B204: Stahlversagen
C205: NRk,s | D205: =INDEX(Kappe!B17:D17,1,MATCH(Eingabe!$C$4,Kappe!$B$12:$D$12)) -> 247.1 | E205: [kN] | G205: Charakt. Zugtragfähigkeit lt. ETA
C206: γMs | D206: =Kappe!$B$18 -> 1.87 | E206: [-] | G206: Teilsicherheitsbeiwert lt. ETA
C207: NRd,s | D207: =INDEX(Kappe!B19:D19,1,MATCH(Eingabe!$C$4,Kappe!$B$12:$D$12)) -> 132.1390374 | E207: [kN] | G207: Bemessungswert des Widerstandes
C208: NEd,Mitte | D208: =Kappe!$B$53 -> 13.10738255 | E208: [kN] | G208: Bemessungswert der Einwirkung
C209: bN,s | D209: =D208/D207 -> 0.09919387037 | E209: [-] | G209: Ausnutzungsgrad
B211: Herausziehen
C212: AMutter | D212: =INDEX(Kappe!B21:D21,1,MATCH(Eingabe!$C$4,Kappe!$B$12:$D$12)) -> 565 | E212: [mm²] | G212: Kopfbolzenfläche
C213: yred,LWC | D213: =Eingabe!N3 -> 1 | E213: [-] | G213: Abminderung Leichtbeton
C214: NRk,p | D214: =INDEX(Kappe!B22:D22,1,MATCH(Eingabe!$C$4,Kappe!$B$12:$D$12)) -> 105.9375 | E214: [kN] | G214: DIN EN 1992-4
C215: γMp | D215: =Kappe!B23 -> 1.2 | E215: [-] | G215: DIN EN 1992-4
C216: NRd,p | D216: =INDEX(Kappe!B24:D24,1,MATCH(Eingabe!$C$4,Kappe!$B$12:$D$12)) -> 88.28125 | E216: [kN] | G216: Bemessungswert des Widerstandes
C217: NEd,Mitte | D217: =Kappe!$B$53 -> 13.10738255 | E217: [kN] | G217: Bemessungswert der Einwirkung
C218: bN,p | D218: =D217/D216 -> 0.1484730059 | E218: [-] | G218: Ausnutzungsgrad
A219: Bauteil | D219: =D58 -> Mittelkappe Nord | I219: Seite | J219: =J58+3 -> 4
A220: Kapitel / Vorgang | D220: =D59 -> Kappenverankerung | I220: Archiv-Nr. | J220: =J59 -> 1234
A221: Baumaßnahme | D221: =D1 -> Brücke über die | I221: Bauwerksnummer (ASB)
A222: Straßenbauverwaltung | D222: =D2 -> XY | I222: =I2 -> 5678
A223: Aufsteller | D223: =D3 -> Ingenieurbüro | I223: Datum | J223: =J3 -> 2022-12-02
B225: Betonausbruch
C226: N0Rk,c | D226: =INDEX(Kappe!B27:D27,1,MATCH(Eingabe!$C$4,Kappe!$B$12:$D$12)) -> 41.85688072 | E226: [kN] | G226: DIN EN 1992-4
C227: A0c,N | D227: =INDEX(Kappe!B28:D28,1,MATCH(Eingabe!$C$4,Kappe!$B$12:$D$12)) -> 82944 | E227: [mm²] | G227: DIN EN 1992-4
C228: Ac,N | D228: =INDEX(Kappe!B29:D29,1,MATCH(Eingabe!$C$4,Kappe!$B$12:$D$12)) -> 82944 | E228: [mm²] | G228: DIN EN 1992-4 bzw. DAfStb Heft 615
C229: k | D229: =INDEX(Kappe!B26:D26,1,MATCH(Eingabe!$C$4,Kappe!$B$12:$D$12)) -> 8.9 | E229: [-] | G229: DIN EN 1992-4 bzw. DAfStb Heft 615
C230: ys,N | D230: =INDEX(Kappe!B30:D30,1,MATCH(Eingabe!$C$4,Kappe!$B$12:$D$12)) -> 1 | E230: [-] | G230: DIN EN 1992-4
C231: yre,N | D231: =INDEX(Kappe!B31:D31,1,MATCH(Eingabe!$C$4,Kappe!$B$12:$D$12)) -> 1 | E231: [-] | G231: DIN EN 1992-4
C232: yec,N | D232: =INDEX(Kappe!B32:D32,1,MATCH(Eingabe!$C$4,Kappe!$B$12:$D$12)) -> 1 | E232: [-] | G232: DIN EN 1992-4
C233: yucr,N | D233: =INDEX(Kappe!B33:D33,1,MATCH(Eingabe!$C$4,Kappe!$B$12:$D$12)) -> 1 | E233: [-] | G233: DIN EN 1992-4
C234: yred,LWC | D234: =Eingabe!N3 -> 1 | E234: [-] | G234: Abminderung Leichtbeton
C235: NRk,c | D235: =INDEX(Kappe!B34:D34,1,MATCH(Eingabe!$C$4,Kappe!$B$12:$D$12)) -> 41.85688072 | E235: [kN] | G235: DIN EN 1992-4
C236: γMc | D236: =Kappe!$B$35 -> 1.2 | E236: [-] | G236: DIN EN 1992-4
C237: NRd,c | D237: =INDEX(Kappe!B36:D36,1,MATCH(Eingabe!$C$4,Kappe!$B$12:$D$12)) -> 34.88073394 | E237: [kN] | G237: Bemessungswert des Widerstandes
C238: NEd,Mitte | D238: =Kappe!$B$53 -> 13.10738255 | E238: [kN] | G238: Bemessungswert der Einwirkung
C239: bN,c | D239: =D238/D237 -> 0.3757771432 | E239: [-] | G239: Ausnutzungsgrad
A241: Querkraft-Einwirkung
B242: Stahlversagen mit/ohne Hebelarm
C243: MRk,s | D243: =IF(Eingabe!E80=0,"-",INDEX(Kappe!B58:D58,1,MATCH(Eingabe!$C$4,Kappe!$B$12:$D$12))) -> - | E243: [Nm] | G243: Charakt. Quertragfähigkeit lt. ETA
C244: γMs | D244: =Kappe!$B$59 -> 1.56 | E244: [-] | G244: Teilsicherheitsbeiwert lt. ETA
C245: VRd,s | D245: =INDEX(Kappe!B60:D60,1,MATCH(Eingabe!$C$4,Kappe!$B$12:$D$12)) -> 79.23 | E245: [kN] | G245: Bemessungswert Stahlwiderstand
C246: VEd,Mitte | D246: =Kappe!$B$61 -> 32.23078125 | E246: [kN] | G246: Bemessungswert der Einwirkung
C247: bV,s | D247: =D246/D245 -> 0.4068002177 | E247: [-] | G247: Ausnutzungsgrad
B249: Betonausbruch auf der lastabgewandten Seite
C250: k8 | D250: =Kappe!$B$64 -> 2 | E250: [-] | G250: Z-21.8-2118
C251: VRk,cp | D251: =INDEX(Kappe!B65:D65,1,MATCH(Eingabe!$C$4,Kappe!$B$12:$D$12)) -> 83.71376145 | E251: [kN] | G251: DIN EN 1992-4
... 135 more rows

Sheet Ausdruck_2-reihig+Bew.,Schw. (hidden)
A1: Baumaßnahme | D1: Brücke über die | I1: Bauwerksnummer (ASB)
A2: Straßenbauverwaltung | D2: XY | I2: 4948579
A3: Aufsteller | D3: Ingenieurbüro | I3: Datum | J3: 2022-12-02
A5: Projekt- und Montageübersicht
B7: Geometrie
B25: Randbereich in Kappenlängsrichtung jeweils 6 m vor Übergangskonstruktion (ÜKO)
A30: Bauvorhaben | G30: Kappenverankerung
B32: =Eingabe!C3 -> Instandsetzung Kappe
A33: Tragwerk (Überbau)
B35: Betongüte | D35: =Eingabe!C6 -> C 35/45; gerissen
B36: Randabstand cT | D36: =Eingabe!C7 -> 1250 | E36: [mm]
B37: Drehpunktabstand d | D37: =Eingabe!C9 -> 10 | E37: [mm]
B38: Abstand längs sx,Mittelbereich | D38: =Eingabe!J28 -> 900 | E38: =Eingabe!D10 -> [mm]
B39: Abstand längs sx,Randbereich | D39: =Eingabe!J32 -> 450 | E39: [mm]
B40: Reihenabstand s1 | D40: =Eingabe!C17 -> 320 | E40: [mm]
B41: Bauteildicke Tragwerk hT | D41: =Eingabe!C8 -> 240 | E41: [mm]
B42: Verankerungslänge hef | D42: =Eingabe!AD83 -> 137 | E42: [mm]
B43: Bohrloch-Ø do | D43: =Eingabe!W37 -> 28 | E43: [mm]
A45: Kappe
B47: Betongüte | D47: =Eingabe!C13 -> C 25/30 (LP); gerissen
B48: Rohdichte ρ | D48: =Eingabe!C14&" [kg/m3]" -> 1700 [kg/m3]
B49: Kappenbreite b | D49: =LEFT(Eingabe!C12,FIND("m",Eingabe!C12)-1) -> ≤ 1,70 | E49: [m]
B50: Randabstand cK | D50: =Eingabe!C16 -> 200 | E50: [mm]
B51: Kopfbolzenart | C51: =Eingabe!C15 -> Sechskantmutter A4 M24
B52: Betondeckung Kopfb. cnom | D52: =IF(Eingabe!C19=0,"0",Eingabe!C19) -> 30 | E52: [mm]
B53: Kappenhöhe hK | D53: =Eingabe!C18 -> 145 | E53: [mm]
B54: Verankerungslänge hef,neu | D54: =Eingabe!C21 -> 96 | E54: =Eingabe!D16 -> [mm] | G54: =Eingabe!Z110 -> Set HPA A4 M24x260 inkl. Mutter u. Stauscheibe (2330230)
B55: Gewindehöhe hK,Gew | D55: =SUM(Eingabe!C21+Eingabe!C20) -> 115 | E55: =Eingabe!D17 -> [mm]
A56: Dichtungsschicht
B57: =LEFT(Eingabe!F4,FIND(",",Eingabe!F4)-1) -> Bitumen-Schweißbahn einlagig + Schutzlage | G57: zzgl. Injektionsmörtel HIT-RE 500 V4
B58: Dicke | D58: =IF(Eingabe!H80<1,"0",Eingabe!H80) -> 8 | E58: =Eingabe!D21 -> [mm] | G58: HIT-Menge: | H58: ="≈ "&Eingabe!AD93 -> ≈ 65 | I58: ml/HPA
B59: =Eingabe!B2 -> HILTI Design-Tool Kappenverankerung 10.2 | G59: =Eingabe!I2 -> Version gültig bis 31.12.2023
A60: Bauteil | D60: Mittelkappe Nord | I60: Seite | J60: 1
A61: Kapitel / Vorgang | D61: Kappenverankerung | I61: Archiv-Nr. | J61: 1234
A62: Baumaßnahme | D62: =D1 -> Brücke über die | I62: Bauwerksnummer (ASB)
A63: Straßenbauverwaltung | D63: =D2 -> XY | I63: =I2 -> 4948579
A64: Aufsteller | D64: =D3 -> Ingenieurbüro | I64: Datum | J64: =J3 -> 2022-12-02
A66: Einwirkungen
B68: Direkte Einwirkungen:
B69: =Eingabe!C24 -> Anprall Schrammbord
B70: Moment MEd,y,direkt : | G70: =IF(Eingabe!C25=0,"0,0",Eingabe!C25) -> 28 | H70: [kNm/m]
B71: Querkraft VEd,y, direkt : | G71: =Eingabe!C26 -> 64 | H71: [kN/m]
B72: Indirekte Einwirkungen: (Aus numerischen Berechnungen auf Basis Änderung konstanter Temperaturanteil aus Klima, konstantem Temperaturunterschied zwischen verschiedenen Bauteilen sowie Kriechen und Schwinden in Abhängigkeit von Kappenlänge, -querschnitt, Kappenausführung, Dübelanzahl und -steifigkeit; Prof. Dr. U. Freundt, Gutachten zur Befestigung von Brückenkappen mittels Hilti Kappenverankerung HPA (ehem. HCC), Weimar 30.7.2015)
B73: Mitte: VEd,y,indirekt : | G73: =IF(Eingabe!C29>0,Eingabe!C29,"0,0") -> 12 | H73: [kN/HPA]
B74: Rand: VEd,x/y,indirekt : | G74: =IF(Eingabe!C30>0,Eingabe!C30,"0,0") -> 12 | H74: [kN/HPA]
A76: Resultierende Einwirkungen / HPA
C78: Mittelbereich
C79: Tragwerk | D79: Kappe | G79: Tragwerk | H79: Kappe
C80: HPA-Reihe 1 | G80: HPA-Reihe 2
B81: NEd | C81: =Eingabe!D41 -> 13.10738255 | D81: =Eingabe!F41 -> 13.10738255 | G81: =Eingabe!H41 -> 9.724832215 | H81: =Eingabe!J41 -> 9.724832215
B82: VEd,y,Stahl | C82: =Eingabe!D42 -> 32.23078125 | D82: =Eingabe!F42 -> 32.23078125 | G82: =Eingabe!H42 -> 32.23078125 | H82: =Eingabe!J42 -> 32.23078125
B83: VEd,y,Beton | C83: =Eingabe!D43 -> 64.4615625 | D83: =Eingabe!F43 -> 32.23078125 | G83: =Eingabe!H43 -> 32.23078125 | H83: =Eingabe!J43 -> 64.4615625
C85: Randbereich (6m vor ÜKO)
C86: Tragwerk | D86: Kappe | G86: Tragwerk | H86: Kappe
C87: HPA-Reihe 1 [kN] | G87: HPA-Reihe 2 [kN]
B88: NEd | C88: =Eingabe!D53 -> 6.553691275 | D88: =Eingabe!F53 -> 6.553691275 | G88: =Eingabe!H53 -> 4.862416107 | H88: =Eingabe!J53 -> 4.862416107
B89: VEd,x/y,Stahl | C89: =Eingabe!D54 -> 20.03492348 | D89: =Eingabe!F54 -> 20.03492348 | G89: =Eingabe!H54 -> 20.03492348 | H89: =Eingabe!J54 -> 20.03492348
B90: VEd,x/y,Beton | C90: =Eingabe!D55 -> 40.06984695 | D90: =Eingabe!F55 -> 20.03492348 | G90: =Eingabe!H55 -> 20.03492348 | H90: =Eingabe!J55 -> 40.06984695
A92: Widerstände / HPA
C94: Mittelbereich
C95: Tragwerk | D95: Kappe | G95: Tragwerk | H95: Kappe
C96: HPA-Reihe 1 | G96: HPA-Reihe 2
B97: NRd,s | C97: =D132 -> 132.1390374 | D97: =D210 -> 132.1390374 | G97: =D273 -> 132.1390374 | H97: =D356 -> 132.1390374
B98: NRd,c | C98: =Eingabe!D45 -> 54.13397418 | D98: =Eingabe!F45 -> 34.88073394 | G98: =Eingabe!H45 -> 54.13397418 | H98: =Eingabe!J45 -> 34.88073394
B99: NRd,p | C99: =Eingabe!D46 -> 76.72237881 | D99: =Eingabe!F46 -> 88.28125 | G99: =Eingabe!H46 -> 76.72237881 | H99: =Eingabe!J46 -> 88.28125
B100: VRd,s | C100: =Eingabe!D47 -> 79.23 | D100: =Eingabe!F47 -> 79.23 | G100: =Eingabe!H47 -> 79.23 | H100: =Eingabe!J47 -> 79.23
B101: VRd,c/cp | C101: =Eingabe!D48 -> 108.2679484 | D101: =Eingabe!F48 -> 69.76146787 | G101: =Eingabe!H48 -> 108.2679484 | H101: =Eingabe!J48 -> 69.76146787
B102: Ausnutzung | C102: =Eingabe!D49 -> 57.85541463 | D102: =Eingabe!F49 -> 54.43923409 | G102: =Eingabe!H49 -> 40.68002177 | H102: =Eingabe!J49 -> 100.2358817
C103: =Eingabe!F29 -> Verankerung Mittelbereich zulässig
C105: Randbereich (6m vor ÜKO)
C106: Tragwerk | D106: Kappe | G106: Tragwerk | H106: Kappe
C107: HPA-Reihe 1 | G107: HPA-Reihe 2
B108: NRd,s | C108: =D419 -> 132.1390374 | D108: =D501 -> 132.1390374 | G108: =D563 -> 132.1390374 | H108: =D563 -> 132.1390374
B109: NRd,c | C109: =Eingabe!D57 -> 54.13397418 | D109: =Eingabe!F57 -> 34.88073394 | G109: =Eingabe!H57 -> 54.13397418 | H109: =Eingabe!J57 -> 34.88073394
B110: NRd,p | C110: =Eingabe!D58 -> 76.72237881 | D110: =Eingabe!F58 -> 88.28125 | G110: =Eingabe!H58 -> 76.72237881 | H110: =Eingabe!J58 -> 88.28125
B111: VRd,s | C111: =Eingabe!D59 -> 79.23 | D111: =Eingabe!F59 -> 79.23 | G111: =Eingabe!H59 -> 79.23 | H111: =Eingabe!J59 -> 79.23
B112: VRd,c/cp | C112: =Eingabe!D60 -> 108.2679484 | D112: =Eingabe!F60 -> 69.76146787 | G112: =Eingabe!H60 -> 108.2679484 | H112: =Eingabe!J60 -> 69.76146787
B113: Ausnutzung | C113: =Eingabe!D61 -> 26.72759099 | D113: =Eingabe!F61 -> 25.28704213 | G113: =Eingabe!H61 -> 25.28704213 | H113: =Eingabe!J61 -> 48.73619632
C114: =Eingabe!F33 -> Verankerung Randbereich zulässig
A116: Zugkraftübertragung Kappe → Tragwerk (Überbau): Kappenverankerung HPA
A117: =" Querkraftübertragung Kappe → Tragwerk (Überbau): "&(Eingabe!C33) -> Querkraftübertragung Kappe → Tragwerk (Überbau): Kappenverankerung HPA
A118: Bauteil | D118: =D60 -> Mittelkappe Nord | I118: Seite | J118: =J60+1 -> 2
A119: Kapitel / Vorgang | D119: =D61 -> Kappenverankerung | I119: Archiv-Nr. | J119: =J61 -> 1234
A120: Baumaßnahme | D120: =D1 -> Brücke über die | I120: Bauwerksnummer (ASB)
A121: Straßenbauverwaltung | D121: =D2 -> XY | I121: =I2 -> 4948579
A122: Aufsteller | D122: =D3 -> Ingenieurbüro | I122: Datum | J122: =J3 -> 2022-12-02
A124: Verwendbarkeits- und Anwendbarkeitsnachweise / Prüfungen / Gutachten
B125: 1. Dübelsystem HIT-RE 500 V4 nach ETA-20/0541 2. Hilti Betonverbinder HPA nach Z-21.8-2118 3. Dichtheitsprüfungen mit Berichten der Bautechnischen Versuchsanstalt an der HTL Rankweil 4. Dichtheitsprüfung unter dynamischer Querkraft-Einwirkung; Bericht der Bautechnischen Versuchsanstalt an der HTL Rankweil 5. Gutachten 20-083/1.1.1, Nachträgliche Verankerung von Brückenkappen und Lärmschutzwänden auf Brückenkappen mit Injektionssystem HIT RE 500 V4; Ingenieurbüro Schiessl Gehlen Sodeikat GmbH
A126: Mittelbereich Tragwerk (Überbau) HPA-Reihe 1
A128: Zugkraft-Einwirkung
B129: Stahlversagen
C130: NRk,s | D130: =INDEX(Tragwerk!$B$23:$D$23,1,MATCH(Eingabe!$C$4,Tragwerk!$B$14:$D$14)) -> 247.1 | E130: [kN] | G130: Charakt. Zugtragfähigkeit lt. ETA
C131: γMs | D131: =Tragwerk!$B$24 -> 1.87 | E131: [-] | G131: Teilsicherheitsbeiwert lt. ETA
C132: NRd,s | D132: =INDEX(Tragwerk!B25:D25,1,MATCH(Eingabe!C4,Tragwerk!B14:D14)) -> 132.1390374 | E132: [kN] | G132: Bemessungswert des Widerstandes
C133: NEd,Mitte | D133: =Tragwerk!$B$62 -> 13.10738255 | E133: [kN] | G133: Bemessungswert der Einwirkung
C134: bN,s | D134: =D133/D132 -> 0.09919387037 | E134: [-] | G134: Ausnutzungsgrad
B136: Kombiniertes Versagen Herausziehen / Betonausbruch
C137: N0Rk,p | D137: =INDEX(Tragwerk!$B$27:$D$27,1,MATCH(Eingabe!$C$4,Tragwerk!$B$14:$D$14)) -> 98.13078813 | E137: [kN] | G137: DIN EN 1992-4
C138: scr,Np | D138: =INDEX(Tragwerk!$B$28:$D$28,1,MATCH(Eingabe!$C$4,Tragwerk!$B$14:$D$14)) -> 411 | E138: [mm] | G138: DIN EN 1992-4
C139: A0p,N | D139: =INDEX(Tragwerk!$B$29:$D$29,1,MATCH(Eingabe!$C$4,Tragwerk!$B$14:$D$14)) -> 168921 | E139: [mm²] | G139: DIN EN 1992-4
C140: Ap,N | D140: =INDEX(Tragwerk!$B$30:$D$30,1,MATCH(Eingabe!$C$4,Tragwerk!$B$14:$D$14)) -> 150220.5 | E140: [mm²] | G140: DIN EN 1992-4
C141: ψs,Np | D141: =INDEX(Tragwerk!$B$31:$D$31,1,MATCH(Eingabe!$C$4,Tragwerk!$B$14:$D$14)) -> 1 | E141: [-] | G141: DIN EN 1992-4
C142: ψre,N | D142: =INDEX(Tragwerk!$B$32:$D$32,1,MATCH(Eingabe!$C$4,Tragwerk!$B$14:$D$14)) -> 1 | E142: [-] | G142: DIN EN 1992-4
C143: ψc | D143: =INDEX(Tragwerk!$B$38:$D$38,1,MATCH(Eingabe!$C$4,Tragwerk!$B$14:$D$14)) -> 1.055 | E143: [-] | G143: Erhöhungsfaktor lt. ETA
C144: γMp | D144: =Tragwerk!$B$40 -> 1.2 | E144: [-] | G144: DIN EN 1992-4
C145: NRd,p | D145: =INDEX(Tragwerk!B41:D41,1,MATCH(Eingabe!C4,Tragwerk!B14:D14)) -> 76.72237881 | E145: [kN] | G145: Bemessungswert des Widerstandes
C146: NEd,Mitte | D146: =Tragwerk!$B$62 -> 13.10738255 | E146: [kN] | G146: Bemessungswert der Einwirkung
C147: bN,p | D147: =D146/D145 -> 0.1708417121 | E147: [-] | G147: Ausnutzungsgrad
B149: Betonausbruch
C150: N0Rk,c | D150: =INDEX(Tragwerk!B43:D43,1,MATCH(Eingabe!$C$4,Tragwerk!$B$14:$D$14)) -> 73.04754053 | E150: [kN] | G150: DIN EN 1992-4
C151: A0c,N | D151: =INDEX(Tragwerk!B44:D44,1,MATCH(Eingabe!$C$4,Tragwerk!$B$14:$D$14)) -> 168921 | E151: [mm²] | G151: DIN EN 1992-4
C152: Ac,N | D152: =INDEX(Tragwerk!B45:D45,1,MATCH(Eingabe!$C$4,Tragwerk!$B$14:$D$14)) -> 150220.5 | E152: [mm²] | G152: DIN EN 1992-4
C153: ys,N | D153: =INDEX(Tragwerk!B46:D46,1,MATCH(Eingabe!$C$4,Tragwerk!$B$14:$D$14)) -> 1 | E153: [-] | G153: DIN EN 1992-4
C154: yre,N | D154: =INDEX(Tragwerk!B47:D47,1,MATCH(Eingabe!$C$4,Tragwerk!$B$14:$D$14)) -> 1 | E154: [-] | G154: DIN EN 1992-4
C155: yec,N | D155: =INDEX(Tragwerk!B48:D48,1,MATCH(Eingabe!$C$4,Tragwerk!$B$14:$D$14)) -> 1 | E155: [-] | G155: DIN EN 1992-4
C156: NRk,c | D156: =INDEX(Tragwerk!B50:D50,1,MATCH(Eingabe!$C$4,Tragwerk!$B$14:$D$14)) -> 64.96076901 | E156: [kN] | G156: DIN EN 1992-4
C157: γMc | D157: =Tragwerk!$B$51 -> 1.2 | E157: [-] | G157: DIN EN 1992-4
C158: NRd,c | D158: =INDEX(Tragwerk!B52:D52,1,MATCH(Eingabe!$C$4,Tragwerk!$B$14:$D$14)) -> 54.13397418 | E158: [kN] | G158: Bemessungswert des Widerstandes
C159: NEd,Mitte | D159: =Tragwerk!$B$62 -> 13.10738255 | E159: [kN] | G159: Bemessungswert der Einwirkung
C160: bN,c | D160: =D159/D158 -> 0.2421285847 | E160: [-] | G160: Ausnutzungsgrad
A162: Querkraft-Einwirkung
B163: Stahlversagen mit/ohne Hebelarm
C164: MRk,s | D164: =IF(Eingabe!E80=0,"-",INDEX(Tragwerk!B67:D67,1,MATCH(Eingabe!$C$4,Tragwerk!$B$14:$D$14))) -> - | E164: [Nm] | G164: Charakt. Quertragfähigkeit lt. ETA
C165: γMs | D165: =Tragwerk!$B$68 -> 1.56 | E165: [-] | G165: Teilsicherheitsbeiwert lt. ETA
C166: VRd,s | D166: =INDEX(Tragwerk!B69:D69,1,MATCH(Eingabe!$C$4,Tragwerk!$B$14:$D$14)) -> 79.23 | E166: [kN] | G166: Bemessungswert Stahlwiderstand
C167: VEd,Mitte | D167: =Tragwerk!$B$70 -> 32.23078125 | E167: [kN] | G167: Bemessungswert der Einwirkung
C168: bV,s | D168: =D167/D166 -> 0.4068002177 | E168: [-] | G168: Ausnutzungsgrad
A169: Bauteil | D169: =D60 -> Mittelkappe Nord | I169: Seite | J169: =J60+2 -> 3
A170: Kapitel / Vorgang | D170: =D61 -> Kappenverankerung | I170: Archiv-Nr. | J170: =J61 -> 1234
A171: Baumaßnahme | D171: =D1 -> Brücke über die | I171: Bauwerksnummer (ASB)
A172: Straßenbauverwaltung | D172: =D2 -> XY | I172: =I2 -> 4948579
A173: Aufsteller | D173: =D3 -> Ingenieurbüro | I173: Datum | J173: =J3 -> 2022-12-02
B175: Betonausbruch auf der lastabgewandten Seite
C176: k8 | D176: =Tragwerk!$B$73 -> 2 | E176: [-] | G176: Faktor lt. ETA
C177: VRk,cp | D177: =INDEX(Tragwerk!B74:D74,1,MATCH(Eingabe!$C$4,Tragwerk!$B$14:$D$14)) -> 129.921538 | E177: [kN] | G177: DIN EN 1992-4
C178: γMc | D178: =Tragwerk!$B$75 -> 1.2 | E178: [-] | G178: DIN EN 1992-4
C179: VRd,cp | D179: =INDEX(Tragwerk!B76:D76,1,MATCH(Eingabe!$C$4,Tragwerk!$B$14:$D$14)) -> 108.2679484 | E179: [kN] | G179: Bemessungswert des Widerstandes
C180: VEd,Mitte | D180: =Tragwerk!$B$93 -> 64.4615625 | E180: [kN] | G180: Bemessungswert der Einwirkung
C181: bV,cp | D181: =D180/D179 -> 0.595389157 | E181: [-] | G181: Ausnutzungsgrad
B183: Betonkantenbruch
C184: α | D184: =INDEX(Tragwerk!B78:D78,1,MATCH(Eingabe!$C$4,Tragwerk!$B$14:$D$14)) -> 0.03310589071 | E184: [-] | G184: DIN EN 1992-4
C185: β | D185: =INDEX(Tragwerk!B79:D79,1,MATCH(Eingabe!$C$4,Tragwerk!$B$14:$D$14)) -> 0.04535866311 | E185: [-] | G185: DIN EN 1992-4
C186: V0Rk,c | D186: =INDEX(Tragwerk!B80:D80,1,MATCH(Eingabe!$C$4,Tragwerk!$B$14:$D$14)) -> 617.2482594 | E186: [kN] | G186: DIN EN 1992-4
C187: A0c,V | D187: =INDEX(Tragwerk!B81:D81,1,MATCH(Eingabe!$C$4,Tragwerk!$B$14:$D$14)) -> 7031250 | E187: [mm²] | G187: DIN EN 1992-4
C188: Ac,V | D188: =INDEX(Tragwerk!B82:D82,1,MATCH(Eingabe!$C$4,Tragwerk!$B$14:$D$14)) -> 900000 | E188: [mm²] | G188: DIN EN 1992-4
C189: ψh,V | D189: =INDEX(Tragwerk!B84:D84,1,MATCH(Eingabe!$C$4,Tragwerk!$B$14:$D$14)) -> 2.795084972 | E189: [-] | G189: DIN EN 1992-4
C190: ψre,V | D190: =Tragwerk!B87 -> 1.2 | E190: [-] | G190: DIN EN 1992-4
C191: VRk,c | D191: =INDEX(Tragwerk!B88:D88,1,MATCH(Eingabe!$C$4,Tragwerk!$B$14:$D$14)) -> 265.0001409 | E191: [kN] | G191: DIN EN 1992-4
C192: γMc | D192: =Tragwerk!B89 -> 1.2 | E192: [-] | G192: DIN EN 1992-4
C193: VRd,c | D193: =INDEX(Tragwerk!B90:D90,1,MATCH(Eingabe!$C$4,Tragwerk!$B$14:$D$14)) -> 220.8334507 | E193: [kN] | G193: Bemessungswert des Widerstandes
C194: VEd,Mitte | D194: =Tragwerk!B93 -> 64.4615625 | E194: [kN] | G194: Bemessungswert der Einwirkung
C195: bV,c | D195: =IF(D193="entfällt","entfällt",D194/D193) -> 0.2919012599 | E195: [-] | G195: Ausnutzungsgrad
A197: Kombinierter Ausnutzungsgrad Zugkraft- und Querkraft-Einwirkung
C199: bN+V,Stahl | D199: =INDEX(Tragwerk!B98:D98,1,MATCH(Eingabe!$C$4,Tragwerk!$B$14:$D$14)) -> 0.4068002177 | E199: [-] | G199: Ausnutzung Zug-/Querkraft-Einwirkung: Stahl
C200: bN+V,Beton | D200: =INDEX(Tragwerk!B99:D99,1,MATCH(Eingabe!$C$4,Tragwerk!$B$14:$D$14)) -> 0.5785541463 | E200: [-] | G200: Ausnutzung Zug-/Querkraft-Einwirkung: Beton
A204: Mittelbereich Kappe HPA-Reihe 1
A206: Zugkraft-Einwirkung
B207: Stahlversagen
C208: NRk,s | D208: =INDEX(Kappe!B17:D17,1,MATCH(Eingabe!$C$4,Kappe!$B$12:$D$12)) -> 247.1 | E208: [kN] | G208: Charakt. Zugtragfähigkeit lt. ETA
C209: γMs | D209: =Kappe!$B$18 -> 1.87 | E209: [-] | G209: Teilsicherheitsbeiwert lt. ETA
C210: NRd,s | D210: =INDEX(Kappe!B19:D19,1,MATCH(Eingabe!$C$4,Kappe!$B$12:$D$12)) -> 132.1390374 | E210: [kN] | G210: Bemessungswert des Widerstandes
C211: NEd,Mitte | D211: =Kappe!$B$53 -> 13.10738255 | E211: [kN] | G211: Bemessungswert der Einwirkung
C212: bN,s | D212: =D211/D210 -> 0.09919387037 | E212: [-] | G212: Ausnutzungsgrad
B214: Herausziehen
C215: AMutter | D215: =INDEX(Kappe!B21:D21,1,MATCH(Eingabe!$C$4,Kappe!$B$12:$D$12)) -> 565 | E215: [mm²] | G215: Kopfbolzenfläche
C216: yred,LWC | D216: =Eingabe!N3 -> 1 | E216: [-] | G216: Abminderung Leichtbeton
C217: NRk,p | D217: =INDEX(Kappe!B22:D22,1,MATCH(Eingabe!$C$4,Kappe!$B$12:$D$12)) -> 105.9375 | E217: [kN] | G217: DIN EN 1992-4
C218: γMp | D218: =Kappe!B23 -> 1.2 | E218: [-] | G218: DIN EN 1992-4
C219: NRd,p | D219: =INDEX(Kappe!B24:D24,1,MATCH(Eingabe!$C$4,Kappe!$B$12:$D$12)) -> 88.28125 | E219: [kN] | G219: Bemessungswert des Widerstandes
C220: NEd,Mitte | D220: =Kappe!$B$53 -> 13.10738255 | E220: [kN] | G220: Bemessungswert der Einwirkung
C221: bN,p | D221: =D220/D219 -> 0.1484730059 | E221: [-] | G221: Ausnutzungsgrad
A222: Bauteil | D222: =D60 -> Mittelkappe Nord | I222: Seite | J222: =J60+3 -> 4
A223: Kapitel / Vorgang | D223: =D61 -> Kappenverankerung | I223: Archiv-Nr. | J223: =J61 -> 1234
A224: Baumaßnahme | D224: =D1 -> Brücke über die | I224: Bauwerksnummer (ASB)
A225: Straßenbauverwaltung | D225: =D2 -> XY | I225: =I2 -> 4948579
A226: Aufsteller | D226: =D3 -> Ingenieurbüro | I226: Datum | J226: =J3 -> 2022-12-02
B228: Betonausbruch
C229: N0Rk,c | D229: =INDEX(Kappe!B27:D27,1,MATCH(Eingabe!$C$4,Kappe!$B$12:$D$12)) -> 41.85688072 | E229: [kN] | G229: DIN EN 1992-4
C230: A0c,N | D230: =INDEX(Kappe!B28:D28,1,MATCH(Eingabe!$C$4,Kappe!$B$12:$D$12)) -> 82944 | E230: [mm²] | G230: DIN EN 1992-4
C231: Ac,N | D231: =INDEX(Kappe!B29:D29,1,MATCH(Eingabe!$C$4,Kappe!$B$12:$D$12)) -> 82944 | E231: [mm²] | G231: DIN EN 1992-4 bzw. DAfStb Heft 615
C232: k | D232: =INDEX(Kappe!B26:D26,1,MATCH(Eingabe!$C$4,Kappe!$B$12:$D$12)) -> 8.9 | E232: [-] | G232: DIN EN 1992-4 bzw. DAfStb Heft 615
C233: ys,N | D233: =INDEX(Kappe!B30:D30,1,MATCH(Eingabe!$C$4,Kappe!$B$12:$D$12)) -> 1 | E233: [-] | G233: DIN EN 1992-4
C234: yre,N | D234: =INDEX(Kappe!B31:D31,1,MATCH(Eingabe!$C$4,Kappe!$B$12:$D$12)) -> 1 | E234: [-] | G234: DIN EN 1992-4
C235: yec,N | D235: =INDEX(Kappe!B32:D32,1,MATCH(Eingabe!$C$4,Kappe!$B$12:$D$12)) -> 1 | E235: [-] | G235: DIN EN 1992-4
C236: yucr,N | D236: =INDEX(Kappe!B33:D33,1,MATCH(Eingabe!$C$4,Kappe!$B$12:$D$12)) -> 1 | E236: [-] | G236: DIN EN 1992-4
C237: yred,LWC | D237: =Eingabe!N3 -> 1 | E237: [-] | G237: Abminderung Leichtbeton
C238: NRk,c | D238: =INDEX(Kappe!B34:D34,1,MATCH(Eingabe!$C$4,Kappe!$B$12:$D$12)) -> 41.85688072 | E238: [kN] | G238: DIN EN 1992-4
C239: γMc | D239: =Kappe!$B$35 -> 1.2 | E239: [-] | G239: DIN EN 1992-4
C240: NRd,c | D240: =INDEX(Kappe!B36:D36,1,MATCH(Eingabe!$C$4,Kappe!$B$12:$D$12)) -> 34.88073394 | E240: [kN] | G240: Bemessungswert des Widerstandes
C241: NEd,Mitte | D241: =Kappe!$B$53 -> 13.10738255 | E241: [kN] | G241: Bemessungswert der Einwirkung
C242: bN,c | D242: =D241/D240 -> 0.3757771432 | E242: [-] | G242: Ausnutzungsgrad
A244: Querkraft-Einwirkung
B245: Stahlversagen mit/ohne Hebelarm
C246: MRk,s | D246: =IF(Eingabe!E80=0,"-",INDEX(Kappe!B58:D58,1,MATCH(Eingabe!$C$4,Kappe!$B$12:$D$12))) -> - | E246: [Nm] | G246: Charakt. Quertragfähigkeit lt. ETA
C247: γMs | D247: =Kappe!$B$59 -> 1.56 | E247: [-] | G247: Teilsicherheitsbeiwert lt. ETA
C248: VRd,s | D248: =INDEX(Kappe!B60:D60,1,MATCH(Eingabe!$C$4,Kappe!$B$12:$D$12)) -> 79.23 | E248: [kN] | G248: Bemessungswert Stahlwiderstand
C249: VSd,Mitte | D249: =Kappe!$B$61 -> 32.23078125 | E249: [kN] | G249: Bemessungswert der Einwirkung
C250: bV,s | D250: =D249/D248 -> 0.4068002177 | E250: [-] | G250: Ausnutzungsgrad
B252: Betonausbruch auf der lastabgewandten Seite
C253: k8 | D253: =Kappe!$B$64 -> 2 | E253: [-] | G253: Z-21.8-2118
... 392 more rows

Sheet Ausdruck_1-reihig+Bew.,Schw. (hidden)
A1: Baumaßnahme | D1: Brücke über die | I1: Bauwerksnummer (ASB)
A2: Straßenbauverwaltung | D2: XY | I2: 4948579
A3: Aufsteller | D3: Ingenieurbüro | I3: Datum | J3: 2022-12-02
B4: Projekt- und Montageübersicht
B6: Geometrie
B24: Randbereich in Kappenlängsrichtung jeweils 6 m vor Übergangs-Konstruktion (ÜKO)
A28: Bauvorhaben | G28: Kappenverankerung
B29: =Eingabe!C3 -> Instandsetzung Kappe
A31: Tragwerk (Überbau)
B33: Betongüte | D33: =Eingabe!C6 -> C 35/45; gerissen
B34: Randabstand cT | D34: =Eingabe!C7 -> 1250 | E34: [mm]
B35: Drehpunktabstand d | D35: =Eingabe!C9 -> 10 | E35: [mm]
B36: Abstand längs sx,Mittelbereich | D36: =Eingabe!J28 -> 900 | E36: [mm]
B37: Abstand längs sx,Randbereich | D37: =Eingabe!J32 -> 450 | E37: [mm]
B38: Bauteildicke Tragwerk hT | D38: =Eingabe!C8 -> 240 | E38: [mm]
B39: Verankerungslänge hef | D39: =Eingabe!AD83 -> 137 | E39: [mm]
B40: Bohrloch-Ø do | D40: =Eingabe!W37 -> 28 | E40: [mm]
A42: Kappe
B44: Betongüte | D44: =Eingabe!C13 -> C 25/30 (LP); gerissen
B45: Rohdichte ρ | D45: =Eingabe!C14&" [kg/m3]" -> 1700 [kg/m3]
B46: Kappenbreite b | D46: =LEFT(Eingabe!C12,FIND("m",Eingabe!C12)-1) -> ≤ 1,70 | E46: [m]
B47: Randabstand cK | D47: =Eingabe!C16 -> 200 | E47: [mm]
B48: Kopfbolzenart | C48: =Eingabe!C15 -> Sechskantmutter A4 M24
B49: Betondeckung Kopfb. cnom | D49: =IF(Eingabe!C19=0,"0",Eingabe!C19) -> 30 | E49: [mm]
B50: Kappenhöhe hK | D50: =Eingabe!C18 -> 145 | E50: [mm]
B51: Verankerungslänge hef,neu | D51: =Eingabe!C21 -> 96 | E51: [mm] | G51: =Eingabe!Z110 -> Set HPA A4 M24x260 inkl. Mutter u. Stauscheibe (2330230)
B52: Gewindehöhe hK,Gew | D52: =SUM(Eingabe!C20,Eingabe!C21) -> 115 | E52: [mm]
A53: Dichtungsschicht
B54: =LEFT(Eingabe!F4,FIND(",",Eingabe!F4)-1) -> Bitumen-Schweißbahn einlagig + Schutzlage | G54: zzgl. Injektionsmörtel HIT-RE 500 V4
B55: Dicke | D55: =IF(Eingabe!H80<1,"0",Eingabe!H80) -> 8 | E55: [mm] | G55: HIT-Menge: | H55: ="≈ "&Eingabe!AD93 -> ≈ 65 | I55: ml/HPA
B56: =Eingabe!B2 -> HILTI Design-Tool Kappenverankerung 10.2 | G56: =Eingabe!I2 -> Version gültig bis 31.12.2023
A57: Bauteil | D57: Mittelkappe Nord | I57: Seite | J57: 1
A58: Kapitel / Vorgang | D58: Kappenverankerung | I58: Archiv-Nr. | J58: 1234
A59: Baumaßnahme | D59: =D1 -> Brücke über die | I59: Bauwerksnummer (ASB)
A60: Straßenbauverwaltung | D60: =D2 -> XY | I60: =I2 -> 4948579
A61: Aufsteller | D61: =D3 -> Ingenieurbüro | I61: Datum | J61: =J3 -> 2022-12-02
A62: Einwirkungen
B64: Direkte Einwirkungen:
B65: =Eingabe!C24 -> Anprall Schrammbord
B66: Moment MEd,y,direkt : | G66: =IF(Eingabe!C25=0,"0,0",Eingabe!C25) -> 28 | H66: [kNm/m]
B67: Querkraft VEd,y, direkt : | G67: =Eingabe!C26 -> 64 | H67: [kN/m]
B68: Indirekte Einwirkungen: (Aus numerischen Berechnungen auf Basis Änderung konstanter Temperaturanteil aus Klima, konstantem Temperaturunterschied zwischen verschiedenen Bauteilen sowie Kriechen und Schwinden in Abhängigkeit von Kappenlänge, -querschnitt, Kappenausführung, Dübelanzahl und -steifigkeit; Prof. Dr. U. Freundt, Gutachten zur Befestigung von Brückenkappen mittels Hilti Kappenverankerung HPA (ehem. HCC), Weimar 30.7.2015)
B69: Mitte: VEd,y,indirekt : | G69: =IF(Eingabe!C29>0,Eingabe!C29,"0,0") -> 12 | H69: [kN/HPA]
B70: Rand: VEd,x/y,indirekt : | G70: =IF(Eingabe!C30>0,Eingabe!C30,"0,0") -> 12 | H70: [kN/HPA]
A72: Resultierende Einwirkungen / HPA
B74: Mittelbereich
C75: Tragwerk | D75: Kappe
C76: HPA-Reihe 1
B77: NEd | C77: =Eingabe!D41 -> 13.10738255 | D77: =Eingabe!F41 -> 13.10738255
B78: VEd,y,Stahl | C78: =Eingabe!D42 -> 32.23078125 | D78: =Eingabe!F42 -> 32.23078125
B79: VEd,y,Beton | C79: =Eingabe!D43 -> 64.4615625 | D79: =Eingabe!F43 -> 32.23078125
B81: Randbereich (6m vor ÜKO)
C82: Tragwerk | D82: Kappe
C83: HPA-Reihe 1 [kN]
B84: NEd | C84: =Eingabe!D53 -> 6.553691275 | D84: =Eingabe!F53 -> 6.553691275
B85: VEd,x/y,Stahl | C85: =Eingabe!D54 -> 20.03492348 | D85: =Eingabe!F54 -> 20.03492348
B86: VEd,x/y,Beton | C86: =Eingabe!D55 -> 40.06984695 | D86: =Eingabe!F55 -> 20.03492348
A88: Widerstände / HPA
B90: Mittelbereich
C91: Tragwerk | D91: Kappe
C92: HPA-Reihe 1
B93: NRd,s | C93: =D128 -> 132.1390374 | D93: =D206 -> 132.1390374
B94: NRd,c | C94: =Eingabe!D45 -> 54.13397418 | D94: =Eingabe!F45 -> 34.88073394
B95: NRd,p | C95: =Eingabe!D46 -> 76.72237881 | D95: =Eingabe!F46 -> 88.28125
B96: VRd,s | C96: =Eingabe!D47 -> 79.23 | D96: =Eingabe!F47 -> 79.23
B97: VRd,c/cp | C97: =Eingabe!D48 -> 108.2679484 | D97: =Eingabe!F48 -> 69.76146787
B98: Ausnutzung | C98: =Eingabe!D49 -> 57.85541463 | D98: =Eingabe!F49 -> 54.43923409
B99: =Eingabe!F29 -> Verankerung Mittelbereich zulässig
B101: Randbereich (6m vor ÜKO)
C102: Tragwerk | D102: Kappe
C103: HPA-Reihe 1
B104: NRd,s | C104: =D269 -> 132.1390374 | D104: =D352 -> 132.1390374
B105: NRd,c | C105: =Eingabe!D57 -> 54.13397418 | D105: =Eingabe!F57 -> 34.88073394
B106: NRd,p | C106: =Eingabe!D58 -> 76.72237881 | D106: =Eingabe!F58 -> 88.28125
B107: VRd,s | C107: =Eingabe!D59 -> 79.23 | D107: =Eingabe!F59 -> 79.23
B108: VRd,c/cp | C108: =Eingabe!D60 -> 108.2679484 | D108: =Eingabe!F60 -> 69.76146787
B109: Ausnutzung | C109: =Eingabe!D61 -> 26.72759099 | D109: =Eingabe!F61 -> 25.28704213
B110: =Eingabe!F33 -> Verankerung Randbereich zulässig
A112: Zugkraftübertragung Kappe → Tragwerk (Überbau): Kappenverankerung HPA
A113: =" Querkraftübertragung Kappe → Tragwerk (Überbau): "&(Eingabe!C33) -> Querkraftübertragung Kappe → Tragwerk (Überbau): Kappenverankerung HPA
A114: Bauteil | D114: =D57 -> Mittelkappe Nord | I114: Seite | J114: =J57+1 -> 2
A115: Kapitel / Vorgang | D115: =D58 -> Kappenverankerung | I115: Archiv-Nr. | J115: =J58 -> 1234
A116: Baumaßnahme | D116: =D1 -> Brücke über die | I116: Bauwerksnummer (ASB)
A117: Straßenbauverwaltung | D117: =D2 -> XY | I117: =I2 -> 4948579
A118: Aufsteller | D118: =D3 -> Ingenieurbüro | I118: Datum | J118: =J3 -> 2022-12-02
A120: Verwendbarkeits- und Anwendbarkeitsnachweise / Prüfungen / Gutachten
B121: 1. Dübelsystem HIT-RE 500 V4 nach ETA-20/0541 2. Hilti Betonverbinder HPA nach Z-21.8-2118 3. Dichtheitsprüfungen mit Berichten der Bautechnischen Versuchsanstalt an der HTL Rankweil 4. Dichtheitsprüfung unter dynamischer Querkraft-Einwirkung; Bericht der Bautechnischen Versuchsanstalt an der HTL Rankweil 5. Gutachten 20-083/1.1.1, Nachträgliche Verankerung von Brückenkappen und Lärmschutzwänden auf Brückenkappen mit Injektionssystem HIT RE 500 V4; Ingenieurbüro Schiessl Gehlen Sodeikat GmbH
A122: Mittelbereich Tragwerk (Überbau)
A124: Zugkraft-Einwirkung
B125: Stahlversagen
C126: NRk,s | D126: =INDEX(Tragwerk!$B$23:$D$23,1,MATCH(Eingabe!$C$4,Tragwerk!$B$14:$D$14)) -> 247.1 | E126: [kN] | G126: Charakteristische Zugtragfähigkeit lt. ETA
C127: γMs | D127: =Tragwerk!$B$24 -> 1.87 | E127: [-] | G127: Teilsicherheitsbeiwert lt. ETA
C128: NRd,s | D128: =INDEX(Tragwerk!B25:D25,1,MATCH(Eingabe!C4,Tragwerk!B14:D14)) -> 132.1390374 | E128: [kN] | G128: Bemessungswert des Widerstandes
C129: NEd,Mitte | D129: =Tragwerk!$B$62 -> 13.10738255 | E129: [kN] | G129: Bemessungswert der Einwirkung
C130: bN,s | D130: =D129/D128 -> 0.09919387037 | E130: [-] | G130: Ausnutzungsgrad
B132: Kombiniertes Versagen Herausziehen / Betonausbruch
C133: NRk,p | D133: =INDEX(Tragwerk!$B$27:$D$27,1,MATCH(Eingabe!$C$4,Tragwerk!$B$14:$D$14)) -> 98.13078813 | E133: [kN] | G133: DIN EN 1992-4
C134: scr,Np | D134: =INDEX(Tragwerk!$B$28:$D$28,1,MATCH(Eingabe!$C$4,Tragwerk!$B$14:$D$14)) -> 411 | E134: [mm] | G134: Charakt. Achsabstand DIN EN 1992-4
C135: A0p,N | D135: =INDEX(Tragwerk!$B$29:$D$29,1,MATCH(Eingabe!$C$4,Tragwerk!$B$14:$D$14)) -> 168921 | E135: [mm²] | G135: Fläche lt. DIN EN 1992-4
C136: Ap,N | D136: =INDEX(Tragwerk!$B$30:$D$30,1,MATCH(Eingabe!$C$4,Tragwerk!$B$14:$D$14)) -> 150220.5 | E136: [mm²] | G136: Fläche lt. DIN EN 1992-4
C137: ψs,Np | D137: =INDEX(Tragwerk!$B$31:$D$31,1,MATCH(Eingabe!$C$4,Tragwerk!$B$14:$D$14)) -> 1 | E137: [-] | G137: DIN EN 1992-4
C138: ψre,N | D138: =INDEX(Tragwerk!$B$32:$D$32,1,MATCH(Eingabe!$C$4,Tragwerk!$B$14:$D$14)) -> 1 | E138: [-] | G138: DIN EN 1992-4
C139: ψc | D139: =Tragwerk!$B$38 -> 1.055 | E139: [-] | G139: Erhöhungsfaktor lt. ETA
C140: γMp | D140: =Tragwerk!$B$40 -> 1.2 | E140: [-] | G140: DIN EN 1992-4
C141: NRd,p | D141: =INDEX(Tragwerk!B41:D41,1,MATCH(Eingabe!C4,Tragwerk!B14:D14)) -> 76.72237881 | E141: [kN] | G141: Bemessungswert des Widerstandes
C142: NEd,Mitte | D142: =Tragwerk!$B$62 -> 13.10738255 | E142: [kN] | G142: Bemessungswert der Einwirkung
C143: bN,p | D143: =D142/D141 -> 0.1708417121 | E143: [-] | G143: Ausnutzungsgrad
B145: Betonausbruch
C146: N0Rk,c | D146: =INDEX(Tragwerk!B43:D43,1,MATCH(Eingabe!$C$4,Tragwerk!$B$14:$D$14)) -> 73.04754053 | E146: [kN] | G146: DIN EN 1992-4
C147: A0c,N | D147: =INDEX(Tragwerk!B44:D44,1,MATCH(Eingabe!$C$4,Tragwerk!$B$14:$D$14)) -> 168921 | E147: [mm²] | G147: DIN EN 1992-4
C148: Ac,N | D148: =INDEX(Tragwerk!B45:D45,1,MATCH(Eingabe!$C$4,Tragwerk!$B$14:$D$14)) -> 150220.5 | E148: [mm²] | G148: DIN EN 1992-4
C149: ys,N | D149: =INDEX(Tragwerk!B46:D46,1,MATCH(Eingabe!$C$4,Tragwerk!$B$14:$D$14)) -> 1 | E149: [-] | G149: DIN EN 1992-4
C150: yre,N | D150: =INDEX(Tragwerk!B47:D47,1,MATCH(Eingabe!$C$4,Tragwerk!$B$14:$D$14)) -> 1 | E150: [-] | G150: DIN EN 1992-4
C151: yec,N | D151: =INDEX(Tragwerk!B48:D48,1,MATCH(Eingabe!$C$4,Tragwerk!$B$14:$D$14)) -> 1 | E151: [-] | G151: DIN EN 1992-4
C152: NRk,c | D152: =INDEX(Tragwerk!B50:D50,1,MATCH(Eingabe!$C$4,Tragwerk!$B$14:$D$14)) -> 64.96076901 | E152: [kN] | G152: DIN EN 1992-4
C153: γMc | D153: =Tragwerk!$B$51 -> 1.2 | E153: [-] | G153: DIN EN 1992-4
C154: NRd,c | D154: =INDEX(Tragwerk!B52:D52,1,MATCH(Eingabe!$C$4,Tragwerk!$B$14:$D$14)) -> 54.13397418 | E154: [kN] | G154: Bemessungswert des Widerstandes
C155: NEd,Mitte | D155: =Tragwerk!$B$62 -> 13.10738255 | E155: [kN] | G155: Bemessungswert der Einwirkung
C156: bN,c | D156: =D155/D154 -> 0.2421285847 | E156: [-] | G156: Ausnutzungsgrad
A158: Querkraft-Einwirkung
B159: Stahlversagen mit/ohne Hebelarm
C160: MRk,s | D160: =IF(Eingabe!E80=0,"-",INDEX(Tragwerk!B67:D67,1,MATCH(Eingabe!$C$4,Tragwerk!$B$14:$D$14))) -> - | E160: [Nm] | G160: Charakt. Quertragfähigkeit lt. ETA
C161: γMs | D161: =Tragwerk!$B$68 -> 1.56 | E161: [-] | G161: Teilsicherheitsbeiwert lt. ETA
C162: VRd,s | D162: =INDEX(Tragwerk!B69:D69,1,MATCH(Eingabe!$C$4,Tragwerk!$B$14:$D$14)) -> 79.23 | E162: [kN] | G162: Bemessungswert Stahlwiderstand
C163: VEd,Mitte | D163: =Tragwerk!$B$70 -> 32.23078125 | E163: [kN] | G163: Bemessungswert der Einwirkung
C164: bV,s | D164: =D163/D162 -> 0.4068002177 | E164: [-] | G164: Ausnutzungsgrad
A165: Bauteil | D165: =D57 -> Mittelkappe Nord | I165: Seite | J165: =J57+2 -> 3
A166: Kapitel / Vorgang | D166: =D58 -> Kappenverankerung | I166: Archiv-Nr. | J166: =J58 -> 1234
A167: Baumaßnahme | D167: =D1 -> Brücke über die | I167: Bauwerksnummer (ASB)
A168: Straßenbauverwaltung | D168: =D2 -> XY | I168: =I2 -> 4948579
A169: Aufsteller | D169: =D3 -> Ingenieurbüro | I169: Datum | J169: =J3 -> 2022-12-02
B171: Betonausbruch auf der lastabgewandten Seite
C172: k8 | D172: =Tragwerk!$B$73 -> 2 | E172: [-] | G172: Faktor lt. ETA
C173: VRk,cp | D173: =INDEX(Tragwerk!B74:D74,1,MATCH(Eingabe!$C$4,Tragwerk!$B$14:$D$14)) -> 129.921538 | E173: [kN] | G173: DIN EN 1992-4
C174: γMc | D174: =Tragwerk!$B$75 -> 1.2 | E174: [-] | G174: DIN EN 1992-4
C175: VRd,cp | D175: =INDEX(Tragwerk!B76:D76,1,MATCH(Eingabe!$C$4,Tragwerk!$B$14:$D$14)) -> 108.2679484 | E175: [kN] | G175: Bemessungswert des Widerstandes
C176: VEd,Mitte | D176: =Tragwerk!$B$93 -> 64.4615625 | E176: [kN] | G176: Bemessungswert der Einwirkung
C177: bV,cp | D177: =D176/D175 -> 0.595389157 | E177: [-] | G177: Ausnutzungsgrad
B179: Betonkantenbruch
C180: α | D180: =INDEX(Tragwerk!B78:D78,1,MATCH(Eingabe!$C$4,Tragwerk!$B$14:$D$14)) -> 0.03310589071 | E180: [-] | G180: DIN EN 1992-4
C181: β | D181: =INDEX(Tragwerk!B79:D79,1,MATCH(Eingabe!$C$4,Tragwerk!$B$14:$D$14)) -> 0.04535866311 | E181: [-] | G181: DIN EN 1992-4
C182: V0Rk,c | D182: =INDEX(Tragwerk!B80:D80,1,MATCH(Eingabe!$C$4,Tragwerk!$B$14:$D$14)) -> 617.2482594 | E182: [kN] | G182: DIN EN 1992-4
C183: A0c,V | D183: =INDEX(Tragwerk!B81:D81,1,MATCH(Eingabe!$C$4,Tragwerk!$B$14:$D$14)) -> 7031250 | E183: [mm²] | G183: DIN EN 1992-4
C184: Ac,V | D184: =INDEX(Tragwerk!B82:D82,1,MATCH(Eingabe!$C$4,Tragwerk!$B$14:$D$14)) -> 900000 | E184: [mm²] | G184: DIN EN 1992-4
C185: ψh,V | D185: =INDEX(Tragwerk!B84:D84,1,MATCH(Eingabe!$C$4,Tragwerk!$B$14:$D$14)) -> 2.795084972 | E185: [-] | G185: DIN EN 1992-4
C186: ψre,V | D186: =Tragwerk!B87 -> 1.2 | E186: [-] | G186: DIN EN 1992-4
C187: VRk,c | D187: =INDEX(Tragwerk!B88:D88,1,MATCH(Eingabe!$C$4,Tragwerk!$B$14:$D$14)) -> 265.0001409 | E187: [kN] | G187: DIN EN 1992-4
C188: γMc | D188: =Tragwerk!B89 -> 1.2 | E188: [-] | G188: DIN EN 1992-4
C189: VRd,c | D189: =INDEX(Tragwerk!B90:D90,1,MATCH(Eingabe!$C$4,Tragwerk!$B$14:$D$14)) -> 220.8334507 | E189: [kN] | G189: Bemessungswert des Widerstandes
C190: VEd,Mitte | D190: =Tragwerk!B93 -> 64.4615625 | E190: [kN] | G190: Bemessungswert der Einwirkung
C191: bV,c | D191: =D190/D189 -> 0.2919012599 | E191: [-] | G191: Ausnutzungsgrad
A193: Kombinierter Ausnutzungsgrad Zugkraft- und Querkraft-Einwirkung Mittelbereich
C195: bN+V,Stahl | D195: =INDEX(Tragwerk!B98:D98,1,MATCH(Eingabe!$C$4,Tragwerk!$B$14:$D$14)) -> 0.4068002177 | E195: [-] | G195: Ausnutzung Zug-/Querkraft-Einwirkung: Stahl
C196: bN+V,Beton | D196: =INDEX(Tragwerk!B99:D99,1,MATCH(Eingabe!$C$4,Tragwerk!$B$14:$D$14)) -> 0.5785541463 | E196: [-] | G196: Ausnutzung Zug-/Querkraft-Einwirkung: Beton
A200: Mittelbereich Kappe
A202: Zugkraft-Einwirkung
B203: Stahlversagen
C204: NRk,s | D204: =INDEX(Kappe!B17:D17,1,MATCH(Eingabe!$C$4,Kappe!$B$12:$D$12)) -> 247.1 | E204: [kN] | G204: Charakt. Zugtragfähigkeit lt. ETA
C205: γMs | D205: =Kappe!$B$18 -> 1.87 | E205: [-] | G205: Teilsicherheitsbeiwert lt. ETA
C206: NRd,s | D206: =INDEX(Kappe!B19:D19,1,MATCH(Eingabe!$C$4,Kappe!$B$12:$D$12)) -> 132.1390374 | E206: [kN] | G206: Bemessungswert des Widerstandes
C207: NEd,Mitte | D207: =Kappe!$B$53 -> 13.10738255 | E207: [kN] | G207: Bemessungswert der Einwirkung
C208: bN,s | D208: =D207/D206 -> 0.09919387037 | E208: [-] | G208: Ausnutzungsgrad
B210: Herausziehen
C211: AMutter | D211: =INDEX(Kappe!B21:D21,1,MATCH(Eingabe!$C$4,Kappe!$B$12:$D$12)) -> 565 | E211: [mm²] | G211: Kopfbolzenfläche
C212: yred,LWC | D212: =Eingabe!N3 -> 1 | E212: [-] | G212: Abminderung Leichtbeton
C213: NRk,p | D213: =INDEX(Kappe!B22:D22,1,MATCH(Eingabe!$C$4,Kappe!$B$12:$D$12)) -> 105.9375 | E213: [kN] | G213: DIN EN 1992-4
C214: γMp | D214: =Kappe!B23 -> 1.2 | E214: [-] | G214: DIN EN 1992-4
C215: NRd,p | D215: =INDEX(Kappe!B24:D24,1,MATCH(Eingabe!$C$4,Kappe!$B$12:$D$12)) -> 88.28125 | E215: [kN] | G215: Bemessungswert des Widerstandes
C216: NEd,Mitte | D216: =Kappe!$B$53 -> 13.10738255 | E216: [kN] | G216: Bemessungswert der Einwirkung
C217: bN,p | D217: =D216/D215 -> 0.1484730059 | E217: [-] | G217: Ausnutzungsgrad
A218: Bauteil | D218: =D57 -> Mittelkappe Nord | I218: Seite | J218: =J57+3 -> 4
A219: Kapitel / Vorgang | D219: =D58 -> Kappenverankerung | I219: Archiv-Nr. | J219: =J58 -> 1234
A220: Baumaßnahme | D220: =D1 -> Brücke über die | I220: Bauwerksnummer (ASB)
A221: Straßenbauverwaltung | D221: =D2 -> XY | I221: =I2 -> 4948579
A222: Aufsteller | D222: =D3 -> Ingenieurbüro | I222: Datum | J222: =J3 -> 2022-12-02
B224: Betonausbruch
C225: N0Rk,c | D225: =INDEX(Kappe!B27:D27,1,MATCH(Eingabe!$C$4,Kappe!$B$12:$D$12)) -> 41.85688072 | E225: [kN] | G225: DIN EN 1992-4
C226: A0c,N | D226: =INDEX(Kappe!B28:D28,1,MATCH(Eingabe!$C$4,Kappe!$B$12:$D$12)) -> 82944 | E226: [mm²] | G226: DIN EN 1992-4
C227: Ac,N | D227: =INDEX(Kappe!B29:D29,1,MATCH(Eingabe!$C$4,Kappe!$B$12:$D$12)) -> 82944 | E227: [mm²] | G227: DIN EN 1992-4 bzw. DAfStb Heft 615
C228: k | D228: =INDEX(Kappe!B26:D26,1,MATCH(Eingabe!$C$4,Kappe!$B$12:$D$12)) -> 8.9 | E228: [-] | G228: DIN EN 1992-4 bzw. DAfStb Heft 615
C229: ys,N | D229: =INDEX(Kappe!B30:D30,1,MATCH(Eingabe!$C$4,Kappe!$B$12:$D$12)) -> 1 | E229: [-] | G229: DIN EN 1992-4
C230: yre,N | D230: =INDEX(Kappe!B31:D31,1,MATCH(Eingabe!$C$4,Kappe!$B$12:$D$12)) -> 1 | E230: [-] | G230: DIN EN 1992-4
C231: yec,N | D231: =INDEX(Kappe!B32:D32,1,MATCH(Eingabe!$C$4,Kappe!$B$12:$D$12)) -> 1 | E231: [-] | G231: DIN EN 1992-4
C232: yucr,N | D232: =INDEX(Kappe!B33:D33,1,MATCH(Eingabe!$C$4,Kappe!$B$12:$D$12)) -> 1 | E232: [-] | G232: DIN EN 1992-4
C233: yred,LWC | D233: =Eingabe!N3 -> 1 | E233: [-] | G233: Abminderung Leichtbeton
C234: NRk,c | D234: =INDEX(Kappe!B34:D34,1,MATCH(Eingabe!$C$4,Kappe!$B$12:$D$12)) -> 41.85688072 | E234: [kN] | G234: DIN EN 1992-4
C235: γMc | D235: =Kappe!$B$35 -> 1.2 | E235: [-] | G235: DIN EN 1992-4
C236: NRd,c | D236: =INDEX(Kappe!B36:D36,1,MATCH(Eingabe!$C$4,Kappe!$B$12:$D$12)) -> 34.88073394 | E236: [kN] | G236: Bemessungswert des Widerstandes
C237: NEd,Mitte | D237: =Kappe!$B$53 -> 13.10738255 | E237: [kN] | G237: Bemessungswert der Einwirkung
C238: bN,c | D238: =D237/D236 -> 0.3757771432 | E238: [-] | G238: Ausnutzungsgrad
A240: Querkraft-Einwirkung
B241: Stahlversagen mit/ohne Hebelarm
C242: MRk,s | D242: =IF(Eingabe!E80=0,"-",INDEX(Kappe!B58:D58,1,MATCH(Eingabe!$C$4,Kappe!$B$12:$D$12))) -> - | E242: [Nm] | G242: Charakt. Quertragfähigkeit lt. ETA
C243: γMs | D243: =Kappe!$B$59 -> 1.56 | E243: [-] | G243: Teilsicherheitsbeiwert lt. ETA
C244: VRd,s | D244: =INDEX(Kappe!B60:D60,1,MATCH(Eingabe!$C$4,Kappe!$B$12:$D$12)) -> 79.23 | E244: [kN] | G244: Bemessungswert Stahlwiderstand
C245: VEd,Mitte | D245: =Kappe!$B$61 -> 32.23078125 | E245: [kN] | G245: Bemessungswert der Einwirkung
C246: bV,s | D246: =D245/D244 -> 0.4068002177 | E246: [-] | G246: Ausnutzungsgrad
B248: Betonausbruch auf der lastabgewandten Seite
C249: k8 | D249: =Kappe!$B$64 -> 2 | E249: [-] | G249: Z-21.8-2118
C250: VRk,cp | D250: =INDEX(Kappe!B65:D65,1,MATCH(Eingabe!$C$4,Kappe!$B$12:$D$12)) -> 83.71376145 | E250: [kN] | G250: DIN EN 1992-4
... 146 more rows

Sheet Grafiken (hidden)
A2: Dübelreihe 1 | AB2: Ausnutzung Dübel
A3: Tragwerk | B3: α | C3: =Tragwerk!B100 -> 0
A4: Laufende Nummer | B4: 0 | C4: 1 | D4: 2 | E4: 3 | AB4: =Tragwerk!B104 -> Kappenanker HPA M24
A5: Normalkraft | B5: 0 | C5: 0.1873 | D5: 0.4636 | E5: 0.5 | AB5: =Tragwerk!B105 -> 0.4068002177
A6: Querkraft | B6: 0.5 | C6: 0.4636 | D6: 0.1873 | E6: 0 | AB6: =Tragwerk!B106 -> 0.5785541463
A7: Kappe | B7: α | C7: =Kappe!B91 -> 0
A8: Laufende Nummer | B8: 0 | C8: 1 | D8: 2 | E8: 3 | AB8: =Kappe!B95 -> Kappenanker HPA M24
A9: Normalkraft | B9: 0 | C9: 0.1873 | D9: 0.4636 | E9: 0.5 | AB9: =Kappe!B96 -> 0.4068002177
A10: Querkraft | B10: 0.5 | C10: 0.4636 | D10: 0.1873 | E10: 0 | AB10: =Kappe!B97 -> 0.5443923409
A12: Dübelreihe 2
A13: Tragwerk | B13: α | C13: =Tragwerk!G100 -> 0
A14: Laufende Nummer | B14: 0 | C14: 1 | D14: 2 | E14: 3 | AB14: =Tragwerk!G104 -> Kappenanker HPA M24
A15: Normalkraft | B15: 0 | C15: 0.1873 | D15: 0.4636 | E15: 0.5 | AB15: =Tragwerk!G105 -> 0.4068002177
A16: Querkraft | B16: 0.5 | C16: 0.4636 | D16: 0.1873 | E16: 0 | AB16: =Tragwerk!G106 -> 0.2385672668
A17: Kappe | B17: α | C17: =Kappe!G91 -> 0
A18: Laufende Nummer | B18: 0 | C18: 1 | D18: 2 | E18: 3 | AB18: =Kappe!G95 -> Kappenanker HPA M24
A19: Normalkraft | B19: 0 | C19: 0.1873 | D19: 0.4636 | E19: 0.5 | AB19: =Kappe!G96 -> 0.4068002177
A20: Querkraft | B20: 0.5 | C20: 0.4636 | D20: 0.1873 | E20: 0 | AB20: =Kappe!G97 -> 1.002358817

Sheet Tragwerk (hidden)
A1: Tragwerk | C1: Mittelbereich | O1: Randbereich
A2: Dübel 1 (der Tragwerksachse näher liegend) | F2: Dübel 2 (dem Tragwerksrand näher liegend)
A3: fck,cyl | B3: =Eingabe!F5 -> 35 | C3: [N/mm²] | F3: fck,cyl | G3: =B3 -> 35 | H3: [N/mm²] | L3: fck,cyl | M3: =Eingabe!F5 -> 35 | Q3: fck,cyl | R3: =M3 -> 35
A4: Verb.-Sp. RE 500 V4 | B4: =Eingabe!O8 -> 9.5 | C4: [-] | F4: Untergrundqualität | H4: [-]
A5: Randabstand cT | B5: =Eingabe!$C$7 -> 1250 | C5: [mm] | F5: Randabstand cT | G5: =Eingabe!$C$7-Eingabe!$C$17 -> 930 | H5: [mm]
A6: Achsabstand s Mitte | B6: =Eingabe!J28 -> 900 | C6: [mm] | F6: Achsabstand s Mitte | G6: =B6 -> 900 | H6: [mm] | L6: Achsabstand s Rand | M6: =Eingabe!J32 -> 450 | N6: [mm]
A7: Dübelreihenabst. s1 | B7: =Eingabe!C17 -> 320 | C7: [mm] | F7: Dübelreihenabst. s1 | G7: =B7 -> 320 | H7: [mm] | L7: aV für Betonkantenbruch | M7: =IF(Eingabe!C33="Anschlussbewehrung",Eingabe!Q30,Eingabe!O30) -> 17.42619691 | N7: [°]
A8: Untergrunddicke h | B8: =Eingabe!C8 -> 240 | C8: [mm] | F8: Untergrunddicke h | G8: =B8 -> 240 | H8: [mm]
A9: Dübelanzahl | B9: 1 | C9: [Stk] | F9: Dübelanzahl | G9: 1 | H9: [Stk]
A10: Dichtung/Schutzbahn | B10: =IF(Eingabe!E80=1,Eingabe!D80,0) -> 0 | C10: [mm]
A11: Warnung c | B11: =IF($B$5<B16,"c < cmin !","ok") -> ok | C11: =IF($B$5<C16,"c < cmin !","ok") -> ok | D11: =IF($B$5<D16,"c < cmin !","ok") -> ok | F11: Warnung c | G11: =IF($G$5<G16,"c < cmin !","ok") -> ok | H11: =IF($G$5<H16,"c < cmin !","ok") -> ok | I11: =IF($G$5<I16,"c < cmin !","ok") -> ok
A12: Warnung s Mitte 1.R | B12: =IF(Eingabe!$G$5="Einreihige Ankeranordnung",IF($B$6<B17,"s < smin !","ok"),IF(OR($B$7<B17,$B$6<B17),"s < smin !","ok")) -> ok | C12: =IF(Eingabe!$G$5="Einreihige Ankeranordnung",IF($B$6<C17,"s < smin !","ok"),IF(OR($B$7<C17,$B$6<C17),"s < smin !","ok")) -> ok | D12: =IF(Eingabe!$G$5="Einreihige Ankeranordnung",IF($B$6<D17,"s < smin !","ok"),IF(OR($B$7<D17,$B$6<D17),"s < smin !","ok")) -> ok | F12: Warnung s Mitte 2.R | G12: =IF(Eingabe!$G$5="Einreihige Ankeranordnung",IF($G$6<G17,"s < smin !","ok"),IF(OR($G$7<G17,$G$6<G17),"s < smin !","ok")) -> ok | H12: =IF(Eingabe!$G$5="Einreihige Ankeranordnung",IF($G$6<H17,"s < smin !","ok"),IF(OR($G$7<H17,$G$6<H17),"s < smin !","ok")) -> ok | I12: =IF(Eingabe!$G$5="Einreihige Ankeranordnung",IF($G$6<I17,"s < smin !","ok"),IF(OR($G$7<I17,$G$6<I17),"s < smin !","ok")) -> ok | L12: Warnung s Rand 1.R | M12: =IF(Eingabe!$G$5="Einreihige Ankeranordnung",IF($M$6<B17,"s < smin !","ok"),IF(OR($B$7<B17,$M$6<B17),"s < smin !","ok")) -> ok | N12: =IF(Eingabe!$G$5="Einreihige Ankeranordnung",IF($M$6<C17,"s < smin !","ok"),IF(OR($B$7<C17,$M$6<C17),"s < smin !","ok")) -> ok | O12: =IF(Eingabe!$G$5="Einreihige Ankeranordnung",IF($M$6<D17,"s < smin !","ok"),IF(OR($B$7<D17,$M$6<D17),"s < smin !","ok")) -> ok | Q12: Warnung s Rand 2.R | R12: =IF(Eingabe!$G$5="Einreihige Ankeranordnung",IF($M$6<G17,"s < smin !","ok"),IF(OR($G$7<G17,$M$6<G17),"s < smin !","ok")) -> ok | S12: =IF(Eingabe!$G$5="Einreihige Ankeranordnung",IF($M$6<H17,"s < smin !","ok"),IF(OR($G$7<H17,$M$6<H17),"s < smin !","ok")) -> ok | T12: =IF(Eingabe!$G$5="Einreihige Ankeranordnung",IF($M$6<I17,"s < smin !","ok"),IF(OR($G$7<I17,$M$6<I17),"s < smin !","ok")) -> ok
A13: Warnung h | B13: =IF($B$8<B20,"h < hmin !","ok") -> ok | C13: =IF($B$8<C20,"h < hmin !","ok") -> ok | D13: =IF($B$8<D20,"h < hmin !","ok") -> ok | F13: Warnung h | G13: =IF($G$8<G20,"h < hmin !","ok") -> ok | H13: =IF($G$8<H20,"h < hmin !","ok") -> ok | I13: =IF($G$8<I20,"h < hmin !","ok") -> ok
B14: Kappenanker HPA M16 | C14: Kappenanker HPA M20 | D14: Kappenanker HPA M24 | G14: =B14 -> Kappenanker HPA M16 | H14: =C14 -> Kappenanker HPA M20 | I14: =D14 -> Kappenanker HPA M24 | M14: Kappenanker HPA M16 | N14: Kappenanker HPA M20 | O14: Kappenanker HPA M24 | R14: Kappenanker HPA M16 | S14: Kappenanker HPA M20 | T14: Kappenanker HPA M24
A15: hT,ef | B15: =Eingabe!AD83 -> 137 | C15: =Eingabe!AD83 -> 137 | D15: =Eingabe!AD83 -> 137 | E15: [mm] | F15: hT,ef | G15: =B15 -> 137 | H15: =C15 -> 137 | I15: 137 | J15: [mm] | L15: hT,ef | M15: =Eingabe!AD83 -> 137 | N15: =Eingabe!AD83 -> 137 | O15: =Eingabe!AD83 -> 137 | Q15: hT,ef | R15: =M15 -> 137 | S15: 137 | T15: 137
A16: cmin gerissener Beton | B16: 50 | C16: 55 | D16: 60 | E16: [mm] | F16: cmin gerissener Beton | G16: 50 | H16: 55 | I16: 60 | J16: [mm] | L16: cmin gerissener Beton | M16: 50 | N16: 55 | O16: 60 | Q16: cmin gerissener Beton | R16: 50 | S16: 55 | T16: 60
A17: smin gerissener Beton | B17: 75 | C17: 90 | D17: 115 | E17: [mm] | F17: smin gerissener Beton | G17: 75 | H17: 90 | I17: 115 | J17: [mm] | L17: smin gerissener Beton | M17: 75 | N17: 90 | O17: 115 | Q17: smin gerissener Beton | R17: 75 | S17: 90 | T17: 115
A18: cmin ungerissener Beton | B18: 80 | C18: 100 | D18: 120 | E18: [mm] | F18: cmin ungerissener Beton | G18: 80 | H18: 100 | I18: 120 | J18: [mm] | L18: cmin ungerissener Beton | M18: 80 | N18: 100 | O18: 120 | Q18: cmin ungerissener Beton | R18: 80 | S18: 100 | T18: 120
A19: smin ungerissener Beton | B19: 80 | C19: 100 | D19: 120 | E19: [mm] | F19: smin ungerissener Beton | G19: 80 | H19: 100 | I19: 120 | J19: [mm] | L19: smin ungerissener Beton | M19: 80 | N19: 100 | O19: 120 | Q19: smin ungerissener Beton | R19: 80 | S19: 100 | T19: 120
A20: hT,ef + 2 do | B20: =B15+36 -> 173 | C20: =C15+44 -> 181 | D20: =D15+56 -> 193 | E20: [mm] | F20: hT,ef + 2 do | G20: 173 | H20: 181 | I20: 193 | J20: [mm] | L20: hT,ef + 2 do | M20: =M15+36 -> 173 | N20: =N15+44 -> 181 | O20: =O15+56 -> 193 | Q20: hT,ef + 2 do | R20: 173 | S20: 181 | T20: 193
A21: Normalkraftwiderstand Einzeldübel | F21: Normalkraftwiderstand Einzeldübel | L21: Normalkraftwiderstand Einzeldübel | Q21: Normalkraftwiderstand Einzeldübel
A22: Stahlversagen | F22: Stahlversagen | L22: Stahlversagen | Q22: Stahlversagen
A23: NRk,s | B23: 109.9 | C23: 171.5 | D23: 247.1 | E23: [kN] | F23: NRk,s | G23: 109.9 | H23: =C23 -> 171.5 | I23: =D23 -> 247.1 | J23: [kN] | L23: NRk,s | M23: 109.9 | N23: 171.5 | O23: 247.1 | Q23: NRk,s | R23: 109.9 | S23: 171.5 | T23: 247.1
A24: γMs | B24: 1.87 | E24: [-] | F24: γMs | G24: 1.87 | J24: [-] | L24: γMs | M24: 1.87 | Q24: γMs | R24: 1.87
A25: NRd,s | B25: =$B$9*B23/$B$24 -> 58.77005348 | C25: =$B$9*C23/$B$24 -> 91.71122995 | D25: =$B$9*D23/$B$24 -> 132.1390374 | E25: [kN] | F25: NRd,s | G25: =$G$9*G23/$G$24 -> 58.77005348 | H25: =$G$9*H23/$G$24 -> 91.71122995 | I25: =$G$9*I23/$G$24 -> 132.1390374 | J25: [kN] | L25: NRd,s | M25: =$B$9*M23/$M$24 -> 58.77005348 | N25: =$B$9*N23/$M$24 -> 91.71122995 | O25: =$B$9*O23/$M$24 -> 132.1390374 | Q25: NRd,s | R25: =$G$9*R23/$R$24 -> 58.77005348 | S25: =$G$9*S23/$R$24 -> 91.71122995 | T25: =$G$9*T23/$R$24 -> 132.1390374
A26: Kombiniertes Versagen Herausziehen / Betonausbruch | F26: Kombiniertes Versagen Herausziehen / Betonausbruch | L26: Kombiniertes Versagen Herausziehen / Betonausbruch
A27: N0Rk,p | B27: =PI()*16*B15*B4/1000 -> 65.42052542 | C27: =PI()*20*C15*B4/1000 -> 81.77565677 | D27: =PI()*24*D15*B4/1000 -> 98.13078813 | E27: [kN] | F27: NRk,p | G27: =PI()*16*G15*B4/1000 -> 65.42052542 | H27: =PI()*20*H15*B4/1000 -> 81.77565677 | I27: =PI()*24*I15*B4/1000 -> 98.13078813 | J27: [kN] | L27: N0Rk,p | M27: =PI()*16*M15*B4/1000 -> 65.42052542 | N27: =PI()*20*N15*B4/1000 -> 81.77565677 | O27: =PI()*24*O15*B4/1000 -> 98.13078813 | Q27: NRk,p | R27: =PI()*16*R15*B4/1000 -> 65.42052542 | S27: =PI()*20*S15*B4/1000 -> 81.77565677 | T27: =PI()*24*T15*B4/1000 -> 98.13078813
A28: scr,Np | B28: =MIN(3*B15,467) -> 411 | C28: =MIN(3*C15,566) -> 411 | D28: =MIN(3*D15,679) -> 411 | E28: [mm] | F28: scr,Np | G28: =MIN(3*G15,467) -> 411 | H28: =MIN(3*H15,566) -> 411 | I28: =MIN(3*I15,679) -> 411 | J28: [mm] | L28: scr,Np | M28: =MIN(3*M15,467) -> 411 | N28: =MIN(3*N15,566) -> 411 | O28: =MIN(3*O15,679) -> 411 | Q28: scr,Np | R28: =MIN(3*R15,467) -> 411 | S28: =MIN(3*S15,566) -> 411 | T28: =MIN(3*T15,679) -> 411
A29: A0p,N | B29: =B28*B28 -> 168921 | C29: =C28*C28 -> 168921 | D29: =D28*D28 -> 168921 | E29: [mm²] | F29: A0p,N | G29: =G28*G28 -> 168921 | H29: =H28*H28 -> 168921 | I29: =I28*I28 -> 168921 | J29: [mm²] | L29: A0p,N | M29: =M28*M28 -> 168921 | N29: =N28*N28 -> 168921 | O29: =O28*O28 -> 168921 | Q29: A0p,N | R29: =R28*R28 -> 168921 | S29: =S28*S28 -> 168921 | T29: =T28*T28 -> 168921
A30: Ap,N | B30: =MIN((B28),$B$6)*IF(Eingabe!$G$5="Einreihige Ankeranordnung",MIN((B28)/2+MIN((B28)/2,$B$5)),MIN((B28),MIN((B28)/2,$B$5)+MIN((B28)/2,$B$7/2))) -> 150220.5 | C30: =MIN((C28),$B$6)*IF(Eingabe!$G$5="Einreihige Ankeranordnung",MIN((C28)/2+MIN((C28)/2,$B$5)),MIN((C28),MIN((C28)/2,$B$5)+MIN((C28)/2,$B$7/2))) -> 150220.5 | D30: =MIN((D28),$B$6)*IF(Eingabe!$G$5="Einreihige Ankeranordnung",MIN((D28)/2+MIN((D28)/2,$B$5)),MIN((D28),MIN((D28)/2,$B$5)+MIN((D28)/2,$B$7/2))) -> 150220.5 | E30: [mm²] | F30: Ap,N | G30: =MIN((G28),$G$6)*IF(Eingabe!$G$5="Einreihige Ankeranordnung",MIN((G28)/2+MIN((G28)/2,$G$5)),MIN((G28),MIN((G28)/2,$G$5)+MIN((G28)/2,$G$7/2))) -> 150220.5 | H30: =MIN((H28),$G$6)*IF(Eingabe!$G$5="Einreihige Ankeranordnung",MIN((H28)/2+MIN((H28)/2,$G$5)),MIN((H28),MIN((H28)/2,$G$5)+MIN((H28)/2,$G$7/2))) -> 150220.5 | I30: =MIN((I28),$G$6)*IF(Eingabe!$G$5="Einreihige Ankeranordnung",MIN((I28)/2+MIN((I28)/2,$G$5)),MIN((I28),MIN((I28)/2,$G$5)+MIN((I28)/2,$G$7/2))) -> 150220.5 | J30: [mm²] | L30: Ap,N | M30: =MIN((M28),$M$6)*IF(Eingabe!$G$5="Einreihige Ankeranordnung",MIN((M28)/2+MIN((M28)/2,$B$5)),MIN((M28),MIN((M28)/2,$B$5)+MIN((M28)/2,$B$7/2))) -> 150220.5 | N30: =MIN((N28),$M$6)*IF(Eingabe!$G$5="Einreihige Ankeranordnung",MIN((N28)/2+MIN((N28)/2,$B$5)),MIN((N28),MIN((N28)/2,$B$5)+MIN((N28)/2,$B$7/2))) -> 150220.5 | O30: =MIN((O28),$M$6)*IF(Eingabe!$G$5="Einreihige Ankeranordnung",MIN((O28)/2+MIN((O28)/2,$B$5)),MIN((O28),MIN((O28)/2,$B$5)+MIN((O28)/2,$B$7/2))) -> 150220.5 | Q30: Ap,N | R30: =MIN((R28),$M$6)*IF(Eingabe!$G$5="Einreihige Ankeranordnung",MIN((R28)/2+MIN((R28)/2,$G$5)),MIN((R28),MIN((R28)/2,$G$5)+MIN((R28)/2,$G$7/2))) -> 150220.5 | S30: =MIN((S28),$M$6)*IF(Eingabe!$G$5="Einreihige Ankeranordnung",MIN((S28)/2+MIN((S28)/2,$G$5)),MIN((S28),MIN((S28)/2,$G$5)+MIN((S28)/2,$G$7/2))) -> 150220.5 | T30: =MIN((T28),$M$6)*IF(Eingabe!$G$5="Einreihige Ankeranordnung",MIN((T28)/2+MIN((T28)/2,$G$5)),MIN((T28),MIN((T28)/2,$G$5)+MIN((T28)/2,$G$7/2))) -> 150220.5
A31: ψs,Np | B31: =MIN(0.7+((0.3*Eingabe!C7)/(B28/2)),1) -> 1 | C31: =MIN(0.7+((0.3*Eingabe!C7)/(C28/2)),1) -> 1 | D31: =MIN(0.7+((0.3*Eingabe!C7)/(D28/2)),1) -> 1 | E31: [-] | F31: ψs,Np | G31: =MIN(0.7+((0.3*Eingabe!C7)/(G28/2)),1) -> 1 | H31: =MIN(0.7+((0.3*Eingabe!C7)/(H28/2)),1) -> 1 | I31: =MIN(0.7+((0.3*Eingabe!C7)/(I28/2)),1) -> 1 | J31: [-] | L31: ψs,Np | M31: =MIN(0.7+((0.3*Eingabe!C7)/(M28/2)),1) -> 1 | N31: =MIN(0.7+((0.3*Eingabe!C7)/(N28/2)),1) -> 1 | O31: =MIN(0.7+((0.3*Eingabe!C7)/(O28/2)),1) -> 1 | Q31: ψs,Np | R31: =MIN(0.7+((0.3*Eingabe!C7)/(R28/2)),1) -> 1 | S31: =MIN(0.7+((0.3*Eingabe!C7)/(S28/2)),1) -> 1 | T31: =MIN(0.7+((0.3*Eingabe!C7)/(T28/2)),1) -> 1
A32: ψre,N | B32: =MIN(1,0.5+B15/200) -> 1 | C32: =MIN(1,0.5+C15/200) -> 1 | D32: =MIN(1,0.5+D15/200) -> 1 | E32: [-] | F32: ψre,N | G32: =MIN(1,0.5+G15/200) -> 1 | H32: =MIN(1,0.5+H15/200) -> 1 | I32: =MIN(1,0.5+I15/200) -> 1 | J32: [-] | L32: ψre,N | M32: =MIN(1,0.5+M15/200) -> 1 | N32: =MIN(1,0.5+N15/200) -> 1 | O32: =MIN(1,0.5+O15/200) -> 1 | Q32: ψre,N | R32: =MIN(1,0.5+R15/200) -> 1 | S32: =MIN(1,0.5+S15/200) -> 1 | T32: =MIN(1,0.5+T15/200) -> 1
A33: ψc, C30/37 | B33: 1.04 | C33: 1.04 | D33: 1.04 | E33: [-] | F33: ψc, C30/37 | G33: 1.04 | H33: 1.04 | I33: 1.04 | J33: [-] | L33: ψc, C30/37 | M33: 1.04 | N33: 1.04 | O33: 1.04 | Q33: ψc, C30/37 | R33: 1.04 | S33: 1.04 | T33: 1.04
A34: ψc, C35/45 | B34: 1.055 | C34: 1.055 | D34: 1.055 | G34: 1.055 | H34: 1.055 | I34: 1.055 | M34: 1.055 | N34: 1.055 | O34: 1.055 | R34: 1.055 | S34: 1.055 | T34: 1.055
A35: ψc, C40/50 | B35: 1.07 | C35: 1.07 | D35: 1.07 | E35: [-] | F35: ψc, C40/50 | G35: 1.07 | H35: 1.07 | I35: 1.07 | J35: [-] | L35: ψc, C40/50 | M35: 1.07 | N35: 1.07 | O35: 1.07 | Q35: ψc, C40/50 | R35: 1.07 | S35: 1.07 | T35: 1.07
A36: ψc, C45/55 | B36: 1.085 | C36: 1.085 | D36: 1.085 | G36: 1.085 | H36: 1.085 | I36: 1.085 | M36: 1.085 | N36: 1.085 | O36: 1.085 | R36: 1.085 | S36: 1.085 | T36: 1.085
A37: ψc, C50/60 | B37: 1.1 | C37: 1.1 | D37: 1.1 | E37: [-] | F37: ψc, C50/60 | G37: 1.1 | H37: 1.1 | I37: 1.1 | J37: [-] | L37: ψc, C50/60 | M37: 1.1 | N37: 1.1 | O37: 1.1 | Q37: ψc, C50/60 | R37: 1.1 | S37: 1.1 | T37: 1.1
A38: ψc, maßgebend | B38: =(IF($B3="20",1,IF(B3="25",1,IF(B3="30",1.04,IF(B3="35",1.055,IF(B3="40",1.07,IF(B3="45",1.085,IF(B3="50",1.1,"Fehler")))))))) -> 1.055 | C38: =$B$38 -> 1.055 | D38: =$B$38 -> 1.055 | G38: =$B$38 -> 1.055 | H38: =$B$38 -> 1.055 | I38: =$B$38 -> 1.055 | M38: =$B$38 -> 1.055 | N38: =$B$38 -> 1.055 | O38: =$B$38 -> 1.055 | R38: =$B$38 -> 1.055 | S38: =$B$38 -> 1.055 | T38: =$B$38 -> 1.055
A40: γMp | B40: =(IF(OR(Eingabe!C24="Anprall Fahrzeugrückhaltesystem",Eingabe!C24="Anprall Schrammbord"),1.2,1.5))*1 -> 1.2 | F40: γMp | G40: =(IF(OR(Eingabe!C24="Anprall Fahrzeugrückhaltesystem",Eingabe!C24="Anprall Schrammbord"),1.2,1.5))*1 -> 1.2 | L40: γMp | M40: =(IF(OR(Eingabe!C24="Anprall Fahrzeugrückhaltesystem",Eingabe!C24="Anprall Schrammbord"),1.2,1.5))*1 -> 1.2 | Q40: γMp | R40: =(IF(OR(Eingabe!C24="Anprall Fahrzeugrückhaltesystem",Eingabe!C24="Anprall Schrammbord"),1.2,1.5))*1 -> 1.2
A41: NRd,p | B41: =(IF(B3="20",1,IF(B3="25",1,IF(B3="30",1.04,IF(B3="35",1.055,IF(B3="40",1.07,IF(B3="45",1.085,IF(B3="50",1.1,"Fehler"))))))))*B27*B30*B31*B32/B29/B40 -> 51.14825254 | C41: =(IF(B3="20",1,IF(B3="25",1,IF(B3="30",1.04,IF(B3="35",1.055,IF(B3="40",1.07,IF(B3="45",1.085,IF(B3="50",1.1,"Fehler"))))))))*C27*C30*C31*C32/C29/B40 -> 63.93531567 | D41: =(IF(B3="20",1,IF(B3="25",1,IF(B3="30",1.04,IF(B3="35",1.055,IF(B3="40",1.07,IF(B3="45",1.085,IF(B3="50",1.1,"Fehler"))))))))*D27*D30*D31*D32/D29/B40 -> 76.72237881 | F41: NRd,p | G41: =(IF(B3="20",1,IF(B3="25",1,IF(B3="30",1.04,IF(B3="35",1.055,IF(B3="40",1.07,IF(B3="45",1.085,IF(B3="50",1.1,"Fehler"))))))))*G27*G30*G31*G32/G29/G40 -> 51.14825254 | H41: =(IF(B3="20",1,IF(B3="25",1,IF(B3="30",1.04,IF(B3="35",1.055,IF(B3="40",1.07,IF(B3="45",1.085,IF(B3="50",1.1,"Fehler"))))))))*H27*H30*H31*H32/H29/G40 -> 63.93531567 | I41: =(IF(B3="20",1,IF(B3="25",1,IF(B3="30",1.04,IF(B3="35",1.055,IF(B3="40",1.07,IF(B3="45",1.085,IF(B3="50",1.1,"Fehler"))))))))*I27*I30*I31*I32/I29/G40 -> 76.72237881 | L41: NRd,p | M41: =(IF(M3="20",1,IF(M3="25",1,IF(M3="30",1.04,IF(M3="35",1.055,IF(M3="40",1.07,IF(M3="45",1.085,IF(M3="50",1.1,"Fehler"))))))))*M27*M30*M31*M32/M29/M40 -> 51.14825254 | N41: =(IF(M3="20",1,IF(M3="25",1,IF(M3="30",1.04,IF(M3="35",1.055,IF(M3="40",1.07,IF(M3="45",1.085,IF(M3="50",1.1,"Fehler"))))))))*N27*N30*N31*N32/N29/M40 -> 63.93531567 | O41: =(IF(M3="20",1,IF(M3="25",1,IF(M3="30",1.04,IF(M3="35",1.055,IF(M3="40",1.07,IF(M3="45",1.085,IF(M3="50",1.1,"Fehler"))))))))*O27*O30*O31*O32/O29/M40 -> 76.72237881 | Q41: NRd,p | R41: =(IF(R3="20",1,IF(R3="25",1,IF(R3="30",1.04,IF(R3="35",1.055,IF(R3="40",1.07,IF(R3="45",1.085,IF(R3="50",1.1,"Fehler"))))))))*R27*R30*R31*R32/R29/R40 -> 51.14825254 | S41: =(IF(R3="20",1,IF(R3="25",1,IF(R3="30",1.04,IF(R3="35",1.055,IF(R3="40",1.07,IF(R3="45",1.085,IF(R3="50",1.1,"Fehler"))))))))*S27*S30*S31*S32/S29/R40 -> 63.93531567 | T41: =(IF(R3="20",1,IF(R3="25",1,IF(R3="30",1.04,IF(R3="35",1.055,IF(R3="40",1.07,IF(R3="45",1.085,IF(R3="50",1.1,"Fehler"))))))))*T27*T30*T31*T32/T29/R40 -> 76.72237881
A42: Betonausbruch | F42: Betonausbruch | L42: Betonausbruch | Q42: Betonausbruch
A43: N0Rk,c | B43: =7.7*SQRT($B$3)*B15^1.5/1000 -> 73.04754053 | C43: =7.7*SQRT($B$3)*C15^1.5/1000 -> 73.04754053 | D43: =7.7*SQRT($B$3)*D15^1.5/1000 -> 73.04754053 | E43: [kN] | F43: N0Rk,c | G43: =7.7*SQRT($G$3)*G15^1.5/1000 -> 73.04754053 | H43: =7.7*SQRT($G$3)*H15^1.5/1000 -> 73.04754053 | I43: =7.7*SQRT($G$3)*I15^1.5/1000 -> 73.04754053 | J43: [kN] | L43: N0Rk,c | M43: =7.7*SQRT($M$3)*M15^1.5/1000 -> 73.04754053 | N43: =7.7*SQRT($M$3)*N15^1.5/1000 -> 73.04754053 | O43: =7.7*SQRT($M$3)*O15^1.5/1000 -> 73.04754053 | Q43: N0Rk,c | R43: =7.7*SQRT($R$3)*R15^1.5/1000 -> 73.04754053 | S43: =7.7*SQRT($R$3)*S15^1.5/1000 -> 73.04754053 | T43: =7.7*SQRT($R$3)*T15^1.5/1000 -> 73.04754053
A44: A0c,N | B44: =(3*B15)^2 -> 168921 | C44: =(3*C15)^2 -> 168921 | D44: =(3*D15)^2 -> 168921 | E44: [mm²] | F44: A0c,N | G44: =(3*G15)^2 -> 168921 | H44: =(3*H15)^2 -> 168921 | I44: =(3*I15)^2 -> 168921 | J44: [mm²] | L44: A0c,N | M44: =(3*M15)^2 -> 168921 | N44: =(3*N15)^2 -> 168921 | O44: =(3*O15)^2 -> 168921 | Q44: A0c,N | R44: =(3*R15)^2 -> 168921 | S44: =(3*S15)^2 -> 168921 | T44: =(3*T15)^2 -> 168921
A45: Ac,N | B45: =MIN((3*B15),$B$6)*IF(Eingabe!$G$5="Einreihige Ankeranordnung",MIN((3*B15)/2+MIN((3*B15)/2,$B$5)),MIN((3*B15),MIN((3*B15)/2,$B$5)+MIN((3*B15)/2,$B$7/2))) -> 150220.5 | C45: =MIN((3*C15),$B$6)*IF(Eingabe!$G$5="Einreihige Ankeranordnung",MIN((3*C15)/2+MIN((3*C15)/2,$B$5)),MIN((3*C15),MIN((3*C15)/2,$B$5)+MIN((3*C15)/2,$B$7/2))) -> 150220.5 | D45: =MIN((3*D15),$B$6)*IF(Eingabe!$G$5="Einreihige Ankeranordnung",MIN((3*D15)/2+MIN((3*D15)/2,$B$5)),MIN((3*D15),MIN((3*D15)/2,$B$5)+MIN((3*D15)/2,$B$7/2))) -> 150220.5 | E45: [mm²] | F45: Ac,N | G45: =MIN((3*G15),$G$6)*IF(Eingabe!$G$5="Einreihige Ankeranordnung",MIN((3*G15)/2+MIN((3*G15)/2,$G$5)),MIN((3*G15),MIN((3*G15)/2,$G$5)+MIN((3*G15)/2,$G$7/2))) -> 150220.5 | H45: =MIN((3*H15),$G$6)*IF(Eingabe!$G$5="Einreihige Ankeranordnung",MIN((3*H15)/2+MIN((3*H15)/2,$G$5)),MIN((3*H15),MIN((3*H15)/2,$G$5)+MIN((3*H15)/2,$G$7/2))) -> 150220.5 | I45: =MIN((3*I15),$G$6)*IF(Eingabe!$G$5="Einreihige Ankeranordnung",MIN((3*I15)/2+MIN((3*I15)/2,$G$5)),MIN((3*I15),MIN((3*I15)/2,$G$5)+MIN((3*I15)/2,$G$7/2))) -> 150220.5 | J45: [mm²] | L45: Ac,N | M45: =MIN((3*M15),$M$6)*IF(Eingabe!$G$5="Einreihige Ankeranordnung",MIN((3*M15)/2+MIN((3*M15)/2,$B$5)),MIN((3*M15),MIN((3*M15)/2,$B$5)+MIN((3*M15)/2,$B$7/2))) -> 150220.5 | N45: =MIN((3*N15),$M$6)*IF(Eingabe!$G$5="Einreihige Ankeranordnung",MIN((3*N15)/2+MIN((3*N15)/2,$B$5)),MIN((3*N15),MIN((3*N15)/2,$B$5)+MIN((3*N15)/2,$B$7/2))) -> 150220.5 | O45: =MIN((3*O15),$M$6)*IF(Eingabe!$G$5="Einreihige Ankeranordnung",MIN((3*O15)/2+MIN((3*O15)/2,$B$5)),MIN((3*O15),MIN((3*O15)/2,$B$5)+MIN((3*O15)/2,$B$7/2))) -> 150220.5 | Q45: Ac,N | R45: =MIN((3*R15),$M$6)*IF(Eingabe!$G$5="Einreihige Ankeranordnung",MIN((3*R15)/2+MIN((3*R15)/2,$G$5)),MIN((3*R15),MIN((3*R15)/2,$G$5)+MIN((3*R15)/2,$G$7/2))) -> 150220.5 | S45: =MIN((3*S15),$M$6)*IF(Eingabe!$G$5="Einreihige Ankeranordnung",MIN((3*S15)/2+MIN((3*S15)/2,$G$5)),MIN((3*S15),MIN((3*S15)/2,$G$5)+MIN((3*S15)/2,$G$7/2))) -> 150220.5 | T45: =MIN((3*T15),$M$6)*IF(Eingabe!$G$5="Einreihige Ankeranordnung",MIN((3*T15)/2+MIN((3*T15)/2,$G$5)),MIN((3*T15),MIN((3*T15)/2,$G$5)+MIN((3*T15)/2,$G$7/2))) -> 150220.5
A46: ψs,N | B46: =MIN(1,0.7+0.3*$B$5/(1.5*B15)) -> 1 | C46: =MIN(1,0.7+0.3*$B$5/(1.5*C15)) -> 1 | D46: =MIN(1,0.7+0.3*$B$5/(1.5*D15)) -> 1 | E46: [-] | F46: ψs,N | G46: =MIN(1,0.7+0.3*$G$5/(1.5*G15)) -> 1 | H46: =MIN(1,0.7+0.3*$G$5/(1.5*H15)) -> 1 | I46: =MIN(1,0.7+0.3*$G$5/(1.5*I15)) -> 1 | J46: [-] | L46: ψs,N | M46: =MIN(1,0.7+0.3*$B$5/(1.5*M15)) -> 1 | N46: =MIN(1,0.7+0.3*$B$5/(1.5*N15)) -> 1 | O46: =MIN(1,0.7+0.3*$B$5/(1.5*O15)) -> 1 | Q46: ψs,N | R46: =MIN(1,0.7+0.3*$G$5/(1.5*R15)) -> 1 | S46: =MIN(1,0.7+0.3*$G$5/(1.5*S15)) -> 1 | T46: =MIN(1,0.7+0.3*$G$5/(1.5*T15)) -> 1
A47: ψre,N | B47: =MIN(1,0.5+B15/200) -> 1 | C47: =MIN(1,0.5+C15/200) -> 1 | D47: =MIN(1,0.5+D15/200) -> 1 | E47: [-] | F47: ψre,N | G47: =MIN(1,0.5+G15/200) -> 1 | H47: =MIN(1,0.5+H15/200) -> 1 | I47: =MIN(1,0.5+I15/200) -> 1 | J47: [-] | L47: ψre,N | M47: =MIN(1,0.5+M15/200) -> 1 | N47: =MIN(1,0.5+N15/200) -> 1 | O47: =MIN(1,0.5+O15/200) -> 1 | Q47: ψre,N | R47: =MIN(1,0.5+R15/200) -> 1 | S47: =MIN(1,0.5+S15/200) -> 1 | T47: =MIN(1,0.5+T15/200) -> 1
A48: ψec,N | B48: 1 | C48: 1 | D48: 1 | E48: [-] | F48: ψec,N | G48: 1 | H48: 1 | I48: 1 | J48: [-] | L48: ψec,N | M48: 1 | N48: 1 | O48: 1 | Q48: ψec,N | R48: 1 | S48: 1 | T48: 1
A50: NRk,c | B50: =B43*B45/B44*B46*B47*B48 -> 64.96076901 | C50: =C43*C45/C44*C46*C47*C48 -> 64.96076901 | D50: =D43*D45/D44*D46*D47*D48 -> 64.96076901 | E50: [kN] | F50: NRk,c | G50: =G43*G45/G44*G46*G47*G48 -> 64.96076901 | H50: =H43*H45/H44*H46*H47*H48 -> 64.96076901 | I50: =I43*I45/I44*I46*I47*I48 -> 64.96076901 | J50: [kN] | L50: NRk,c | M50: =M43*M45/M44*M46*M47*M48 -> 64.96076901 | N50: =N43*N45/N44*N46*N47*N48 -> 64.96076901 | O50: =O43*O45/O44*O46*O47*O48 -> 64.96076901 | Q50: NRk,c | R50: =R43*R45/R44*R46*R47*R48 -> 64.96076901 | S50: =S43*S45/S44*S46*S47*S48 -> 64.96076901 | T50: =T43*T45/T44*T46*T47*T48 -> 64.96076901
A51: γMc | B51: =(IF(OR(Eingabe!C24="Anprall Fahrzeugrückhaltesystem",Eingabe!C24="Anprall Schrammbord"),1.2,1.5))*1 -> 1.2 | E51: [-] | F51: γMc | G51: =(IF(OR(Eingabe!C24="Anprall Fahrzeugrückhaltesystem",Eingabe!C24="Anprall Schrammbord"),1.2,1.5))*1 -> 1.2 | J51: [-] | L51: γMc | M51: =(IF(OR(Eingabe!C24="Anprall Fahrzeugrückhaltesystem",Eingabe!C24="Anprall Schrammbord"),1.2,1.5))*1 -> 1.2 | Q51: γMc | R51: =(IF(OR(Eingabe!C24="Anprall Fahrzeugrückhaltesystem",Eingabe!C24="Anprall Schrammbord"),1.2,1.5))*1 -> 1.2
A52: NRd,c | B52: =B50/$B$51 -> 54.13397418 | C52: =C50/$B$51 -> 54.13397418 | D52: =D50/$B$51 -> 54.13397418 | E52: [kN] | F52: NRd,c | G52: =G50/$G$51 -> 54.13397418 | H52: =H50/$G$51 -> 54.13397418 | I52: =I50/$G$51 -> 54.13397418 | J52: [kN] | L52: NRd,c | M52: =M50/$M$51 -> 54.13397418 | N52: =N50/$M$51 -> 54.13397418 | O52: =O50/$M$51 -> 54.13397418 | Q52: NRd,c | R52: =R50/$R$51 -> 54.13397418 | S52: =S50/$R$51 -> 54.13397418 | T52: =T50/$R$51 -> 54.13397418
M58: Dübel 1 | R58: Dübel 2
M59: Kappenanker HPA M16 | N59: Kappenanker HPA M20 | O59: Kappenanker HPA M24 | R59: Kappenanker HPA M16 | S59: Kappenanker HPA M20 | T59: Kappenanker HPA M24
A61: NRd,c,Mitte | B61: =MIN(B52,B41) -> 51.14825254 | C61: =MIN(C41,C52) -> 54.13397418 | D61: =MIN(D41,D52) -> 54.13397418 | F61: NRd | G61: =MIN(G41,G52) -> 51.14825254 | H61: =MIN(H41,H52) -> 54.13397418 | I61: =MIN(I41,I52) -> 54.13397418 | L61: NRd,Rand | M61: =MIN(M52,M41) -> 51.14825254 | N61: =MIN(N41,N52) -> 54.13397418 | O61: =MIN(O41,O52) -> 54.13397418 | Q61: NRd | R61: =MIN(R41,R52) -> 51.14825254 | S61: =MIN(S41,S52) -> 54.13397418 | T61: =MIN(T41,T52) -> 54.13397418
A62: NSd,Mitte | B62: =Eingabe!O20 -> 13.10738255 | F62: NSd,Mitte | G62: =Eingabe!P20 -> 9.724832215 | L62: NSd,Rand | M62: =Eingabe!O25 -> 6.553691275 | Q62: NSd,Rand | R62: =Eingabe!P25 -> 4.862416107
A63: Ausn. N-Stahl, Mitte | B63: =$B$62/B25 -> 0.2230282563 | C63: =$B$62/C25 -> 0.1429201479 | D63: =$B$62/D25 -> 0.09919387037 | F63: Ausnutzung N-Stahl, Mitte 2.R. | G63: =$G$62/G25 -> 0.1654725773 | H63: =$G$62/H25 -> 0.1060375291 | I63: =$G$62/I25 -> 0.07359545221 | L63: Ausn. N-Stahl,Rand 1.R. | M63: =$M$62/M25 -> 0.1115141282 | N63: =$M$62/N25 -> 0.07146007396 | O63: =$M$62/O25 -> 0.04959693519 | Q63: Ausn. N-Stahl,Rand 2.R. | R63: =$R$62/R25 -> 0.08273628863 | S63: =$R$62/S25 -> 0.05301876455 | T63: =$R$62/T25 -> 0.03679772611
A64: Ausn. N-Beton, Mitte | B64: =$B$62/B61 -> 0.2562625681 | C64: =$B$62/C61 -> 0.2421285847 | D64: =$B$62/D61 -> 0.2421285847 | F64: Ausnutzung N-Beton, Mitte 2.R. | G64: =$G$62/G61 -> 0.1901302925 | H64: =$G$62/H61 -> 0.1796437886 | I64: =$G$62/I61 -> 0.1796437886 | L64: Ausn. N-Beton,Rand 1.R. | M64: =$M$62/M61 -> 0.1281312841 | N64: =$M$62/N61 -> 0.1210642923 | O64: =$M$62/O61 -> 0.1210642923 | Q64: Ausn. N-Beton,Rand 2.R. | R64: =$R$62/R61 -> 0.09506514624 | S64: =$R$62/S61 -> 0.08982189431 | T64: =$R$62/T61 -> 0.08982189431
A65: Ausn. Vy-Stahl o. H. Mitte | B65: =B70/B66 -> 0.9140890882 | C65: =B70/C66 -> 0.5860142045 | D65: =B70/D66 -> 0.4068002177 | F65: Ausn. Vy-Stahl o. H. Mitte | G65: =G70/G66 -> 0.9140890882 | H65: =G70/H66 -> 0.5860142045 | I65: =G70/I66 -> 0.4068002177 | L65: Ausn. Vy-Stahl o. H. Rand | M65: =M70/M66 -> 0.5682054304 | N65: =M70/N66 -> 0.364271336 | O65: =M70/O66 -> 0.2528704213 | Q65: Ausn. Vy-Stahl o. H. Rand | R65: =R70/R66 -> 0.5682054304 | S65: =R70/S66 -> 0.364271336 | T65: =R70/T66 -> 0.2528704213
A66: ="V Stahl m. H. a3= "&Eingabe!AE50&" mm" -> V Stahl m. H. a3= 24 mm | B66: 35.26 | C66: 55 | D66: 79.23 | F66: ="V Stahl m. H. a3 = "&Eingabe!AE50&" mm" -> V Stahl m. H. a3 = 24 mm | G66: 35.26 | H66: 55 | I66: 79.23 | L66: ="V Stahl m. H. a3 = "&Eingabe!AE50&" mm" -> V Stahl m. H. a3 = 24 mm | M66: 35.26 | N66: 55 | O66: 79.23 | Q66: ="V Stahl m. H. a3 = "&Eingabe!AE50&" mm" -> V Stahl m. H. a3 = 24 mm | R66: 35.26 | S66: 55 | T66: 79.23
A67: MRk,s | B67: =IF((233*(1-(B62/B25)))<0,0.1,(233*(1-(B62/B25)))) -> 181.0344163 | C67: =IF((454*(1-(B62/C25)))<0,0.1,(454*(1-(B62/C25)))) -> 389.1142528 | D67: =786*(1-(B62/D25)) -> 708.0336179 | E67: [Nm] | F67: MRk,s | G67: =IF((233*(1-(G62/G25)))<0,0.1,(233*(1-(G62/G25)))) -> 194.4448895 | H67: =IF((454*(1-(G62/H25)))<0,0.01,(454*(1-(G62/H25)))) -> 405.8589618 | I67: =786*(1-(G62/I25)) -> 728.1539746 | J67: [Nm] | L67: MRk,s | M67: =IF((233*(1-(M62/M25)))<0,0.1,(233*(1-(M62/M25)))) -> 207.0172081 | N67: =IF((454*(1-(M62/N25)))<0,0.1,(454*(1-(M62/N25)))) -> 421.5571264 | O67: =786*(1-(M62/O25)) -> 747.0168089 | Q67: MRk,s | R67: =IF((233*(1-(R62/R25)))<0,0.1,(233*(1-(R62/R25)))) -> 213.7224447 | S67: =IF((454*(1-(R62/S25)))<0,0.1,(454*(1-(R62/S25)))) -> 429.9294809 | T67: =786*(1-(R62/T25)) -> 757.0769873 | U67: [Nm]
A68: γMs,V | B68: 1.56 | E68: [-] | F68: γMs,V | G68: 1.56 | J68: [-] | L68: γMs,V | M68: 1.56 | Q68: γMs,V | R68: 1.56 | U68: [-]
A69: VRd,s | B69: =IF(Eingabe!E80=0,B66,MIN(IF(Eingabe!C3="Nachträgliche Kappenverankerung",$B$9*B67*2/B68/(B10),$B$9*B67*2/B68/(B10+10)),35.26)) -> 35.26 | C69: =IF(Eingabe!E80=0,C66,MIN(IF(Eingabe!C3="Nachträgliche Kappenverankerung",$B$9*C67*2/B68/(B10),$B$9*C67*2/B68/(B10+10)),55)) -> 55 | D69: =IF(Eingabe!E80=0,D66,MIN(IF(Eingabe!C3="Nachträgliche Kappenverankerung",$B$9*D67*2/B68/(B10),$B$9*D67*2/B68/(B10+10)),79.23)) -> 79.23 | E69: [kN] | F69: VRd,s | G69: =IF(Eingabe!E80=0,G66,MIN(IF(Eingabe!C3="Nachträgliche Kappenverankerung",$G$9*G67*2/G68/(B10),$G$9*G67*2/G68/(B10+10)),35.26)) -> 35.26 | H69: =IF(Eingabe!E80=0,H66,MIN(IF(Eingabe!C3="Nachträgliche Kappenverankerung",$G$9*H67*2/G68/(B10),$G$9*H67*2/G68/(B10+10)),55)) -> 55 | I69: =IF(Eingabe!E80=0,I66,MIN(IF(Eingabe!C3="Nachträgliche Kappenverankerung",$G$9*I67*2/G68/(B10),$G$9*I67*2/G68/(B10+10)),79.23)) -> 79.23 | J69: [kN] | L69: VRd,s | M69: =IF(Eingabe!E80=0,M66,MIN(IF(Eingabe!C3="Nachträgliche Kappenverankerung",$B$9*M67*2/M68/(B10),$B$9*M67*2/M68/(B10+10)),35.26)) -> 35.26 | N69: =IF(Eingabe!E80=0,N66,MIN(IF(Eingabe!C3="Nachträgliche Kappenverankerung",$B$9*N67*2/M68/(B10),$B$9*N67*2/M68/(B10+10)),55)) -> 55 | O69: =IF(Eingabe!E80=0,O66,MIN(IF(Eingabe!C3="Nachträgliche Kappenverankerung",$B$9*O67*2/M68/(B10),$B$9*O67*2/M68/(B10+10)),79.23)) -> 79.23 | Q69: VRd,s | R69: =IF(Eingabe!E80=0,R66,MIN(IF(Eingabe!C3="Nachträgliche Kappenverankerung",$G$9*R67*2/R68/(B10),$G$9*R67*2/R68/(B10+10)),35.26)) -> 35.26 | S69: =IF(Eingabe!E80=0,S66,MIN(IF(Eingabe!C3="Nachträgliche Kappenverankerung",$G$9*S67*2/R68/(B10),$G$9*S67*2/R68/(B10+10)),55)) -> 55 | T69: =IF(Eingabe!E80=0,T66,MIN(IF(Eingabe!C3="Nachträgliche Kappenverankerung",$G$9*T67*2/R68/(B10),$G$9*T67*2/R68/(B10+10)),79.23)) -> 79.23 | U69: [kN]
A70: VEd,s,y; Mitte | B70: =IF(Eingabe!C33="Kappenverankerung HPA",Eingabe!O21,Eingabe!Q21) -> 32.23078125 | F70: VSd,s,y; Mitte | G70: =IF(Eingabe!C33="Kappenverankerung HPA",Eingabe!P21,Eingabe!R21) -> 32.23078125 | L70: VSd,s,x/y; Rand | M70: =IF(Eingabe!C33="Kappenverankerung HPA",Eingabe!O26,Eingabe!Q26) -> 20.03492348 | Q70: VSd,s,x/y; Rand | R70: =IF(Eingabe!C33="Kappenverankerung HPA",Eingabe!P26,Eingabe!R26) -> 20.03492348
A71: Ausn. Vy-Stahl m. H. Mitte | B71: =$B$70/B69 -> 0.9140890882 | C71: =$B$70/C69 -> 0.5860142045 | D71: =$B$70/D69 -> 0.4068002177 | F71: Ausn. Mitte Vy Stahl | G71: =$G$70/G69 -> 0.9140890882 | H71: =$G$70/H69 -> 0.5860142045 | I71: =$G$70/I69 -> 0.4068002177 | L71: Ausn. Rand Vxy Stahl 1.R. | M71: =$M$70/M69 -> 0.5682054304 | N71: =$M$70/N69 -> 0.364271336 | O71: =$M$70/O69 -> 0.2528704213 | Q71: Ausn. Rand Vxy Stahl 2.R | R71: =$R$70/R69 -> 0.5682054304 | S71: =$R$70/S69 -> 0.364271336 | T71: =$R$70/T69 -> 0.2528704213
A72: Betonausbruch auf der lastabgewandten Seite | F72: Betonausbruch auf der lastabgewandten Seite | L72: Betonausbruch auf der lastabgewandten Seite | Q72: Betonausbruch auf der lastabgewandten Seite
A73: k | B73: 2 | E73: [-] | F73: k | G73: 2 | J73: [-] | L73: k | M73: 2 | Q73: k | R73: 2
A74: VRk,cp | B74: =MIN(($B$73*B50),($B$73*B41*B40)) -> 122.7558061 | C74: =MIN(($B$73*C50),($B$73*C41*B40)) -> 129.921538 | D74: =MIN(($B$73*D50),($B$73*D41*B40)) -> 129.921538 | F74: VRk,cp | G74: =MIN(($B$73*G50),($B$73*G41*G40)) -> 122.7558061 | H74: =MIN(($B$73*H50),($B$73*H41*G40)) -> 129.921538 | I74: =MIN(($B$73*I50),($B$73*I41*G40)) -> 129.921538 | L74: VRk,cp | M74: =MIN(($M$73*M50),($M$73*M41*M40)) -> 122.7558061 | N74: =MIN(($M$73*N50),($M$73*N41*M40)) -> 129.921538 | O74: =MIN(($M$73*O50),($M$73*O41*M40)) -> 129.921538 | Q74: VRk,cp | R74: =MIN(($R$73*R50),($R$73*R41*R40)) -> 122.7558061 | S74: =MIN(($R$73*S50),($R$73*S41*R40)) -> 129.921538 | T74: =MIN(($R$73*T50),($R$73*T41*R40)) -> 129.921538
A75: γMcp | B75: =(IF(OR(Eingabe!C24="Anprall Fahrzeugrückhaltesystem",Eingabe!C24="Anprall Schrammbord"),1.2,1.5))*1 -> 1.2 | E75: [-] | F75: γMcp | G75: =(IF(OR(Eingabe!C24="Anprall Fahrzeugrückhaltesystem",Eingabe!C24="Anprall Schrammbord"),1.2,1.5))*1 -> 1.2 | J75: [-] | L75: γMcp | M75: =(IF(OR(Eingabe!C24="Anprall Fahrzeugrückhaltesystem",Eingabe!C24="Anprall Schrammbord"),1.2,1.5))*1 -> 1.2 | Q75: γMcp | R75: =(IF(OR(Eingabe!C24="Anprall Fahrzeugrückhaltesystem",Eingabe!C24="Anprall Schrammbord"),1.2,1.5))*1 -> 1.2 | W75: Nachweis für Bewehrungsstahl
A76: VRd,cp | B76: =B74/$B$75 -> 102.2965051 | C76: =C74/$B$75 -> 108.2679484 | D76: =D74/$B$75 -> 108.2679484 | E76: [kN] | F76: VRd,cp | G76: =G74/$G$75 -> 102.2965051 | H76: =H74/$G$75 -> 108.2679484 | I76: =I74/$G$75 -> 108.2679484 | J76: [kN] | L76: VRd,cp | M76: =M74/$M$75 -> 102.2965051 | N76: =N74/$M$75 -> 108.2679484 | O76: =O74/$M$75 -> 108.2679484 | Q76: VRd,cp | R76: =R74/$R$75 -> 102.2965051 | S76: =S74/$R$75 -> 108.2679484 | T76: =T74/$R$75 -> 108.2679484
A77: Betonkantenbruch: c1 | B77: =B5 -> 1250 | C77: =B5 -> 1250 | D77: =B5 -> 1250 | E77: [mm] | F77: Betonkantenbruch: c1 | G77: =$G$5 -> 930 | H77: =$G$5 -> 930 | I77: =$G$5 -> 930 | J77: [mm] | L77: Betonkantenbr: c1 (a = M7) | M77: =$B$5 -> 1250 | N77: =$B$5 -> 1250 | O77: =$B$5 -> 1250 | Q77: Betonkantenbr: c1 (a = M7) | R77: =$G$5 -> 930 | S77: =$G$5 -> 930 | T77: =$G$5 -> 930 | W77: Streckgrenze Baustahl | Y77: 550 | Z77: [N/mm²]
A78: α | B78: =0.1*(((MIN(B15,12*16))/B77)^0.5) -> 0.03310589071 | C78: =0.1*(((MIN(C15,12*20))/C77)^0.5) -> 0.03310589071 | D78: =0.1*(((MIN(D15,12*24))/D77)^0.5) -> 0.03310589071 | E78: [-] | F78: α | G78: =0.1*(((MIN(G15,12*16))/G77)^0.5) -> 0.03838122301 | H78: =0.1*(((MIN(H15,12*20))/H77)^0.5) -> 0.03838122301 | I78: =0.1*(((MIN(I15,12*24))/I77)^0.5) -> 0.03838122301 | J78: [-] | L78: α | M78: =0.1*(((MIN(M15,12*16))/M77)^0.5) -> 0.03310589071 | N78: =0.1*(((MIN(N15,12*20))/N77)^0.5) -> 0.03310589071 | O78: =0.1*(((MIN(O15,12*24))/O77)^0.5) -> 0.03310589071 | Q78: α | R78: =0.1*(((MIN(R15,12*16))/R77)^0.5) -> 0.03838122301 | S78: =0.1*(((MIN(S15,12*20))/S77)^0.5) -> 0.03838122301 | T78: =0.1*(((MIN(T15,12*24))/T77)^0.5) -> 0.03838122301 | U78: [-] | W78: Teilsicherheitsbeiwert gR | Y78: 1.15 | Z78: [-]
A79: β | B79: =0.1*((16/B77)^0.2) -> 0.0418255821 | C79: =0.1*((20/C77)^0.2) -> 0.04373448296 | D79: =0.1*((24/D77)^0.2) -> 0.04535866311 | E79: [-] | F79: β | G79: =0.1*((16/G77)^0.2) -> 0.04437388023 | H79: =0.1*((20/H77)^0.2) -> 0.04639908427 | I79: =0.1*((24/I77)^0.2) -> 0.04812222049 | J79: [-] | L79: β | M79: =0.1*((16/M77)^0.2) -> 0.0418255821 | N79: =0.1*((20/N77)^0.2) -> 0.04373448296 | O79: =0.1*((24/O77)^0.2) -> 0.04535866311 | Q79: β | R79: =0.1*((16/R77)^0.2) -> 0.04437388023 | S79: =0.1*((20/S77)^0.2) -> 0.04639908427 | T79: =0.1*((24/T77)^0.2) -> 0.04812222049 | U79: [-] | W79: VSd / m | Y79: =Eingabe!C26 -> 64 | Z79: [kN/m]
A80: V0Rk,c | B80: =1.7*16^B78*MIN(B15,12*16)^B79*SQRT($B$3)*$B$77^1.5/1000 -> 598.5232274 | C80: =1.7*20^C78*MIN(C15,12*20)^C79*SQRT($B$3)*$C$77^1.5/1000 -> 608.6506486 | D80: =1.7*24^D78*MIN(D15,12*24)^D79*SQRT($B$3)*$D$77^1.5/1000 -> 617.2482594 | E80: [kN] | F80: V0Rk,c | G80: =1.7*16^G78*MIN(G15,12*16)^G79*SQRT($G$3)*$G$77^1.5/1000 -> 394.6731178 | H80: =1.7*20^H78*MIN(H15,12*20)^H79*SQRT($G$3)*$H$77^1.5/1000 -> 402.0539808 | I80: =1.7*24^I78*MIN(I15,12*24)^I79*SQRT($G$3)*$I$77^1.5/1000 -> 408.3243695 | J80: [kN] | L80: V0Rk,c | M80: =1.7*16^M78*MIN(M15,12*16)^M79*SQRT($B$3)*$B$77^1.5/1000 -> 598.5232274 | N80: =1.7*20^N78*MIN(N15,12*20)^N79*SQRT($B$3)*$C$77^1.5/1000 -> 608.6506486 | O80: =1.7*24^O78*MIN(O15,12*24)^O79*SQRT($B$3)*$D$77^1.5/1000 -> 617.2482594 | Q80: V0Rk,c | R80: =1.7*16^R78*MIN(R15,12*16)^R79*SQRT($G$3)*$G$77^1.5/1000 -> 394.6731178 | S80: =1.7*20^S78*MIN(S15,12*20)^S79*SQRT($G$3)*$H$77^1.5/1000 -> 402.0539808 | T80: =1.7*24^T78*MIN(T15,12*24)^T79*SQRT($G$3)*$I$77^1.5/1000 -> 408.3243695 | U80: [kN] | W80: as | Y80: =Y79*10/Y77*Y78 -> 1.338181818 | Z80: [cm²/m]
A81: A0c,V | B81: =4.5*B77*B77 -> 7031250 | C81: =4.5*C77*C77 -> 7031250 | D81: =4.5*D77*D77 -> 7031250 | E81: [mm²] | F81: A0c,V | G81: =4.5*G77*G77 -> 3892050 | H81: 3892050 | I81: 3892050 | J81: [mm²] | L81: A0c,V | M81: =4.5*M77*M77 -> 7031250 | N81: =4.5*N77*N77 -> 7031250 | O81: =4.5*O77*O77 -> 7031250 | Q81: A0c,V | R81: =4.5*R77*R77 -> 3892050 | S81: 3892050 | T81: 3892050 | U81: [mm²]
A82: Ac,V | B82: =MIN(1.5*B77,B8)*(3*B77) -> 900000 | C82: =MIN(1.5*C77,B8)*(3*C77) -> 900000 | D82: =MIN(1.5*D77,B8)*(3*D77) -> 900000 | E82: [mm²] | F82: Ac,V | G82: =MIN(1.5*G77,G8)*(3*G77) -> 669600 | H82: =MIN(1.5*H77,G8)*(3*H77) -> 669600 | I82: =MIN(1.5*I77,G8)*(3*I77) -> 669600 | J82: [mm²] | L82: Ac,V | M82: =MIN(1.5*M77,B8)*(3*M77) -> 900000 | N82: =MIN(1.5*N77,B8)*(3*N77) -> 900000 | O82: =MIN(1.5*O77,B8)*(3*O77) -> 900000 | Q82: Ac,V | R82: =MIN(1.5*R77,B8)*(3*R77) -> 669600 | S82: =MIN(1.5*S77,B8)*(3*S77) -> 669600 | T82: =MIN(1.5*T77,B8)*(3*T77) -> 669600 | U82: [mm²]
A83: ψs,V | B83: 1 | E83: [-] | F83: ψs,V | G83: 1 | J83: [-] | L83: ψs,V | M83: 1 | Q83: ψs,V | R83: 1 | U83: [-]
A84: ψh,V | B84: =((1.5*B77/B8)^(1/2)) -> 2.795084972 | C84: =((1.5*C77/B8)^(1/2)) -> 2.795084972 | D84: =((1.5*D77/B8)^(1/2)) -> 2.795084972 | E84: [-] | F84: ψh,V | G84: =((1.5*G77/B8)^(1/2)) -> 2.41091269 | H84: =((1.5*H77/B8)^(1/2)) -> 2.41091269 | I84: =((1.5*I77/B8)^(1/2)) -> 2.41091269 | J84: [-] | L84: ψh,V | M84: =((1.5*M77/B8)^(1/2)) -> 2.795084972 | N84: =((1.5*N77/B8)^(1/2)) -> 2.795084972 | O84: =((1.5*O77/B8)^(1/2)) -> 2.795084972 | Q84: ψh,V | R84: =((1.5*R77/B8)^(1/2)) -> 2.41091269 | S84: =((1.5*S77/B8)^(1/2)) -> 2.41091269 | T84: =((1.5*T77/B8)^(1/2)) -> 2.41091269 | U84: [-]
A85: ψα,V | B85: 1 | E85: [-] | F85: ψα,V | G85: 1 | J85: [-] | L85: ψα,V | M85: =(1/(((COS(M7*PI()/180))^2)+(0.5*(SIN(M7*PI()/180)))^2))^0.5 -> 1.035430219 | Q85: ψα,V | R85: =M85 -> 1.035430219 | U85: [-]
A86: ψec,V | B86: 1 | E86: [-] | F86: ψec,V | G86: 1 | J86: [-] | L86: ψec,V | M86: 1 | Q86: ψec,V | R86: 1 | U86: [-]
A87: ψre,V | B87: 1.2 | E87: [-] | F87: ψre,V | G87: 1.2 | J87: [-] | L87: ψre,V | M87: 1.2 | Q87: ψre,V | R87: 1.2 | U87: [-]
A88: VRk,c | B88: =B80*$B$82/$B$81*$B$83*$B$84*$B$85*$B$86*$B$87 -> 256.9610156 | C88: =C80*$C$82/$C$81*$B$83*$C$84*$B$85*$B$86*$B$87 -> 261.3089712 | D88: =D80*$D$82/$D$81*$B$83*$D$84*$B$85*$B$86*$B$87 -> 265.0001409 | E88: [kN] | F88: VRk,c | G88: =G80*$G$82/$G$81*$G$83*$G$84*$G$85*$G$86*$G$87 -> 196.44334 | H88: =H80*$H$82/$H$81*$G$83*$H$84*$G$85*$G$86*$G$87 -> 200.1170672 | I88: =I80*$I$82/$I$81*$G$83*$I$84*$G$85*$G$86*$G$87 -> 203.2380705 | J88: [kN] | L88: VRk,c | M88: =M80*$M$82/$M$81*$M$83*$M$84*$M$85*$M$86*$M$87 -> 266.0652007 | N88: =N80*$N$82/$N$81*$M$83*$N$84*$M$85*$M$86*$M$87 -> 270.5672053 | O88: =O80*$O$82/$O$81*$M$83*$O$84*$M$85*$M$86*$M$87 -> 274.389154 | Q88: VRk,c | R88: =R80*$R$82/$R$81*$R$83*$R$84*$R$85*$R$86*$R$87 -> 203.4033707 | S88: =S80*$S$82/$S$81*$R$83*$S$84*$R$85*$R$86*$R$87 -> 207.2072588 | T88: =T80*$T$82/$T$81*$R$83*$T$84*$R$85*$R$86*$R$87 -> 210.43884 | U88: [kN]
A89: γMc | B89: =B75 -> 1.2 | E89: [-] | F89: γMc | G89: =G75 -> 1.2 | J89: [-] | L89: γMc | M89: =M75 -> 1.2 | Q89: γMc | R89: =R75 -> 1.2 | U89: [-]
A90: VRd,c | B90: =B88/$B$89 -> 214.1341796 | C90: =C88/$B$89 -> 217.757476 | D90: =D88/$B$89 -> 220.8334507 | E90: [kN] | F90: VRd,c | G90: =G88/$B$89 -> 163.7027833 | H90: =H88/$B$89 -> 166.7642227 | I90: =I88/$B$89 -> 169.3650588 | J90: [kN] | L90: VRd,c | M90: =M88/$B$89 -> 221.7210006 | N90: =N88/$B$89 -> 225.4726711 | O90: =O88/$B$89 -> 228.6576283 | Q90: VRd,c | R90: =R88/$B$89 -> 169.5028089 | S90: =S88/$B$89 -> 172.6727157 | T90: =T88/$B$89 -> 175.3657 | U90: [kN]
A91: Mitte | L91: Rand
A92: VRd,cp/c maßgeb,Mitte | B92: =MIN(B76,B90) -> 102.2965051 | C92: =MIN(C76,C90) -> 108.2679484 | D92: =MIN(D76,D90) -> 108.2679484 | E92: [kN] | F92: VRd,cp/c maßgeb,Mitte | G92: =MIN(G76,G90) -> 102.2965051 | H92: 108.2679484 | I92: 108.2679484 | J92: [kN] | L92: VRd,cp/c maßgeb,Rand | M92: =MIN(M76,M90) -> 102.2965051 | N92: 108.2679484 | O92: 108.2679484 | Q92: VRd,cp/c maßgeb,Rand | R92: =MIN(R76,R90) -> 102.2965051 | S92: 108.2679484 | T92: 108.2679484
A93: VSd,y, Mitte | B93: =IF(Eingabe!C33="Kappenverankerung HPA",Eingabe!O22,Eingabe!Q22) -> 64.4615625 | F93: VSd,y, Mitte | G93: =IF(Eingabe!C33="Kappenverankerung HPA",Eingabe!P22,Eingabe!R22) -> 32.23078125 | L93: VSd,x/y, Rand | M93: =IF(Eingabe!C33="Kappenverankerung HPA",Eingabe!O28,Eingabe!Q28) -> 40.06984695 | Q93: VSd,x/y, Rand | R93: =IF(Eingabe!C33="Kappenverankerung HPA",Eingabe!P28,Eingabe!R28) -> 20.03492348
A94: Ausn Vy Beton Mitte | B94: =$B$93/B92 -> 0.6301443285 | C94: =$B$93/C92 -> 0.595389157 | D94: =$B$93/D92 -> 0.595389157 | F94: Ausn V Beton Mitte | G94: =$G$93/G92 -> 0.3150721642 | H94: =$G$93/H92 -> 0.2976945785 | I94: =$G$93/I92 -> 0.2976945785 | L94: Ausn Vxy Beton Rand | M94: =$M$93/M92 -> 0.3917029905 | N94: =$M$93/N92 -> 0.3700988849 | O94: =$M$93/O92 -> 0.3700988849 | Q94: Ausn Vxy Beton Rand | R94: =$R$93/R92 -> 0.1958514952 | S94: =$R$93/S92 -> 0.1850494424 | T94: =$R$93/T92 -> 0.1850494424
A96: Kombinierte Beanspruchung Mitte Reihe 1 | F96: Kombinierte Beanspruchung Mitte Reihe 2 | L96: Kombinierte Beanspruchung Rand Reihe 1 | Q96: Kombinierte Beanspruchung Rand Reihe 2
B97: =B14 -> Kappenanker HPA M16 | C97: =C14 -> Kappenanker HPA M20 | D97: =D14 -> Kappenanker HPA M24 | G97: =G14 -> Kappenanker HPA M16 | H97: =H14 -> Kappenanker HPA M20 | I97: =I14 -> Kappenanker HPA M24 | M97: =M59 -> Kappenanker HPA M16 | N97: =N59 -> Kappenanker HPA M20 | O97: =O59 -> Kappenanker HPA M24 | R97: =R59 -> Kappenanker HPA M16 | S97: =S59 -> Kappenanker HPA M20 | T97: =T59 -> Kappenanker HPA M24
A98: kombi N+V m/o H Stahl Mitte | B98: =MAX(B71,IF(B65=0,B63,B63^2+B65^2)) -> 0.9140890882 | C98: =MAX(C71,IF(C65=0,C63,C63^2+C65^2)) -> 0.5860142045 | D98: =MAX(D71,IF(D65=0,D63,D63^2+D65^2)) -> 0.4068002177 | F98: kombi N+V m/o H Stahl Mitte | G98: =MAX(G71,IF(G65=0,G63,G63^2+G65^2)) -> 0.9140890882 | H98: =MAX(H71,IF(H65=0,H63,H63^2+H65^2)) -> 0.5860142045 | I98: =MAX(I71,IF(I65=0,I63,I63^2+I65^2)) -> 0.4068002177 | L98: kombi N+V m/o H Stahl Rand | M98: =MAX(M71,IF(M65=0,M63,M63^2+M65^2)) -> 0.5682054304 | N98: =MAX(N71,IF(N65=0,N63,N63^2+N65^2)) -> 0.364271336 | O98: =MAX(O71,IF(O65=0,O63,O63^2+O65^2)) -> 0.2528704213 | Q98: kombi N+V m/o H Stahl Rand | R98: =MAX(R71,IF(R65=0,R63,R63^2+R65^2)) -> 0.5682054304 | S98: =MAX(S71,IF(S65=0,S63,S63^2+S65^2)) -> 0.364271336 | T98: =MAX(T71,IF(T65=0,T63,T63^2+T65^2)) -> 0.2528704213
A99: kombi N+V Beton Mitte | B99: =IF(OR(B64>1,B94>1),MAX(B64,B94),IF(OR(B64=0,B94=0),B64+B94,MIN((B64+B94)/1.2,B64^1.5+B94^1.5))) -> 0.6299450626 | C99: =IF(OR(C64>1,C94>1),MAX(C64,C94),IF(OR(C64=0,C94=0),C64+C94,MIN((C64+C94)/1.2,C64^1.5+C94^1.5))) -> 0.5785541463 | D99: =IF(OR(D64>1,D94>1),MAX(D64,D94),IF(OR(D64=0,D94=0),D64+D94,MIN((D64+D94)/1.2,D64^1.5+D94^1.5))) -> 0.5785541463 | F99: kombi N+V Beton Mitte | G99: =IF(OR(G64>1,G94>1),MAX(G64,G94),IF(OR(G64=0,G94=0),G64+G94,MIN((G64+G94)/1.2,G64^1.5+G94^1.5))) -> 0.2597583524 | H99: =IF(OR(H64>1,H94>1),MAX(H64,H94),IF(OR(H64=0,H94=0),H64+H94,MIN((H64+H94)/1.2,H64^1.5+H94^1.5))) -> 0.2385672668 | I99: =IF(OR(I64>1,I94>1),MAX(I64,I94),IF(OR(I64=0,I94=0),I64+I94,MIN((I64+I94)/1.2,I64^1.5+I94^1.5))) -> 0.2385672668 | L99: kombi N+V Beton Rand | M99: =IF(OR(M64>1,M94>1),MAX(M64,M94),IF(OR(M64=0,M94=0),M64+M94,MIN((M64+M94)/1.2,M64^1.5+M94^1.5))) -> 0.2910170826 | N99: 0.2672759099 | O99: 0.2672759099 | Q99: kombi N+V Beton Rand | R99: =IF(OR(R64>1,R94>1),MAX(R64,R94),IF(OR(R64=0,R94=0),R64+R94,MIN((R64+R94)/1.2,R64^1.5+R94^1.5))) -> 0.1159853897 | S99: 0.106523302 | T99: 0.106523302 | U99: V=0 kommt vor, wenn keine indirekten Einw. und Anschlussbew. Vorhanden
A101: Maximum Kombi Mitte | B101: =MAX(B98,B99) -> 0.9140890882 | C101: =MAX(C98,C99) -> 0.5860142045 | D101: =MAX(D98,D99) -> 0.5785541463 | F101: Maximum Kombi Mitte | G101: =MAX(G98,G99) -> 0.9140890882 | H101: =MAX(H98,H99) -> 0.5860142045 | I101: =MAX(I98,I99) -> 0.4068002177 | L101: Maximum Kombi Rand | M101: =MAX(M98,M99) -> 0.5682054304 | N101: =MAX(N98,N99) -> 0.364271336 | O101: =MAX(O98,O99) -> 0.2672759099 | Q101: Maximum Kombi Rand | R101: =MAX(R98,R99) -> 0.5682054304 | S101: =MAX(S98,S99) -> 0.364271336 | T101: =MAX(T98,T99) -> 0.2528704213
A102: Warnung Mitte | B102: =IF(MAX(B101,G101)>1.009,"Unzulässig!","ok") -> ok | C102: =IF(MAX(C101,H101)>1.009,"Unzulässig!","ok") -> ok | D102: =IF(MAX(D101,I101)>1.009,"Unzulässig!","ok") -> ok | F102: Warnung Mitte | G102: =IF(MAX(B101,G101)>1.009,"Unzulässig!","ok") -> ok | H102: =IF(MAX(C101,H101)>1.009,"Unzulässig!","ok") -> ok | I102: =IF(MAX(D101,I101)>1.009,"Unzulässig!","ok") -> ok | L102: Warnung Rand | M102: =IF(MAX(M101,R101)>1.009,"Unzulässig!","ok") -> ok | N102: =IF(MAX(N101,S101)>1.009,"Unzulässig!","ok") -> ok | O102: =IF(MAX(O101,T101)>1.009,"Unzulässig!","ok") -> ok | Q102: Warnung Rand | R102: =IF(MAX(M101,R101)>1.009,"Unzulässig!","ok") -> ok | S102: =IF(MAX(N101,S101)>1.009,"Unzulässig!","ok") -> ok | T102: =IF(MAX(O101,T101)>1.009,"Unzulässig!","ok") -> ok
A104: Gewählter Dübel | B104: =LEFT(Eingabe!C4,20) -> Kappenanker HPA M24 | F104: Gewählter Dübel | G104: =LEFT(Eingabe!C4,20) -> Kappenanker HPA M24 | L104: Gewählter Dübel | M104: =LEFT(Eingabe!C4,20) -> Kappenanker HPA M24 | Q104: Gewählter Dübel | R104: =LEFT(Eingabe!C4,20) -> Kappenanker HPA M24
A105: Ausnutzung N+V Stahl Mitte | B105: =INDEX(B97:$D$98,2,MATCH($B$104,B97:$D$97)) -> 0.4068002177 | F105: Ausnutzung N Mitte | G105: =INDEX($G97:I$99,2,MATCH($B$104,$G97:I$97)) -> 0.4068002177 | L105: Ausnutzung N Rand | M105: =INDEX($M97:O$98,2,MATCH($M$104,$M97:O$97)) -> 0.2528704213 | Q105: Ausnutzung N Rand | R105: =INDEX($R97:T$99,2,MATCH($R$104,$R97:T$97)) -> 0.2528704213
A106: Ausnutzung N+V Beton Mitte | B106: =INDEX(B97:$D$99,3,MATCH($B$104,B97:D97)) -> 0.5785541463 | F106: Ausnutzung V Mitte | G106: =INDEX($G97:I$99,3,MATCH($B$104,G97:I97)) -> 0.2385672668 | L106: Ausnutzung V Rand | M106: =INDEX($M97:O$99,3,MATCH($M$104,M97:O97)) -> 0.2672759099 | Q106: Ausnutzung V Rand | R106: =INDEX($R97:T$99,3,MATCH($R$104,R97:T97)) -> 0.106523302
A107: Interaktion | B107: =INDEX(B97:$D$101,5,MATCH($B$104,B97:D97)) -> 0.5785541463 | F107: Interaktion | G107: =INDEX($G97:I$101,5,MATCH($G$104,G97:I97)) -> 0.4068002177 | L107: Interaktion | M107: =INDEX($M97:O$101,5,MATCH($M$104,M97:O97)) -> 0.2672759099 | Q107: Interaktion | R107: =INDEX($R97:T$101,5,MATCH($R$104,R97:T97)) -> 0.2528704213
A108: =A11 -> Warnung c | B108: ok | C108: ok | D108: ok | F108: =F11 -> Warnung c | G108: =G11 -> ok | H108: =H11 -> ok | I108: =I11 -> ok | L108: =A11 -> Warnung c | M108: ok | N108: ok | O108: ok | Q108: =A11 -> Warnung c | R108: =G11 -> ok | S108: =H11 -> ok | T108: =H11 -> ok
A109: Warnung s Mitte 1.R | B109: ok | C109: ok | D109: ok | F109: =F12 -> Warnung s Mitte 2.R | G109: ok | H109: ok | I109: ok | L109: =L12 -> Warnung s Rand 1.R | M109: ok | N109: ok | O109: ok | Q109: Warnung s Rand 2.R | R109: ok | S109: ok | T109: ok
A110: Warnung h | B110: ok | C110: ok | D110: ok | F110: Warnung h | G110: ok | H110: ok | I110: ok | L110: Warnung h | M110: ok | N110: ok | O110: ok | Q110: =A13 -> Warnung h | R110: =G13 -> ok | S110: =H13 -> ok | T110: =H13 -> ok

Sheet Kappe (hidden)
A1: Kappe | D1: Mittelbereich | O1: Randbereich
A2: Dübel 1 (der Tragwerksachse näher liegend) | F2: Dübel 2 (dem Tragwerksrand näher liegend) | K2: Dübel 1 (der Tragwerksachse näher liegend) | P2: Dübel 2 (dem Tragwerksrand näher liegend)
A3: fck,cyl | B3: =Eingabe!F13 -> 25 | C3: [N/mm²] | D3: Abmind. Leichtbeton | F3: fck,cyl | G3: =B3 -> 25 | H3: [N/mm²] | K3: fck,cyl | L3: =Eingabe!F13 -> 25 | M3: [N/mm²]
A4: Untergrund | C4: [-] | D4: =Eingabe!N3 -> 1 | F4: Untergrund | H4: [-]
A5: Randabstand cK | B5: =Eingabe!C16 -> 200 | C5: [mm] | D5: cT,Dübel 1,1-reihig | E5: =Eingabe!C7 -> 1250 | F5: Randabstand cT,D2 | G5: =Eingabe!C7-B7 -> 930 | H5: [mm] | AM5: 1. Dübelsystem HIT-RE 500 V3 nach ETA-16/0143 2. Hilti Betonverbinder HPA nach abZ/aBG-21.8-1900 3. Dichtheitsprüfungen mit Berichten der Bautechnischen Versuchsanstalt an der HTL Rankweil 4. Dichtheitsprüfung unter dynamischer Querkraft-Einwirkung; Bericht der Bautechnischen Versuchsanstalt an der HTL Rankweil 5. Gutachten 20-083/1.1.1, Nachträgliche Verankerung von Brückenkappen und Lärmschutzwänden auf Brückenkappen mit Injektionssystem HIT RE 500 V3; Ingenieurbüro Schiessl Gehlen Sodeikat GmbH
A6: Achsabstand sx,Mitte | B6: =Eingabe!T6 -> 900 | C6: [mm] | F6: Achsabstand sx,Mitte | G6: =B6 -> 900 | H6: [mm] | K6: Achsabstand sx,Rand | L6: =Eingabe!T7 -> 450 | M6: [mm]
A7: Dübelreihenabst. s1 | B7: =Eingabe!C17 -> 320 | C7: [mm] | F7: Dübelreihenabst. s1 | G7: =B7 -> 320 | H7: [mm]
A8: Randbalkenhöhe h | B8: =Eingabe!C18 -> 145 | C8: [mm] | F8: Randbalkenhöhe h | G8: =B8 -> 145 | H8: [mm]
A9: Dübelanzahl | B9: 1 | C9: [Stk] | F9: Dübelanzahl | G9: =B9 -> 1 | H9: [Stk]
A10: Kopfbolzenart | B10: =Eingabe!X50 -> 36
A11: Dicht./Schutzbahn | B11: =IF(Eingabe!E80=1,Eingabe!D80,0) -> 0 | C11: [mm]
B12: Kappenanker HPA M16 | C12: Kappenanker HPA M20 | D12: Kappenanker HPA M24 | G12: =B12 -> Kappenanker HPA M16 | H12: Kappenanker HPA M20 | I12: Kappenanker HPA M24 | L12: Kappenanker HPA M16 | M12: Kappenanker HPA M20 | N12: Kappenanker HPA M24 | Q12: =L12 -> Kappenanker HPA M16 | R12: =M12 -> Kappenanker HPA M20 | S12: =N12 -> Kappenanker HPA M24
A13: Kopfbolzenhöhe hef | B13: =Eingabe!C21 -> 96 | C13: =Eingabe!C21 -> 96 | D13: =Eingabe!C21 -> 96 | E13: [mm] | F13: Kopfbolzenhöhe hef | G13: 96 | H13: 96 | I13: 96 | J13: [mm] | K13: Kopfbolzenhöhe hef | L13: =Eingabe!C21 -> 96 | M13: =Eingabe!C21 -> 96 | N13: =Eingabe!C21 -> 96 | P13: Kopfbolzenhöhe hef | Q13: =Eingabe!C21 -> 96 | R13: =Eingabe!C21 -> 96 | S13: =Eingabe!C21 -> 96
A14: Durchmesser Kopf dp | B14: 24 | C14: =IF(Eingabe!$C$15="Sechskantmutter A4 M20",Eingabe!$Z$45,Eingabe!$AB$45) -> 50 | D14: =IF(Eingabe!$C$15="Sechskantmutter A4 M24",Eingabe!$Z$46,Eingabe!$AB$46) -> 36 | G14: 24 | H14: =IF(Eingabe!$C$15="Sechskantmutter A4 M20",Eingabe!$Z$45,Eingabe!$AB$45) -> 50 | I14: =IF(Eingabe!$C$15="Sechskantmutter A4 M24",Eingabe!$Z$46,Eingabe!$AB$46) -> 36 | L14: 24 | M14: =IF(Eingabe!$C$15="Sechskantmutter A4 M20",Eingabe!$Z$45,Eingabe!$AB$45) -> 50 | N14: =IF(Eingabe!$C$15="Sechskantmutter A4 M24",Eingabe!$Z$46,Eingabe!$AB$46) -> 36 | Q14: 24 | R14: =IF(Eingabe!$C$15="Sechskantmutter A4 M20",Eingabe!$Z$45,Eingabe!$AB$45) -> 50 | S14: =IF(Eingabe!$C$15="Sechskantmutter A4 M24",Eingabe!$Z$46,Eingabe!$AB$46) -> 36
A15: Normalkraftwiderstand Einzeldübel | F15: Normalkraftwiderstand Einzeldübel | K15: Normalkraftwiderstand Einzeldübel | P15: Normalkraftwiderstand Einzeldübel
A16: Stahlversagen | F16: Stahlversagen | K16: Stahlversagen | P16: Stahlversagen
A17: NRk,s | B17: 109.9 | C17: 171.5 | D17: 247.1 | E17: [kN] | F17: NRk,s | G17: 109.9 | H17: 171.5 | I17: 247.1 | J17: [kN] | K17: NRk,s | L17: 109.9 | M17: 171.5 | N17: 247.1 | P17: NRk,s | Q17: 109.9 | R17: 171.5 | S17: 247.1
A18: γMs | B18: 1.87 | E18: [-] | F18: γMs | G18: 1.87 | J18: [-] | K18: γMs | L18: 1.87 | P18: γMs | Q18: 1.87
A19: NRd,s | B19: =$B$9*B17/$B$18 -> 58.77005348 | C19: =$B$9*C17/$B$18 -> 91.71122995 | D19: =$B$9*D17/$B$18 -> 132.1390374 | E19: [kN] | F19: NRd,s | G19: =$G$9*G17/$G$18 -> 58.77005348 | H19: =$G$9*H17/$G$18 -> 91.71122995 | I19: =$G$9*I17/$G$18 -> 132.1390374 | J19: [kN] | K19: NRd,s | L19: =$B$9*L17/$L$18 -> 58.77005348 | M19: =$B$9*M17/$L$18 -> 91.71122995 | N19: =$B$9*N17/$L$18 -> 132.1390374 | P19: NRd,s | Q19: =$G$9*Q17/$Q$18 -> 58.77005348 | R19: =$G$9*R17/$Q$18 -> 91.71122995 | S19: =$G$9*S17/$Q$18 -> 132.1390374
A20: Herausziehen | F20: Herausziehen | K20: Herausziehen | P20: Herausziehen
A21: AKopf | B21: =IF(Eingabe!C15="Sechskantmutter A4 M16",Eingabe!AA44,Eingabe!AD44) -> 251.3274123 | C21: =IF(Eingabe!C15="Sechskantmutter A4 M20",Eingabe!AA45,Eingabe!AD45) -> 1649.336143 | D21: =IF(Eingabe!C15="Sechskantmutter A4 M24",Eingabe!AA46,Eingabe!AD46) -> 565 | F21: AKopf | G21: =IF(Eingabe!C15="Sechskantmutter A4 M16",Eingabe!$AA$44,Eingabe!$AD$44) -> 251.3274123 | H21: =IF(Eingabe!C15="Sechskantmutter A4 M20",Eingabe!$AA$45,Eingabe!$AD$45) -> 1649.336143 | I21: =IF(Eingabe!C15="Sechskantmutter A4 M24",Eingabe!$AA$46,Eingabe!$AD$46) -> 565 | K21: AKopf | L21: =IF(Eingabe!C15="Sechskantmutter A4 M16",Eingabe!$AA$44,Eingabe!$AD$44) -> 251.3274123 | M21: =IF(Eingabe!C15="Sechskantmutter A4 M20",Eingabe!$AA$45,Eingabe!$AD$45) -> 1649.336143 | N21: =IF(Eingabe!C15="Sechskantmutter A4 M24",Eingabe!$AA$46,Eingabe!$AD$46) -> 565 | P21: AKopf | Q21: =IF(Eingabe!C15="Sechskantmutter A4 M16",Eingabe!$AA$44,Eingabe!$AD$44) -> 251.3274123 | R21: =IF(Eingabe!C15="Sechskantmutter A4 M20",Eingabe!$AA$45,Eingabe!$AD$45) -> 1649.336143 | S21: =IF(Eingabe!C15="Sechskantmutter A4 M24",Eingabe!$AA$46,Eingabe!$AD$46) -> 565
A22: NRk,p | B22: =7.5*B3*D4*B21/1000 -> 47.1238898 | C22: =7.5*B3*D4*C21/1000 -> 309.2505268 | D22: =7.5*B3*D4*D21/1000 -> 105.9375 | E22: [kN] | F22: NRk,p | G22: =7.5*G3*D4*G21/1000 -> 47.1238898 | H22: =7.5*G3*D4*H21/1000 -> 309.2505268 | I22: =7.5*G3*D4*I21/1000 -> 105.9375 | J22: [kN] | K22: NRk,p | L22: =7.5*L3*D4*L21/1000 -> 47.1238898 | M22: =7.5*L3*D4*M21/1000 -> 309.2505268 | N22: =7.5*L3*D4*N21/1000 -> 105.9375 | P22: NRk,p | Q22: =7.5*L3*D4*Q21/1000 -> 47.1238898 | R22: =7.5*L3*D4*R21/1000 -> 309.2505268 | S22: =7.5*L3*D4*S21/1000 -> 105.9375
A23: γMp = gc | B23: =(IF(OR(Eingabe!C24="Anprall Fahrzeugrückhaltesystem",Eingabe!C24="Anprall Schrammbord"),1.2,1.5))*1 -> 1.2 | F23: γMp | G23: =(IF(OR(Eingabe!C24="Anprall Fahrzeugrückhaltesystem",Eingabe!C24="Anprall Schrammbord"),1.2,1.5))*1 -> 1.2 | K23: γMp = gc | L23: =(IF(OR(Eingabe!C24="Anprall Fahrzeugrückhaltesystem",Eingabe!C24="Anprall Schrammbord"),1.2,1.5))*1 -> 1.2 | P23: γMp | Q23: =(IF(OR(Eingabe!C24="Anprall Fahrzeugrückhaltesystem",Eingabe!C24="Anprall Schrammbord"),1.2,1.5))*1 -> 1.2 | T23: abhängig von Eingabe C23
A24: NRd,p | B24: =B22/B23 -> 39.26990817 | C24: =(C22/B23) -> 257.7087724 | D24: =(D22/B23) -> 88.28125 | F24: NRd,p | G24: =G22/G23 -> 39.26990817 | H24: =(H22/G23) -> 257.7087724 | I24: =(I22/G23) -> 88.28125 | K24: NRd,p | L24: =L22/L23 -> 39.26990817 | M24: =(M22/L23) -> 257.7087724 | N24: =(N22/L23) -> 88.28125 | P24: NRd,p | Q24: =Q22/Q23 -> 39.26990817 | R24: =(R22/Q23) -> 257.7087724 | S24: =(S22/Q23) -> 88.28125
A25: Betonausbruch | B25: Ac,N,Mutter : | C25: =MIN(3*$B$13,$B$6)*IF(Eingabe!$G$5="Einreihige Ankeranordnung",MIN(1.5*$B$13,$E$5)+MIN(1.5*$B$13,$B$5),MIN(1.5*$B$13,$B$5)+MIN(1.5*$B$13,$B$7/2)) -> 82944 | D25: Ac,N,Kopfplatte : | E25: =MIN(4*C13,$B$6)*IF(Eingabe!$G$5="Einreihige Ankeranordnung",MIN(2*C13,$E$5)+MIN(2*C13,$B$5),MIN(2*C13,$B$5)+MIN(2*C13,$B$7/2)) -> 135168 | F25: Betonausbruch | G25: Ac,N,Mutter : | H25: =MIN(3*G13,$B$6)*(MIN(G7/2,1.5*G13)+MIN((1.5*G13),$G$5)) -> 82944 | I25: Ac,N,Kopfplatte : | J25: =MIN(4*G13,$B$6)*(MIN(G7/2,2*G13)+MIN(2*G13,$G$5)) -> 135168 | K25: Betonausbruch | L25: Ac,N,Mutter : | M25: =MIN(3*L13,$L$6)*IF(Eingabe!$G$5="Einreihige Ankeranordnung",MIN(1.5*L13,$E$5)+MIN(1.5*L13,$B$5),MIN(1.5*L13,$B$5)+MIN(1.5*L13,$B$7/2)) -> 82944 | N25: Ac,N,Kopfplatte : | O25: =MIN(4*M13,$L$6)*IF(Eingabe!$G$5="Einreihige Ankeranordnung",MIN(2*M13,$E$5)+MIN(2*M13,$B$5),MIN(2*M13,$B$5)+MIN(2*M13,$B$7/2)) -> 135168 | P25: Betonausbruch | Q25: Ac,N,Mutter : | R25: =MIN(3*G13,$L$6)*(MIN(G7/2,1.5*G13)+MIN(1.5*G13,$G$5)) -> 82944 | S25: Ac,N,Kopfplatte : | T25: =MIN(4*G13,$L$6)*(MIN(G7/2,2*G13)+MIN(2*G13,$G$5)) -> 135168
A26: Konstante k | B26: 8.9 | C26: =IF(OR(Eingabe!$C$15="Sechskantmutter A4 M20",AND(Eingabe!$C$15="Kopfplatte HPA-K M20x50x16",Eingabe!$C$3="Nachträgliche Kappenverankerung"),AND(Eingabe!$C$15="Kopfplatte HPA-K M20x50x16",Eingabe!$C$3="Sonderfall ohne indirekte Einw.")),8.9,7.7) -> 7.7 | D26: =IF(OR(Eingabe!$C$15="Sechskantmutter A4 M24",AND(Eingabe!$C$15="Kopfplatte HPA-K M24x70x19",Eingabe!$C$3="Nachträgliche Kappenverankerung"),AND(Eingabe!$C$15="Kopfplatte HPA-K M24x70x19",Eingabe!$C$3="Sonderfall ohne indirekte Einw.")),8.9,7.7) -> 8.9 | F26: Konstante k | G26: =B26 -> 8.9 | H26: =IF(OR(Eingabe!$C$15="Sechskantmutter A4 M20",AND(Eingabe!$C$15="Kopfplatte HPA-K M20x50x16",Eingabe!$C$3="Nachträgliche Kappenverankerung"),AND(Eingabe!$C$15="Kopfplatte HPA-K M20x50x16",Eingabe!$C$3="Sonderfall ohne indirekte Einw.")),8.9,7.7) -> 7.7 | I26: =IF(OR(Eingabe!$C$15="Sechskantmutter A4 M24",AND(Eingabe!$C$15="Kopfplatte HPA-K M24x70x19",Eingabe!$C$3="Nachträgliche Kappenverankerung"),AND(Eingabe!$C$15="Kopfplatte HPA-K M24x70x19",Eingabe!$C$3="Sonderfall ohne indirekte Einw.")),8.9,7.7) -> 8.9 | K26: Konstante k | L26: 8.9 | M26: =IF(OR(Eingabe!$C$15="Sechskantmutter A4 M20",AND(Eingabe!$C$15="Kopfplatte HPA-K M20x50x16",Eingabe!$C$3="Nachträgliche Kappenverankerung"),AND(Eingabe!$C$15="Kopfplatte HPA-K M20x50x16",Eingabe!$C$3="Sonderfall ohne indirekte Einw.")),8.9,7.7) -> 7.7 | N26: =IF(OR(Eingabe!$C$15="Sechskantmutter A4 M24",AND(Eingabe!$C$15="Kopfplatte HPA-K M24x70x19",Eingabe!$C$3="Nachträgliche Kappenverankerung"),AND(Eingabe!$C$15="Kopfplatte HPA-K M24x70x19",Eingabe!$C$3="Sonderfall ohne indirekte Einw.")),8.9,7.7) -> 8.9 | P26: Konstante k | Q26: =L26 -> 8.9 | R26: =IF(OR(Eingabe!$C$15="Sechskantmutter A4 M20",AND(Eingabe!$C$15="Kopfplatte HPA-K M20x50x16",Eingabe!$C$3="Nachträgliche Kappenverankerung"),AND(Eingabe!$C$15="Kopfplatte HPA-K M20x50x16",Eingabe!$C$3="Sonderfall ohne indirekte Einw.")),8.9,7.7) -> 7.7 | S26: =IF(OR(Eingabe!$C$15="Sechskantmutter A4 M24",AND(Eingabe!$C$15="Kopfplatte HPA-K M24x70x19",Eingabe!$C$3="Nachträgliche Kappenverankerung"),AND(Eingabe!$C$15="Kopfplatte HPA-K M24x70x19",Eingabe!$C$3="Sonderfall ohne indirekte Einw.")),8.9,7.7) -> 8.9
A27: N0Rk,c | B27: =$B$26*SQRT($B$3)*D4*B13^1.5/1000 -> 41.85688072 | C27: =$C$26*SQRT($B$3)*D4*C13^1.5/1000 -> 36.21325636 | D27: =$D$26*SQRT($B$3)*D4*D13^1.5/1000 -> 41.85688072 | E27: [kN] | F27: N0Rk,c | G27: =$G$26*SQRT($G$3)*D4*G13^1.5/1000 -> 41.85688072 | H27: =$H$26*SQRT($G$3)*D4*H13^1.5/1000 -> 36.21325636 | I27: =$I$26*SQRT($G$3)*D4*I13^1.5/1000 -> 41.85688072 | J27: [kN] | K27: N0Rk,c | L27: =$L$26*SQRT($L$3)*D4*L13^1.5/1000 -> 41.85688072 | M27: =$M$26*SQRT($L$3)*D4*M13^1.5/1000 -> 36.21325636 | N27: =$N$26*SQRT($L$3)*D4*N13^1.5/1000 -> 41.85688072 | P27: N0Rk,c | Q27: =$Q$26*SQRT($L$3)*D4*Q13^1.5/1000 -> 41.85688072 | R27: =$R$26*SQRT($L$3)*D4*R13^1.5/1000 -> 36.21325636 | S27: =$S$26*SQRT($L$3)*D4*S13^1.5/1000 -> 41.85688072
A28: A0c,N | B28: =(3*B$13)^2 -> 82944 | C28: =(3*C$13)^2 -> 82944 | D28: =(3*D$13)^2 -> 82944 | E28: [mm²] | F28: A0c,N | G28: =(3*G$13)^2 -> 82944 | H28: =(3*H$13)^2 -> 82944 | I28: =(3*I$13)^2 -> 82944 | J28: [mm²] | K28: A0c,N | L28: =(3*L$13)^2 -> 82944 | M28: =(3*M$13)^2 -> 82944 | N28: =(3*N$13)^2 -> 82944 | P28: A0c,N | Q28: =(3*Q$13)^2 -> 82944 | R28: =(3*R$13)^2 -> 82944 | S28: =(3*S$13)^2 -> 82944
A29: Ac,N | B29: =C25 -> 82944 | C29: =IF(OR(Eingabe!$C$15="Sechskantmutter A4 M20",AND(Eingabe!$C$15="Kopfplatte HPA-K M20x50x16",OR(Eingabe!$C$3="Nachträgliche Kappenverankerung",Eingabe!$C$3="Sonderfall ohne indirekte Einw."))),C25,E25) -> 135168 | D29: =IF(OR(Eingabe!$C$15="Sechskantmutter A4 M24",AND(Eingabe!$C$15="Kopfplatte HPA-K M24x70x19",OR(Eingabe!$C$3="Nachträgliche Kappenverankerung",Eingabe!$C$3="Sonderfall ohne indirekte Einw."))),C25,E25) -> 82944 | E29: [mm²] | F29: Ac,N | G29: =H25 -> 82944 | H29: =IF(OR(Eingabe!$C$15="Sechskantmutter A4 M20",AND(Eingabe!$C$15="Kopfplatte HPA-K M20x50x16",OR(Eingabe!$C$3="Nachträgliche Kappenverankerung",Eingabe!$C$3="Sonderfall ohne indirekte Einw."))),H25,J25) -> 135168 | I29: =IF(OR(Eingabe!$C$15="Sechskantmutter A4 M24",AND(Eingabe!$C$15="Kopfplatte HPA-K M24x70x19",OR(Eingabe!$C$3="Nachträgliche Kappenverankerung",Eingabe!$C$3="Sonderfall ohne indirekte Einw."))),H25,J25) -> 82944 | J29: [mm²] | K29: Ac,N | L29: =M25 -> 82944 | M29: =IF(OR(Eingabe!$C$15="Sechskantmutter A4 M20",AND(Eingabe!$C$15="Kopfplatte HPA-K M20x50x16",OR(Eingabe!$C$3="Nachträgliche Kappenverankerung",Eingabe!$C$3="Sonderfall ohne indirekte Einw."))),M25,O25) -> 135168 | N29: =IF(OR(Eingabe!$C$15="Sechskantmutter A4 M24",AND(Eingabe!$C$15="Kopfplatte HPA-K M24x70x19",OR(Eingabe!$C$3="Nachträgliche Kappenverankerung",Eingabe!$C$3="Sonderfall ohne indirekte Einw."))),M25,O25) -> 82944 | P29: Ac,N | Q29: =R25 -> 82944 | R29: =IF(OR(Eingabe!$C$15="Sechskantmutter A4 M20",AND(Eingabe!$C$15="Kopfplatte HPA-K M20x50x16",OR(Eingabe!$C$3="Nachträgliche Kappenverankerung",Eingabe!$C$3="Sonderfall ohne indirekte Einw."))),R25,T25) -> 135168 | S29: =IF(OR(Eingabe!$C$15="Sechskantmutter A4 M24",AND(Eingabe!$C$15="Kopfplatte HPA-K M24x70x19",OR(Eingabe!$C$3="Nachträgliche Kappenverankerung",Eingabe!$C$3="Sonderfall ohne indirekte Einw."))),R25,T25) -> 82944
A30: ψs,N | B30: =MIN(1,0.7+0.3*$B$5/(1.5*B13)) -> 1 | C30: =MIN(1,0.7+0.3*$B$5/(1.5*C13)) -> 1 | D30: =MIN(1,0.7+0.3*$B$5/(1.5*D13)) -> 1 | E30: [-] | F30: ψs,N | G30: =MIN(1,0.7+0.3*$G$5/(1.5*G13)) -> 1 | H30: =MIN(1,0.7+0.3*$G$5/(1.5*H13)) -> 1 | I30: =MIN(1,0.7+0.3*$G$5/(1.5*I13)) -> 1 | J30: [-] | K30: ψs,N | L30: =MIN(1,0.7+0.3*$B$5/(1.5*L13)) -> 1 | M30: =MIN(1,0.7+0.3*$B$5/(1.5*M13)) -> 1 | N30: =MIN(1,0.7+0.3*$B$5/(1.5*N13)) -> 1 | P30: ψs,N | Q30: =MIN(1,0.7+0.3*$G$5/(1.5*Q13)) -> 1 | R30: =MIN(1,0.7+0.3*$G$5/(1.5*R13)) -> 1 | S30: =MIN(1,0.7+0.3*$G$5/(1.5*S13)) -> 1
A31: ψre,N | B31: 1 | C31: 1 | D31: 1 | E31: [-] | F31: ψre,N | G31: 1 | H31: 1 | I31: 1 | J31: [-] | K31: ψre,N | L31: 1 | M31: 1 | N31: 1 | P31: ψre,N | Q31: 1 | R31: 1 | S31: 1
A32: ψec,N | B32: 1 | C32: 1 | D32: 1 | E32: [-] | F32: ψec,N | G32: 1 | H32: 1 | I32: 1 | J32: [-] | K32: ψec,N | L32: 1 | M32: 1 | N32: 1 | P32: ψec,N | Q32: 1 | R32: 1 | S32: 1
A33: ψucr,N | B33: 1 | C33: 1 | D33: 1 | E33: [-] | F33: ψucr,N | G33: 1 | H33: 1 | I33: 1 | J33: [-] | K33: ψucr,N | L33: 1 | M33: 1 | N33: 1 | P33: ψucr,N | Q33: 1 | R33: 1 | S33: 1
A34: NRk,c | B34: =B27*B29/B28*B30*B31*B32*B33 -> 41.85688072 | C34: =C27*C29/C28*C30*C31*C32*C33 -> 59.01419555 | D34: =D27*D29/D28*D30*D31*D32*D33 -> 41.85688072 | E34: [kN] | F34: NRk,c | G34: =G27*G29/G28*G30*G31*G32*G33 -> 41.85688072 | H34: =H27*H29/H28*H30*H31*H32*H33 -> 59.01419555 | I34: =I27*I29/I28*I30*I31*I32*I33 -> 41.85688072 | J34: [kN] | K34: NRk,c | L34: =L27*L29/L28*L30*L31*L32*L33 -> 41.85688072 | M34: =M27*M29/M28*M30*M31*M32*M33 -> 59.01419555 | N34: =N27*N29/N28*N30*N31*N32*N33 -> 41.85688072 | P34: NRk,c | Q34: =Q27*Q29/Q28*Q30*Q31*Q32*Q33 -> 41.85688072 | R34: =R27*R29/R28*R30*R31*R32*R33 -> 59.01419555 | S34: =S27*S29/S28*S30*S31*S32*S33 -> 41.85688072
A35: γMc | B35: =(IF(OR(Eingabe!C24="Anprall Fahrzeugrückhaltesystem",Eingabe!C24="Anprall Schrammbord"),1.2,1.5))*1 -> 1.2 | E35: [-] | F35: γMc | G35: =(IF(OR(Eingabe!C24="Anprall Fahrzeugrückhaltesystem",Eingabe!C24="Anprall Schrammbord"),1.2,1.5))*1 -> 1.2 | J35: [-] | K35: γMc | L35: =(IF(OR(Eingabe!C24="Anprall Fahrzeugrückhaltesystem",Eingabe!C24="Anprall Schrammbord"),1.2,1.5))*1 -> 1.2 | P35: γMc | Q35: =(IF(OR(Eingabe!C24="Anprall Fahrzeugrückhaltesystem",Eingabe!C24="Anprall Schrammbord"),1.2,1.5))*1 -> 1.2 | T35: abhängig von Eingabe C23
A36: NRd,c | B36: =B34/$B$35 -> 34.88073394 | C36: =C34/$B$35 -> 49.17849629 | D36: =D34/$B$35 -> 34.88073394 | E36: [kN] | F36: NRd,c | G36: =G34/$G$35 -> 34.88073394 | H36: =H34/$G$35 -> 49.17849629 | I36: =I34/$G$35 -> 34.88073394 | J36: [kN] | K36: NRd,c | L36: =L34/$L$35 -> 34.88073394 | M36: =M34/$L$35 -> 49.17849629 | N36: =N34/$L$35 -> 34.88073394 | P36: NRd,c | Q36: =Q34/$Q$35 -> 34.88073394 | R36: =R34/$Q$35 -> 49.17849629 | S36: =S34/$Q$35 -> 34.88073394
B40: keine Zeilen rauslöschen!!! Führt zu Veränderungen in anderen Formeln
A44: Lokale Pressung am Kopfbolzen | F44: Lokale Pressung am Kopfbolzen
A45: da | E45: [mm] | F45: da | J45: [mm]
A46: Schlüsselweite | B46: 24 | C46: 30 | D46: 36 | E46: [mm] | F46: Schlüsselweite | G46: 24 | H46: 30 | I46: 36 | J46: [mm] | K46: Kopfpressung kann entfallen weil gleich mit Herausziehen!
A47: AKopfbolzen | B47: =B21 -> 251.3274123 | C47: =C21 -> 1649.336143 | D47: =D21 -> 565 | E47: [mm²] | F47: AKopfbolzen | G47: =G21 -> 251.3274123 | H47: 1649.336143 | I47: 565 | J47: [mm²]
A48: n x fck,cube | B48: =6*B3 -> 150 | C48: =6*B3 -> 150 | D48: =6*B3 -> 150 | E48: [N/mm2] | F48: n x fck,cube | G48: =B48 -> 150 | H48: =C48 -> 150 | I48: =D48 -> 150 | J48: [N/mm2]
A49: γMc | B49: =IF(Eingabe!C24="Anprall Bord / FRS",1.3,1.5) -> 1.5 | E49: [-] | F49: γMc | G49: =IF(Eingabe!C24="Anprall Bord / FRS",1.3,1.5) -> 1.5 | J49: [-]
A50: NRd,L | B50: =B47*B48/$B$49/1000*$B$9 -> 25.13274123 | C50: =C47*C48/$B$49/1000*$B$9 -> 164.9336143 | D50: =D47*D48/$B$49/1000*$B$9 -> 56.5 | E50: [kN] | F50: NRd,L | G50: =G47*G48/$G$49/1000*$B$9 -> 25.13274123 | H50: =H47*H48/$G$49/1000*$B$9 -> 164.9336143 | I50: =I47*I48/$G$49/1000*$B$9 -> 56.5 | J50: [kN]
A52: NRd,c,Mitte | B52: =MIN(B36,B24) -> 34.88073394 | C52: =MIN(C36,C24) -> 49.17849629 | D52: =MIN(D36,D24) -> 34.88073394 | E52: [kN] | F52: NRd,c,Mitte | G52: =MIN(G36,G24) -> 34.88073394 | H52: =MIN(H36,H24) -> 49.17849629 | I52: =MIN(I36,I24) -> 34.88073394 | J52: [kN] | K52: NRd,c,Rand | L52: =MIN(L36,L24) -> 34.88073394 | M52: =MIN(M36,M24) -> 49.17849629 | N52: =MIN(N36,N24) -> 34.88073394 | P52: NRd,c,Rand | Q52: =MIN(Q36,Q24) -> 34.88073394 | R52: =MIN(R36,R24) -> 49.17849629 | S52: =MIN(S36,S24) -> 34.88073394
A53: NEd, Mitte | B53: =Eingabe!O20 -> 13.10738255 | F53: NEd, Mitte | G53: =Eingabe!P20 -> 9.724832215 | K53: NEd,Rand | L53: =Eingabe!O25 -> 6.553691275 | P53: NEd, Rand | Q53: =Eingabe!P25 -> 4.862416107
A54: Ausn. N-Stahl, Mitte | B54: =$B$53/B19 -> 0.2230282563 | C54: =$B$53/C19 -> 0.1429201479 | D54: =$B$53/D19 -> 0.09919387037 | F54: Ausn. N-Stahl, Mitte | G54: =$G$53/G19 -> 0.1654725773 | H54: =$G$53/H19 -> 0.1060375291 | I54: =$G$53/I19 -> 0.07359545221 | K54: Ausn. N-Stahl, Rand | L54: =$L$53/L19 -> 0.1115141282 | M54: =$L$53/M19 -> 0.07146007396 | N54: =$L$53/N19 -> 0.04959693519 | P54: Ausn. N-Stahl, Rand | Q54: =$Q$53/Q19 -> 0.08273628863 | R54: =$Q$53/R19 -> 0.05301876455 | S54: =$Q$53/S19 -> 0.03679772611
A55: Ausn. N-Beton, Mitte | B55: =$B$53/B52 -> 0.3757771432 | C55: =$B$53/C52 -> 0.2665267046 | D55: =$B$53/D52 -> 0.3757771432 | F55: Ausn. N-Beton, Mitte | G55: =$G$53/G52 -> 0.2788023965 | H55: =$G$53/H52 -> 0.1977456195 | I55: =$G$53/I52 -> 0.2788023965 | K55: Ausn. N-Beton, Rand | L55: =$L$53/L52 -> 0.1878885716 | M55: =$L$53/M52 -> 0.1332633523 | N55: =$L$53/N52 -> 0.1878885716 | P55: Ausn. N-Beton, Rand | Q55: =$Q$53/Q52 -> 0.1394011983 | R55: =$Q$53/R52 -> 0.09887280975 | S55: =$Q$53/S52 -> 0.1394011983
A56: Ausn. Vy-Stahl o. H. Mitte | B56: =$B$61/B57 -> 0.9140890882 | C56: =$B$61/C57 -> 0.5860142045 | D56: =$B$61/D57 -> 0.4068002177 | F56: Ausn. Vy-Stahl o. H. Mitte | G56: =$G$61/G57 -> 0.9140890882 | H56: =$G$61/H57 -> 0.5860142045 | I56: =$G$61/I57 -> 0.4068002177 | K56: Ausn. Vy-Stahl o. H. Rand | L56: =$L$61/L57 -> 0.5682054304 | M56: =$L$61/M57 -> 0.364271336 | N56: =$L$61/N57 -> 0.2528704213 | P56: Ausn. Vy-Stahl o. H. Rand | Q56: =$Q$61/Q57 -> 0.5682054304 | R56: =$Q$61/R57 -> 0.364271336 | S56: =$Q$61/S57 -> 0.2528704213
A57: Stahlversagen m. H. | B57: 35.26 | C57: 55 | D57: 79.23 | F57: Stahlversagen m. H. | G57: 35.26 | H57: 55 | I57: 79.23 | K57: Stahlversagen m. H. | L57: 35.26 | M57: 55 | N57: 79.23 | P57: Stahlversagen m. H. | Q57: 35.26 | R57: 55 | S57: 79.23
A58: MRk,s | B58: =IF((233*(1-(B53/B19)))<0,0.1,(233*(1-(B53/B19)))) -> 181.0344163 | C58: =IF((454*(1-B53/C19))<1,0.1,(454*(1-B53/C19))) -> 389.1142528 | D58: =IF(786*(1-B53/D19)<1,0.1,786*(1-B53/D19)) -> 708.0336179 | E58: [Nm] | F58: MRk,s | G58: =IF(233*(1-G53/G19)<1,0.1,233*(1-G53/G19)) -> 194.4448895 | H58: =IF(454*(1-G53/H19)<1,0.1,454*(1-G53/H19)) -> 405.8589618 | I58: =IF(786*(1-G53/I19)<1,0.1,786*(1-G53/I19)) -> 728.1539746 | J58: [Nm] | K58: MRk,s | L58: =IF(233*(1-L53/L19)<1,0.1,233*(1-L53/L19)) -> 207.0172081 | M58: =IF(454*(1-L53/M19)<1,0.1,454*(1-L53/M19)) -> 421.5571264 | N58: =IF(786*(1-L53/N19)<1,0.1,786*(1-L53/N19)) -> 747.0168089 | O58: [Nm] | P58: MRk,s | Q58: =IF(233*(1-Q53/Q19)<1,0.1,233*(1-Q53/Q19)) -> 213.7224447 | R58: =IF(454*(1-Q53/R19)<1,0.1,454*(1-Q53/R19)) -> 429.9294809 | S58: =IF(786*(1-Q53/S19)<1,0.1,786*(1-Q53/S19)) -> 757.0769873 | T58: [Nm]
A59: γMs | B59: 1.56 | E59: [-] | F59: γMs | G59: 1.56 | J59: [-] | K59: γMs | L59: 1.56 | O59: [-] | P59: γMs | Q59: 1.56 | T59: [-]
A60: VRd,s | B60: =IF(Eingabe!E80=0,B57,MIN(IF(Eingabe!C3="Nachträgliche Kappenverankerung",$B$9*B58*2/B59/(B11),$B$9*B58*2/B59/(B11+10)),35.26)) -> 35.26 | C60: =IF(Eingabe!E80=0,C57,MIN(IF(Eingabe!C3="Nachträgliche Kappenverankerung",$B$9*C58*2/B59/(B11),$B$9*C58*2/B59/(B11+10)),55)) -> 55 | D60: =IF(Eingabe!E80=0,D57,MIN(IF(Eingabe!C3="Nachträgliche Kappenverankerung",$B$9*D58*2/B59/(B11),$B$9*D58*2/B59/(B11+10)),79.23)) -> 79.23 | E60: [kN] | F60: VRd,s | G60: =IF(Eingabe!E80=0,G57,MIN(IF(Eingabe!C3="Nachträgliche Kappenverankerung",$G$9*G58*2/G59/(B11),$G$9*G58*2/G59/(B11+10)),35.26)) -> 35.26 | H60: =IF(Eingabe!E80=0,H57,MIN(IF(Eingabe!C3="Nachträgliche Kappenverankerung",$G$9*H58*2/G59/(B11),$G$9*H58*2/G59/(B11+10)),55)) -> 55 | I60: =IF(Eingabe!E80=0,I57,MIN(IF(Eingabe!C3="Nachträgliche Kappenverankerung",$G$9*I58*2/G59/(B11),$G$9*I58*2/G59/(B11+10)),79.23)) -> 79.23 | J60: [kN] | K60: VRd,s | L60: =IF(Eingabe!E80=0,L57,MIN(IF(Eingabe!C3="Nachträgliche Kappenverankerung",$B$9*L58*2/L59/(B11),$B$9*L58*2/L59/(B11+10)),35.26)) -> 35.26 | M60: =IF(Eingabe!E80=0,M57,MIN(IF(Eingabe!C3="Nachträgliche Kappenverankerung",$B$9*M58*2/L59/(B11),$B$9*M58*2/L59/(B11+10)),55)) -> 55 | N60: =IF(Eingabe!E80=0,N57,MIN(IF(Eingabe!C3="Nachträgliche Kappenverankerung",$B$9*N58*2/L59/(B11),$B$9*N58*2/L59/(B11+10)),79.23)) -> 79.23 | O60: [kN] | P60: VRd,s | Q60: =IF(Eingabe!E80=0,Q57,MIN(IF(Eingabe!C3="Nachträgliche Kappenverankerung",$G$9*Q58*2/Q59/(B11),$G$9*Q58*2/Q59/(B11+10)),35.26)) -> 35.26 | R60: =IF(Eingabe!E80=0,R57,MIN(IF(Eingabe!C3="Nachträgliche Kappenverankerung",$G$9*R58*2/Q59/(B11),$G$9*R58*2/Q59/(B11+10)),55)) -> 55 | S60: =IF(Eingabe!E80=0,S57,MIN(IF(Eingabe!C3="Nachträgliche Kappenverankerung",$G$9*S58*2/Q59/(B11),$G$9*S58*2/Q59/(B11+10)),79.23)) -> 79.23 | T60: [kN]
A61: VEd,s,y, Mitte | B61: =IF(Eingabe!C33="Kappenverankerung HPA",Eingabe!O21,Eingabe!Q21) -> 32.23078125 | E61: [kN] | F61: VSd,s,y, Mitte | G61: =IF(Eingabe!C33="Kappenverankerung HPA",Eingabe!P21,Eingabe!R21) -> 32.23078125 | J61: [kN] | K61: VSd,s,x/y, Rand | L61: =IF(Eingabe!C33="Kappenverankerung HPA",Eingabe!O26,Eingabe!Q26) -> 20.03492348 | P61: VSd,s,x/y, Rand | Q61: =IF(Eingabe!C33="Kappenverankerung HPA",Eingabe!P26,Eingabe!R26) -> 20.03492348
A62: Ausn Vy-Stahl m.H. Mitte | B62: =$B$61/B60 -> 0.9140890882 | C62: =$B$61/C60 -> 0.5860142045 | D62: =$B$61/D60 -> 0.4068002177 | F62: Ausn Vy-Stahl m.H. Mitte | G62: =$G$61/G60 -> 0.9140890882 | H62: =$G$61/H60 -> 0.5860142045 | I62: =$G$61/I60 -> 0.4068002177 | K62: Ausn Vy-Stahl m.H. Rand | L62: =$L$61/L60 -> 0.5682054304 | M62: =$L$61/M60 -> 0.364271336 | N62: =$L$61/N60 -> 0.2528704213 | P62: Ausn Vy-Stahl m.H. Rand | Q62: =$Q$61/Q60 -> 0.5682054304 | R62: =$Q$61/R60 -> 0.364271336 | S62: =$Q$61/S60 -> 0.2528704213
A63: Betonausbruch auf der lastabgewandten Seite | F63: Betonausbruch auf der lastabgewandten Seite | K63: Betonausbruch auf der lastabgewandten Seite | P63: Betonausbruch auf der lastabgewandten Seite
A64: k | B64: =IF(Eingabe!C21<60,1,IF(OR(Eingabe!C21<90,Eingabe!C21=90),2,2)) -> 2 | E64: [-] | F64: k | G64: =IF(Eingabe!C21<60,1,IF(OR(Eingabe!C21<90,Eingabe!C21=90),2,2)) -> 2 | J64: [-] | K64: k | L64: =IF(Eingabe!C21<60,1,IF(OR(Eingabe!C21<90,Eingabe!C21=90),2,2)) -> 2 | P64: k | Q64: =IF(Eingabe!C21<60,1,IF(OR(Eingabe!C21<90,Eingabe!C21=90),2,2)) -> 2
A65: VRk,cp | B65: =MIN((B64*B22),(B64*B34)) -> 83.71376145 | C65: =MIN((B64*C22),(B64*C34)) -> 118.0283911 | D65: =MIN((B64*D22),(B64*D34)) -> 83.71376145 | F65: VRk,cp | G65: =MIN((G64*G22),(G64*G34)) -> 83.71376145 | H65: =MIN((G64*H22),(G64*H34)) -> 118.0283911 | I65: =MIN((G64*I22),(G64*I34)) -> 83.71376145 | K65: VRk,cp | L65: =MIN((L64*L22),(L64*L34)) -> 83.71376145 | M65: =MIN((L64*M22),(L64*M34)) -> 118.0283911 | N65: =MIN((L64*N22),(L64*N34)) -> 83.71376145 | P65: VRk,cp | Q65: =MIN((Q64*Q22),(Q64*Q34)) -> 83.71376145 | R65: =MIN((Q64*R22),(Q64*R34)) -> 118.0283911 | S65: =MIN((Q64*S22),(Q64*S34)) -> 83.71376145
A66: γMcp | B66: =(IF(OR(Eingabe!C24="Anprall Fahrzeugrückhaltesystem",Eingabe!C24="Anprall Schrammbord"),1.2,1.5))*1 -> 1.2 | E66: [-] | F66: γMcp | G66: =(IF(OR(Eingabe!C24="Anprall Fahrzeugrückhaltesystem",Eingabe!C24="Anprall Schrammbord"),1.2,1.5))*1 -> 1.2 | J66: [-] | K66: γMcp | L66: =(IF(OR(Eingabe!C24="Anprall Fahrzeugrückhaltesystem",Eingabe!C24="Anprall Schrammbord"),1.2,1.5))*1 -> 1.2 | P66: γMcp | Q66: =(IF(OR(Eingabe!C24="Anprall Fahrzeugrückhaltesystem",Eingabe!C24="Anprall Schrammbord"),1.2,1.5))*1 -> 1.2 | T66: abhängig von Eingabe C23
A67: VRd,cp | B67: =B65/$B$66 -> 69.76146787 | C67: =C65/$B$66 -> 98.35699258 | D67: =D65/$B$66 -> 69.76146787 | E67: [kN] | F67: VRd,cp | G67: =G65/$G$66 -> 69.76146787 | H67: =H65/$G$66 -> 98.35699258 | I67: =I65/$G$66 -> 69.76146787 | J67: [kN] | K67: VRd,cp | L67: =L65/$L$66 -> 69.76146787 | M67: =M65/$L$66 -> 98.35699258 | N67: =N65/$L$66 -> 69.76146787 | P67: VRd,cp | Q67: =Q65/$Q$66 -> 69.76146787 | R67: =R65/$Q$66 -> 98.35699258 | S67: =S65/$Q$66 -> 69.76146787
A68: Betonkantenbruch | B68: =IF(AND($B$5<960,$B$5<10*B$13,$B$5>$B$8/1.5,$B$5>$B$6/3),MAX($B$6/3,$B$8/1.5),$B$5) -> 200 | C68: =IF(AND($B$5<1200,$B$5<10*C$13,$B$5>$B$8/1.5,$B$5>$B$6/3),MAX($B$6/3,$B$8/1.5),$B$5) -> 200 | D68: =IF(AND($B$5<1200,$B$5<10*D$13,$B$5>$B$8/1.5,$B$5>$B$6/3),MAX($B$6/3,$B$8/1.5),$B$5) -> 200 | F68: Betonkantenbruch | G68: =IF(AND($G$5<960,$G$5<10*G$13,$G$5>$G$8/1.5,$G$5>$G$6/3),MAX($G$6/3,$G$8/1.5),$G$5) -> 300 | H68: =IF(AND($G$5<1200,$G$5<10*H$13,$G$5>$G$8/1.5,$G$5>$G$6/3),MAX($G$6/3,$G$8/1.5),$G$5) -> 300 | I68: =IF(AND($G$5<10*I$13,$G$5>$G$8/1.5,$G$5>$G$6/3),MAX($G$6/3,$G$8/1.5),$G$5) -> 300
A69: α | B69: =0.1*((B13/B68)^0.5) -> 0.0692820323 | C69: =0.1*((C13/C68)^0.5) -> 0.0692820323 | D69: =0.1*((D13/D68)^0.5) -> 0.0692820323 | E69: [-] | F69: α | G69: =0.1*((G13/G68)^0.5) -> 0.05656854249 | H69: =0.1*((H13/H68)^0.5) -> 0.05656854249 | I69: =0.1*((I13/I68)^0.5) -> 0.05656854249 | J69: [-]
A70: β | B70: =0.1*((16/B68)^0.2) -> 0.06034176337 | C70: =0.1*((20/C68)^0.2) -> 0.06309573445 | D70: =0.1*((24/D68)^0.2) -> 0.06543893899 | E70: [-] | F70: β | G70: =0.1*((16/G68)^0.2) -> 0.05564161739 | H70: =0.1*((20/H68)^0.2) -> 0.05818107592 | I70: =0.1*((24/I68)^0.2) -> 0.06034176337 | J70: [-]
A71: V0Rk,c | B71: =1.7*16^B69*B13^B70*SQRT($B$3)*$B$68^1.5/1000 -> 38.37086065 | C71: =1.7*20^C69*C13^C70*SQRT($B$3)*$C$68^1.5/1000 -> 39.46160824 | D71: =1.7*24^D69*D13^D70*SQRT($B$3)*$D$68^1.5/1000 -> 40.39294194 | E71: [kN] | F71: V0Rk,c | G71: =1.7*16^G69*G13^G70*SQRT($B$3)*$G$68^1.5/1000 -> 66.60593017 | H71: =1.7*20^H69*H13^H70*SQRT($B$3)*$H$68^1.5/1000 -> 68.23840255 | I71: =0.45*SQRT(I70)*(I69/I70)^0.2*SQRT($B$3)*$I$68^1.5/1000 -> 2.835076599 | J71: [kN]
A72: A0c,V | B72: =IF(AND($B$5<960,$B$5<10*B$13,$B$5>$B$8/1.5,$B$5>$B$6/3),4.5*$B$68^2,4.5*$B$5^2) -> 180000 | C72: =IF(AND($B$5<1200,$B$5<10*C$13,$B$5>$B$8/1.5,$B$5>$B$6/3),4.5*$C$68^2,4.5*$B$5^2) -> 180000 | D72: =IF(AND($B$5<1200,$B$5<10*D$13,$B$5>$B$8/1.5,$B$5>$B$6/3),4.5*$D$68^2,4.5*$B$5^2) -> 180000 | E72: [mm²] | F72: A0c,V | G72: =IF(AND($G$5<960,$G$5<10*G$13,$G$5>$G$8/1.5,$G$5>$G$6/3),4.5*$G$68^2,4.5*$G$5^2) -> 405000 | H72: =IF(AND($G$5<1200,$G$5<10*H$13,$G$5>$G$8/1.5,$G$5>$G$6/3),4.5*$H$68^2,4.5*$G$5^2) -> 405000 | J72: [mm²]
A73: Ac,V | B73: =MIN(3*B5,B6)*MIN(1.5*B5,B8) -> 87000 | E73: [mm²] | F73: Ac,V | G73: =MIN(3*G5,G6)*MIN(1.5*G5,G8) -> 130500 | J73: [mm²]
A74: ψs,V | B74: 1 | E74: [-] | F74: ψs,V | G74: 1 | J74: [-]
A75: ψh,V | B75: =IF(AND($B$5<960,$B$5<10*B$13,$B$5>$B$8/1.5,$B$5>$B$6/3),MAX(1,(1.5*B68/B8)^(1/2)),MAX(1,(1.5*B5/B8)^(1/2))) -> 1.438389904 | C75: =IF(AND($B$5<1200,$B$5<10*C$13,$B$5>$B$8/1.5,$B$5>$B$6/3),MAX(1,(1.5*C68/B8)^(1/2)),MAX(1,(1.5*B5/B8)^(1/2))) -> 1.438389904 | D75: =IF(AND($B$5<1200,$B$5<10*D$13,$B$5>$B$8/1.5,$B$5>$B$6/3),MAX(1,(1.5*D68/B8)^(1/2)),MAX(1,(1.5*B5/B8)^(1/2))) -> 1.438389904 | E75: [-] | F75: ψh,V | G75: =IF(AND($G$5<960,$G$5<10*G$13,$G$5>$G$8/1.5,$G$5>$G$6/3),MAX(1,(1.5*G68/G8)^(1/2)),MAX(1,(1.5*G5/G8)^(1/2))) -> 1.761660659 | H75: =IF(AND($G$5<1200,$G$5<10*H$13,$G$5>$G$8/1.5,$G$5>$G$6/3),MAX(1,(1.5*H68/G8)^(1/2)),MAX(1,(1.5*G5/G8)^(1/2))) -> 1.761660659 | J75: [-]
A76: ψα,V | B76: 1 | E76: [-] | F76: ψα,V | G76: 1 | J76: [-]
A77: ψec,V | B77: 1 | E77: [-] | F77: ψec,V | G77: 1 | J77: [-]
A78: ψre,V | B78: 1 | E78: [-] | F78: ψre,V | G78: 1 | J78: [-]
A79: VRk,c | B79: =B71*$B$73/$B$72*$B$74*$B$75*$B$76*$B$77*$B$78 -> 26.67625831 | C79: =C71*$B$73/$C$72*$B$74*$C$75*$B$76*$B$77*$B$78 -> 27.4345698 | D79: =D71*$B$73/$D$72*$B$74*$D$75*$B$76*$B$77*$B$78 -> 28.08205329 | E79: [kN] | F79: VRk,c | G79: =G71*$G$73/$G$72*$G$74*$G$75*$G$76*$G$77*$G$78 -> 37.80860397 | H79: =H71*$G$73/$H$72*$G$74*$H$75*$G$76*$G$77*$G$78 -> 38.73527073 | I79: =I71*$G$73/$H$72*$G$74*$H$75*$G$76*$G$77*$G$78 -> 1.609320493 | J79: [kN]
A80: γMc | B80: =B66 -> 1.2 | E80: [-] | F80: γMc | G80: =G66 -> 1.2 | J80: [-]
A81: VRd,c | B81: =IF(AND($B$5>960,$B$5>10*B13),"entfällt",B79/$B$80) -> 22.23021526 | C81: =IF(AND($B$5>1200,$B$5>10*C13),"entfällt",C79/$B$80) -> 22.8621415 | D81: =IF($B$5>10*D13,"c > 10*hef",D79/$B$80) -> 23.40171107 | E81: [kN] | F81: VRd,c | G81: =IF(AND($G$5>960,$G$5>10*G13),"entfällt",G79/$G$80) -> 31.50716998 | H81: =IF(AND($G$5>1200,$G$5>10*H13),"entfällt",H79/$G$80) -> 32.27939228 | I81: =IF($G$5>10*I13,"c > 10*hef",I79/$G$80) -> 1.34110041 | J81: [kN]
A83: VRd,cp | B83: =Kappe!B67 -> 69.76146787 | C83: =Kappe!C67 -> 98.35699258 | D83: =Kappe!D67 -> 69.76146787 | E83: [kN] | F83: VRd,cp | G83: =Kappe!G67 -> 69.76146787 | H83: =Kappe!H67 -> 98.35699258 | I83: =Kappe!I67 -> 69.76146787 | J83: [kN] | K83: VRd,cp | L83: =Kappe!L67 -> 69.76146787 | M83: =Kappe!M67 -> 98.35699258 | N83: =Kappe!N67 -> 69.76146787 | P83: VRd,cp | Q83: =Kappe!Q67 -> 69.76146787 | R83: =Kappe!R67 -> 98.35699258 | S83: =Kappe!S67 -> 69.76146787
A84: VSd,y,Mitte | B84: =IF(Eingabe!C33="Kappenverankerung HPA",Eingabe!O23,Eingabe!Q23) -> 32.23078125 | F84: VSd,y,Mitte | G84: =IF(Eingabe!C33="Kappenverankerung HPA",Eingabe!P23,Eingabe!R23) -> 64.4615625 | K84: VSd,x/y,Rand | L84: =IF(Eingabe!C33="Kappenverankerung HPA",Eingabe!O29,Eingabe!Q29) -> 20.03492348 | P84: VSd,y,Mitte | Q84: =IF(Eingabe!C33="Kappenverankerung HPA",Eingabe!P29,Eingabe!R29) -> 40.06984695
A85: Ausn Vy Beton Mitte | B85: =$B$84/B83 -> 0.4620140922 | C85: =$B$84/C83 -> 0.3276918133 | D85: =$B$84/D83 -> 0.4620140922 | F85: Ausn Vy Beton Mitte | G85: =$G$84/G83 -> 0.9240281844 | H85: =$G$84/H83 -> 0.6553836266 | I85: =$G$84/I83 -> 0.9240281844 | K85: Ausn V Beton Rand | L85: =$L$84/L83 -> 0.2871918279 | M85: =$L$84/M83 -> 0.2036959748 | N85: =$L$84/N83 -> 0.2871918279 | P85: Ausn V Beton Rand | Q85: =$Q$84/Q83 -> 0.5743836558 | R85: =$Q$84/R83 -> 0.4073919495 | S85: =$Q$84/S83 -> 0.5743836558
A87: Kombinierte Beanspruchung Mitte Reihe 1 | F87: Kombinierte Beanspruchung Mitte Reihe 2 | K87: Kombinierte Beanspruchung Rand Reihe 1 | P87: Kombinierte Beanspruchung Rand Reihe 2
B88: =B12 -> Kappenanker HPA M16 | C88: =C12 -> Kappenanker HPA M20 | D88: =D12 -> Kappenanker HPA M24 | G88: =G12 -> Kappenanker HPA M16 | H88: =H12 -> Kappenanker HPA M20 | I88: =I12 -> Kappenanker HPA M24 | L88: =L12 -> Kappenanker HPA M16 | M88: =M12 -> Kappenanker HPA M20 | N88: =N12 -> Kappenanker HPA M24 | Q88: =Q12 -> Kappenanker HPA M16 | R88: =R12 -> Kappenanker HPA M20 | S88: =S12 -> Kappenanker HPA M24
A89: kombi N+V m/o H Stahl Mitte | B89: =MAX(B62,IF(B56=0,B54,B54^2+B56^2)) -> 0.9140890882 | C89: =MAX(C62,IF(C56=0,C54,C54^2+C56^2)) -> 0.5860142045 | D89: =MAX(D62,IF(D56=0,D54,D54^2+D56^2)) -> 0.4068002177 | F89: kombi N+V m/o H Stahl Mitte | G89: =MAX(G62,IF(G56=0,G54,G54^2+G56^2)) -> 0.9140890882 | H89: =MAX(H62,IF(H56=0,H54,H54^2+H56^2)) -> 0.5860142045 | I89: =MAX(I62,IF(I56=0,I54,I54^2+I56^2)) -> 0.4068002177 | K89: kombi N+V m/o H Stahl Mitte | L89: =MAX(L62,IF(L56=0,L54,L54^2+L56^2)) -> 0.5682054304 | M89: =MAX(M62,IF(M56=0,M54,M54^2+M56^2)) -> 0.364271336 | N89: =MAX(N62,IF(N56=0,N54,N54^2+N56^2)) -> 0.2528704213 | P89: kombi N+V m/o H Stahl Mitte | Q89: =MAX(Q62,IF(Q56=0,Q54,Q54^2+Q56^2)) -> 0.5682054304 | R89: =MAX(R62,IF(R56=0,R54,R54^2+R56^2)) -> 0.364271336 | S89: =MAX(S62,IF(S56=0,S54,S54^2+S56^2)) -> 0.2528704213
A90: kombi N+V Beton Mitte | B90: =IF(OR(B55>1,B85>1),MAX(B55,B85),IF(OR(B55=0,B85=0),B55+B85,MIN((B55+B85)/1.2,B55^1.5+B85^1.5))) -> 0.5443923409 | C90: =IF(OR(C55>1,C85>1),MAX(C55,C85),IF(OR(C55=0,C85=0),C55+C85,MIN((C55+C85)/1.2,C55^1.5+C85^1.5))) -> 0.3251827954 | D90: =IF(OR(D55>1,D85>1),MAX(D55,D85),IF(OR(D55=0,D85=0),D55+D85,MIN((D55+D85)/1.2,D55^1.5+D85^1.5))) -> 0.5443923409 | F90: kombi N+V Beton Mitte | G90: =IF(OR(G55>1,G85>1),MAX(G55,G85),IF(OR(G55=0,G85=0),G55+G85,MIN((G55+G85)/1.2,G55^1.5+G85^1.5))) -> 1.002358817 | H90: 0.6185055483 | I90: 1.002358817 | K90: kombi N+V Beton Mitte | L90: =IF(OR(L55>1,L85>1),MAX(L55,L85),IF(OR(L55=0,L85=0),L55+L85,MIN((L55+L85)/1.2,L55^1.5+L85^1.5))) -> 0.2353493062 | M90: 0.1405815981 | N90: =IF(OR(N55>1,N85>1),MAX(N55,N85),IF(OR(N55=0,N85=0),N55+N85,MIN((N55+N85)/1.2,N55^1.5+N85^1.5))) -> 0.2353493062 | P90: kombi N+V Beton Mitte | Q90: =IF(OR(Q55>1,Q85>1),MAX(Q55,Q85),IF(OR(Q55=0,Q85=0),Q55+Q85,MIN((Q55+Q85)/1.2,Q55^1.5+Q85^1.5))) -> 0.4873619632 | R90: 0.2911167437 | S90: 0.4873619632
A92: Maximum Kombi Mitte | B92: =MAX(B89,B90) -> 0.9140890882 | C92: =MAX(C89,C90) -> 0.5860142045 | D92: =MAX(D89,D90) -> 0.5443923409 | F92: Maximum Kombi Mitte | G92: =MAX(G89,G90) -> 1.002358817 | H92: 0.6185055483 | I92: 1.002358817 | K92: Maximum Kombi Rand | L92: =MAX(L89,L90) -> 0.5682054304 | M92: 0.364271336 | N92: 0.2528704213 | P92: Maximum Kombi Rand | Q92: =MAX(Q89,Q90) -> 0.5682054304 | R92: 0.364271336 | S92: 0.4873619632
A93: Warnung Mitte | B93: =IF(MAX(B92,G92)>1.009,"Unzulässig !","") ->  | C93: =IF(MAX(C92,H92)>1.009,"Unzulässig !","") ->  | D93: =IF(MAX(D92,I92)>1.009,"Unzulässig !","") ->  | F93: Warnung Mitte | G93: =IF(MAX(G92,B92)>1.009,"Unzulässig !","") ->  | H93: =IF(MAX(H92,C92)>1.009,"Unzulässig !","") ->  | I93: =IF(MAX(I92,D92)>1.009,"Unzulässig !","") ->  | K93: Warnung Rand | L93: =IF(MAX(L92,Q92)>1.009,"Unzulässig !","") ->  | M93: =IF(MAX(M92,R92)>1.009,"Unzulässig !","") ->  | N93: =IF(MAX(N92,S92)>1.009,"Unzulässig !","") ->  | P93: Warnung Rand | Q93: =IF(MAX(Q92,L92)>1.01,"Unzulässig !","") ->  | R93: =IF(MAX(R92,M92)>1.01,"Unzulässig !","") ->  | S93: =IF(MAX(S92,N92)>1.01,"Unzulässig !","") -> 
A95: Gewählter Dübel | B95: =LEFT(Eingabe!C4,21) -> Kappenanker HPA M24 | F95: Gewählter Dübel | G95: =LEFT(Eingabe!C4,21) -> Kappenanker HPA M24 | K95: Gewählter Dübel | L95: =LEFT(Eingabe!C4,21) -> Kappenanker HPA M24 | P95: Gewählter Dübel | Q95: =LEFT(Eingabe!C4,21) -> Kappenanker HPA M24
A96: Ausnutzung N+V Stahl Mitte | B96: =INDEX(B88:D90,2,MATCH($B$95,B88:D88)) -> 0.4068002177 | F96: Ausnutzung N+V Stahl Mitte | G96: =INDEX(G88:I90,2,MATCH($G$95,G88:I88)) -> 0.4068002177 | K96: Ausnutzung N+V Stahl Rand | L96: =INDEX(L88:N90,2,MATCH($B$95,L88:N88)) -> 0.2528704213 | P96: Ausnutzung N+V Stahl Rand | Q96: =INDEX(Q88:S90,2,MATCH($G$95,Q88:S88)) -> 0.2528704213
A97: Ausnutzung N+V Beton Mitte | B97: =INDEX(B88:D90,3,MATCH($B$95,B88:D88)) -> 0.5443923409 | F97: Ausnutzung N+V Beton Mitte | G97: =INDEX(G88:I90,3,MATCH($G$95,G88:I88)) -> 1.002358817 | K97: Ausnutzung N+V Beton Rand | L97: =INDEX(L88:N90,3,MATCH($B$95,L88:N88)) -> 0.2353493062 | P97: Ausnutzung N+V Beton Rand | Q97: =INDEX(Q88:S90,3,MATCH($G$95,Q88:S88)) -> 0.4873619632

Sheet Ausschreibungstext (hidden)
A2: Ausschreibungstexte für Hilti Kappenverankerung mit HPA und mit HIT-Z-R-D M16 für statische und ermüdungsrelevante Einwirkungen:
A3: https://www.ausschreiben.de/katalog/hilti/position/137
A5: Pos. | B5: Bezeichnung | C5: Menge | D5: Einheit | E5: EP | F5: GP
B6: Herstellerinformation
A8: 1. | B8: Hilti Kappenverankerung (Ortbetonkappe) Kappenverankerung entsprechend statischen und konstruktiven Erfordernissen nach Unterlagen des AG einschließlich Abdichtung und Zubehör herstellen. Die Anforderungen lt. RE-ING, Teil 2, Abschnitt 2, Absatz 3.3.6 sind zu beachten. Insbesondere Satz (5) bzgl. Momentenbeanspruchung der Kappenverankerungen. Injektionsdübel zugelassen für gerissenen Beton. Bei Verwendung Hohlbohrer mit Staubsauger kann Bohrlochreinigung entfallen. Ein Prüfbericht zur Dichtheit des Kappenankers in der Abdichtungsschicht ist vorzulegen. Einbau zwischen den Querspanngliedern im eingemessenen Bereich. Querspannglieder und deren Verankerungen dürfen nicht beschädigt werden. Einbauort = Außenkappe/ Mittelkappe Verbunddübel M16 / M20 / M24 aus nichtrostendem Stahl (Korr.-Widerstandskl. III) Verankerungslänge im Tragwerk = ... cm, Verankerungslänge in Kappe (Kopfbolzen) = ... cm in hammergebohrten Löchern mit automatischer Selbstreinigung (staubfreie Bohrlocherstellung) - SAFEset oder in hammergebohrten Löchern mit Bohrlochreinigung Einbau und Montage gem. Europäisch Technischer Bewertung ETA-20/0541 und Z-21.8-2118 Lieferung und Montage Erzeugnis: Hilti Kappenverankerung bestehend aus: HPA M... x .... mit Sechskantmutter oder Kopfplatte HPA-K M20 / M24, Stauscheibe HIW, Injektionsmörtel-System HIT-RE 500 V4 oder gleichwertiges Erzeugnis
C9: 0 | D9: Stk | E9: 0 | F9: =(E9*C9) -> 0
D10: Gesamt Netto | F10: =SUM(F9:F9) -> 0
D11: MwSt. | E11: 0.19 | F11: =(F10*E11) -> 0
D12: Gesamt Brutto | F12: =(F10+F11) -> 0
A14: 2. | B14: Hilti Kappenverankerung (Fertigteilkappe / Nachträgliche Kappenverankerung) Kappenverankerung entsprechend statischen und konstruktiven Erfordernissen nach Unterlagen des AG einschließlich Abdichtung und Zubehör herstellen. Die Anforderungen lt. RE-ING, Teil 2, Abschnitt 2, Absatz 3.3.6 sind zu beachten. Insbesondere Satz (5) bzgl. Momentenbeanspruchung der Kappenverankerungen. Injektionsdübel zugelassen für gerissenen Beton. Bei Verwendung Hohlbohrer mit Staubsauger kann Bohrlochreinigung entfallen. Ein Prüfbericht zur Dichtheit des Kappenankers in der Abdichtungsschicht ist vorzulegen. Einbau zwischen den Querspanngliedern im eingemessenen Bereich. Querspannglieder und deren Verankerungen dürfen nicht beschädigt werden. Einbauort = Außenkappe/ Mittelkappe Verbunddübel M16 / M20 / M24 aus nichtrostendem Stahl (Korr.-Widerstandskl. III) Verankerungslänge im Tragwerk = ... cm, Verankerungslänge in Kappe (Kopfbolzen) = ... cm Senkungsbohrung in Kappe: Durchmesser ...mm, Tiefe ...mm Die Senkung ist mit Injektionsmörtel Hilti HIT oder einem schwindarmen, frost- und tausalzbeständigen Mörtel zu schließen. in hammergebohrten Löchern mit automatischer Selbstreinigung (staubfreie Bohrlocherstellung) - SAFEset oder in hammergebohrten Löchern mit Bohrlochreinigung Einbau und Montage gem. Europäisch Technischer Bewertung ETA-20/0541 und Z-21.8-2118 Lieferung und Montage Erzeugnis: Hilti Kappenverankerung bestehend aus: HPA M... x .... , Sechskantmutter oder Kopfplatte HPA-K M20 / M24, Injektionsmörtel-System HIT-RE 500 V4 oder gleichwertiges Erzeugnis
C15: 0 | D15: Stk | E15: 0 | F15: =(E15*C15) -> 0
D16: Gesamt Netto | F16: =SUM(F15:F15) -> 0
D17: MwSt. | E17: 0.19 | F17: =(F16*E17) -> 0
D18: Gesamt Brutto | F18: =(F16+F17) -> 0
A20: 3. | B20: Hilti Kappenverankerung (ermüdungsrelevante Einwirkungen) Lieferung und Montage Kappenverankerung entsprechend statischen und konstruktiven Erfordernissen nach Unterlagen des AG einschließlich Abdichtung und Zubehör herstellen. Injektionsanker zugelassen für gerissenen Beton und ermüdungsrelevante Einwirkungen. Bei Verwendung von Hohlbohrer mit Staubsauger (automatischer Staubabsaugung) kann die Bohrlochreinigung entfallen. Ein Prüfbericht zur Dichtheit des Kappenankers in der Dichtungsschicht ist vorzulegen. Einbau zwischen der vorhandenen Bewehrung im eingemessenen Bereich. Vorhandene Bewehrung darf nicht beschädigt werden. Einbauort = Außenkappe Verbundanker M16 aus nichtrostendem Stahl (A4-70; Korr.-Widerstandskl. III) Verankerungstiefe im Tragwerk 125 mm, Verankerungslänge in Kappe (Kopfbolzen) = 90 mm in hammergebohrten Löchern mit automatischer Selbstreinigung (staubfreie Bohrlocherstellung) - SAFEset Montage entsprechend ETA-19/0802. Einbau und Montage als nachträgliche Verbindung durch geschultes Fachpersonal. Lieferung und Montage Erzeugnis: Hilti Kappenverankerung bestehend aus: Injektionsmörtel -System HIT-HY 200-A HIT-Z-R-D M16 x 240 mit Stauscheibe HIW oder gleichwertiges Erzeugnis
C21: 0 | D21: Stk | E21: 0 | F21: =(E21*C21) -> 0
D22: Gesamt Netto | F22: =SUM(F21:F21) -> 0
D23: MwSt. | E23: 0.19 | F23: =(F22*E23) -> 0
D24: Gesamt Brutto | F24: =(F22+F23) -> 0

Sheet Technische Dokumente (hidden)
A2: Download: | B2: Technische Bewertung Hilti HIT-RE 500 V4 | F2: BIM/CAD Bibliothek
A4: Download: | B4: Zulassung Z-21.8-2118 Hilti Betonverbinder HPA
A6: Auszüge aus ETA-20/0541, Z-21.8-2118 und Verwendbarkeitsnachweise zur Dichtheit der Kappenverankerung HPA:
A7: Die Nachweise können Sie beim Hilti Engineering-Service unter: Tel. 0800 - 888 55 22 oder e-mail: Planer-Support@hilti.com anfordern.

Sheet Lastan (hidden)

Sheet Tabelle2 (hidden)
